Workbook

Sheet Архив статистики
A1: Таблица 9 - колличество исправных видеорегистраторов в каждом ОП
A2: ООО ПКП «ТИТАН» | C2: 02-08 ноября | AQ2: 09-15 ноября | CE2: 16-22 ноября | DS2: 23-30 ноября
C3: Вывозка | M3: Дорожная | W3: Вспомогательная | AG3: Всего по ОП | AQ3: Вывозка | BA3: Дорожная | BK3: Вспомогательная | BU3: Всего по ОП | CE3: Вывозка | CO3: Дорожная | CY3: Вспомогательная | DI3: Всего по ОП | DS3: Вывозка | EC3: Дорожная | EM3: Вспомогательная | EW3: Всего по ОП | FG3: Вывозка | FQ3: Дорожная | GA3: Вспомогательная | GK3: Всего по ОП
C4: Всего ТС, шт. | D4: Не оборудованые ТС, шт. | E4: Без пробега за неделю, шт | F4: Частично исправные | H4: Полностью исправные | J4: Всего рабочих | L4: Работает из установленных с пробегом, % | M4: Всего ТС, шт. | N4: Не оборудованые ТС, шт. | O4: Без пробега за неделю, шт | P4: Частично исправные | R4: Полностью исправные | T4: Всего рабочих | V4: Работает из установленных с пробегом, % | W4: Всего ТС, шт. | X4: Не оборудованые ТС, шт. | Y4: Без пробега за неделю, шт | Z4: Частично исправные | AB4: Полностью исправные | AD4: Всего рабочих | AF4: Работает из установленных с пробегом, % | AG4: Всего ТС, шт. | AH4: Не оборудованые ТС, шт. | AI4: Без пробега за неделю, шт | AJ4: Частично исправные | AL4: Полностью исправные | AN4: Всего рабочих | AP4: Работает из установленных с пробегом, % | AQ4: Всего ТС, шт. | AR4: Не оборудованые ТС, шт. | AS4: Без пробега за неделю, шт | AT4: Частично исправные | AV4: Полностью исправные | AX4: Всего рабочих | AZ4: Работает из установленных с пробегом, % | BA4: Всего ТС, шт. | BB4: Не оборудованые ТС, шт. | BC4: Без пробега за неделю, шт | BD4: Частично исправные | BF4: Полностью исправные | BH4: Всего рабочих | BJ4: Работает из установленных с пробегом, % | BK4: Всего ТС, шт. | BL4: Не оборудованые ТС, шт. | BM4: Без пробега за неделю, шт | BN4: Частично исправные | BP4: Полностью исправные | BR4: Всего рабочих | BT4: Работает из установленных с пробегом, % | BU4: Всего ТС, шт. | BV4: Не оборудованые ТС, шт. | BW4: Без пробега за неделю, шт | BX4: Частично исправные | BZ4: Полностью исправные | CB4: Всего рабочих | CD4: Работает из установленных с пробегом, % | CE4: Всего ТС, шт. | CF4: Не оборудованые ТС, шт. | CG4: Без пробега за неделю, шт | CH4: Частично исправные | CJ4: Полностью исправные | CL4: Всего рабочих | CN4: Работает из установленных с пробегом, % | CO4: Всего ТС, шт. | CP4: Не оборудованые ТС, шт. | CQ4: Без пробега за неделю, шт | CR4: Частично исправные | CT4: Полностью исправные | CV4: Всего рабочих | CX4: Работает из установленных с пробегом, % | CY4: Всего ТС, шт. | CZ4: Не оборудованые ТС, шт. | DA4: Без пробега за неделю, шт | DB4: Частично исправные | DD4: Полностью исправные | DF4: Всего рабочих | DH4: Работает из установленных с пробегом, % | DI4: Всего ТС, шт. | DJ4: Не оборудованые ТС, шт. | DK4: Без пробега за неделю, шт | DL4: Частично исправные | DN4: Полностью исправные | DP4: Всего рабочих | DR4: Работает из установленных с пробегом, % | DS4: Всего ТС, шт. | DT4: Не оборудованые ТС, шт. | DU4: Без пробега за неделю, шт | DV4: Частично исправные | DX4: Полностью исправные | DZ4: Всего рабочих | EB4: Работает из установленных с пробегом, % | EC4: Всего ТС, шт. | ED4: Не оборудованые ТС, шт. | EE4: Без пробега за неделю, шт | EF4: Частично исправные | EH4: Полностью исправные | EJ4: Всего рабочих | EL4: Работает из установленных с пробегом, % | EM4: Всего ТС, шт. | EN4: Не оборудованые ТС, шт. | EO4: Без пробега за неделю, шт | EP4: Частично исправные | ER4: Полностью исправные | ET4: Всего рабочих | EV4: Работает из установленных с пробегом, % | EW4: Всего ТС, шт. | EX4: Не оборудованые ТС, шт. | EY4: Без пробега за неделю, шт | EZ4: Частично исправные | FB4: Полностью исправные | FD4: Всего рабочих | FF4: Работает из установленных с пробегом, % | FG4: Всего ТС, шт. | FH4: Не оборудованые ТС, шт. | FI4: Без пробега за неделю, шт | FJ4: Частично исправные | FL4: Полностью исправные | FN4: Всего рабочих | FP4: Работает из установленных с пробегом, % | FQ4: Всего ТС, шт. | FR4: Не оборудованые ТС, шт. | FS4: Без пробега за неделю, шт | FT4: Частично исправные | FV4: Полностью исправные | FX4: Всего рабочих | FZ4: Работает из установленных с пробегом, % | GA4: Всего ТС, шт. | GB4: Не оборудованые ТС, шт. | GC4: Без пробега за неделю, шт | GD4: Частично исправные | GF4: Полностью исправные | GH4: Всего рабочих | GJ4: Работает из установленных с пробегом, % | GK4: Всего ТС, шт. | GL4: Не оборудованые ТС, шт. | GM4: Без пробега за неделю, шт | GN4: Частично исправные | GP4: Полностью исправные | GR4: Всего рабочих | GT4: Работает из установленных с пробегом, %
A5: № | F5: Шт. | G5: % | H5: Шт. | I5: % | J5: Шт. | K5: % | P5: Шт. | Q5: % | R5: Шт. | S5: % | T5: Шт. | U5: % | Z5: Шт. | AA5: % | AB5: Шт. | AC5: % | AD5: Шт. | AE5: % | AJ5: Шт. | AK5: % | AL5: Шт. | AM5: % | AN5: Шт. | AO5: % | AT5: Шт. | AU5: % | AV5: Шт. | AW5: % | AX5: Шт. | AY5: % | BD5: Шт. | BE5: % | BF5: Шт. | BG5: % | BH5: Шт. | BI5: % | BN5: Шт. | BO5: % | BP5: Шт. | BQ5: % | BR5: Шт. | BS5: % | BX5: Шт. | BY5: % | BZ5: Шт. | CA5: % | CB5: Шт. | CC5: % | CH5: Шт. | CI5: % | CJ5: Шт. | CK5: % | CL5: Шт. | CM5: % | CR5: Шт. | CS5: % | CT5: Шт. | CU5: % | CV5: Шт. | CW5: % | DB5: Шт. | DC5: % | DD5: Шт. | DE5: % | DF5: Шт. | DG5: % | DL5: Шт. | DM5: % | DN5: Шт. | DO5: % | DP5: Шт. | DQ5: % | DV5: Шт. | DW5: % | DX5: Шт. | DY5: % | DZ5: Шт. | EA5: % | EF5: Шт. | EG5: % | EH5: Шт. | EI5: % | EJ5: Шт. | EK5: % | EP5: Шт. | EQ5: % | ER5: Шт. | ES5: % | ET5: Шт. | EU5: % | EZ5: Шт. | FA5: % | FB5: Шт. | FC5: % | FD5: Шт. | FE5: % | FJ5: Шт. | FK5: % | FL5: Шт. | FM5: % | FN5: Шт. | FO5: % | FT5: Шт. | FU5: % | FV5: Шт. | FW5: % | FX5: Шт. | FY5: % | GD5: Шт. | GE5: % | GF5: Шт. | GG5: % | GH5: Шт. | GI5: % | GN5: Шт. | GO5: % | GP5: Шт. | GQ5: % | GR5: Шт. | GS5: %
A6: 1 | B6: Вельское ОП | C6: =COUNTA([1]ВЫВОЗКА!$A$17:$A$25) -> 9 | D6: =COUNTIF([1]ВЫВОЗКА!$G$17:$G$25, "Не оборудован") -> 0 | E6: =COUNTIF([1]ВЫВОЗКА!$G$17:$G$25, "Нет пробега") -> 1 | F6: =SUMPRODUCT(--(MMULT(-([1]ВЫВОЗКА!$C$17:$F$25="+"),{1;1;1;1})>-4))-SUMPRODUCT(--(MMULT(-([1]ВЫВОЗКА!$C$17:$F$25="+"),{1;1;1;1})=0)) -> 0 | G6: =F6*100/C6 -> 0 | H6: =J6-F6 -> 8 | I6: =K6-G6 -> 88.88888889 | J6: =SUMPRODUCT(--(MMULT(-([1]ВЫВОЗКА!$C$17:$F$25="+"),{1;1;1;1})<0)) -> 8 | K6: =J6*100/C6 -> 88.88888889 | L6: =(J6+D6+E6)*100/C6 -> 100 | M6: =COUNTA([1]ДОРОЖНАЯ!$A$17:$A$23) -> 7 | N6: =COUNTIF([1]ДОРОЖНАЯ!$G$17:$G$23, "Не оборудован") -> 0 | O6: =COUNTIF([1]ДОРОЖНАЯ!$G$17:$G$23, "Нет пробега") -> 0 | P6: =SUMPRODUCT(--(MMULT(-([1]ДОРОЖНАЯ!$C$17:$F$23="+"),{1;1;1;1})>-4))-SUMPRODUCT(--(MMULT(-([1]ДОРОЖНАЯ!$C$17:$F$23="+"),{1;1;1;1})=0)) -> 0 | Q6: =P6*100/M6 -> 0 | R6: =T6-P6 -> 4 | S6: =U6-Q6 -> 57.14285714 | T6: =SUMPRODUCT(--(MMULT(-([1]ДОРОЖНАЯ!$C$17:$F$23="+"),{1;1;1;1})<0)) -> 4 | U6: =T6*100/M6 -> 57.14285714 | V6: =(T6+N6+O6)*100/M6 -> 57.14285714 | W6: =COUNTA([1]ВСПОМОГАТЕЛЬНАЯ!$A$17:$A$30) -> 14 | X6: =COUNTIF([1]ВСПОМОГАТЕЛЬНАЯ!$G$17:$G$30, "Не оборудован") -> 0 | Y6: =COUNTIF([1]ВСПОМОГАТЕЛЬНАЯ!$G$17:$G$30, "Нет пробега") -> 3 | Z6: =SUMPRODUCT(--(MMULT(-([1]ВСПОМОГАТЕЛЬНАЯ!$C$17:$F$30="+"),{1;1;1;1})>-4))-SUMPRODUCT(--(MMULT(-([1]ВСПОМОГАТЕЛЬНАЯ!$C$17:$F$30="+"),{1;1;1;1})=0)) -> 5 | AA6: =Z6*100/W6 -> 35.71428571 | AB6: =AD6-Z6 -> 6 | AC6: =AE6-AA6 -> 42.85714286 | AD6: =SUMPRODUCT(--(MMULT(-([1]ВСПОМОГАТЕЛЬНАЯ!$C$17:$F$30="+"),{1;1;1;1})<0)) -> 11 | AE6: =AD6*100/W6 -> 78.57142857 | AF6: =(AD6+X6+Y6)*100/W6 -> 100 | AG6: =SUM(C6,M6,W6) -> 30 | AH6: 0 | AI6: =SUM(E6,O6,Y6) -> 4 | AJ6: =SUM(F6,P6,Z6) -> 5 | AK6: =AJ6*100/AG6 -> 16.66666667 | AL6: =AN6-AJ6 -> 18 | AM6: =AO6-AK6 -> 60 | AN6: =SUM(J6,T6,AD6) -> 23 | AO6: =AN6*100/AG6 -> 76.66666667 | AP6: =(AN6+AH6+AI6)*100/AG6 -> 90 | AQ6: =COUNTA([1]ВЫВОЗКА!$A$17:$A$25) -> 9 | AR6: =COUNTIF([1]ВЫВОЗКА!$L$17:$L$25, "Не оборудован") -> 0 | AS6: =COUNTIF([1]ВЫВОЗКА!$L$17:$L$25, "Нет пробега") -> 3 | AT6: =SUMPRODUCT(--(MMULT(-([1]ВЫВОЗКА!$H$17:$K$25="+"),{1;1;1;1})>-4))-SUMPRODUCT(--(MMULT(-([1]ВЫВОЗКА!$H$17:$K$25="+"),{1;1;1;1})=0)) -> 0 | AU6: =AT6*100/AQ6 -> 0 | AV6: =AX6-AT6 -> 6 | AW6: =AY6-AU6 -> 66.66666667 | AX6: =SUMPRODUCT(--(MMULT(-([1]ВЫВОЗКА!$H$17:$K$25="+"),{1;1;1;1})<0)) -> 6 | AY6: =AX6*100/AQ6 -> 66.66666667 | AZ6: =(AX6+AR6+AS6)*100/AQ6 -> 100 | BA6: =COUNTA([1]ДОРОЖНАЯ!$A$17:$A$23) -> 7 | BB6: =COUNTIF([1]ДОРОЖНАЯ!$L$17:$L$23, "Не оборудован") -> 0 | BC6: =COUNTIF([1]ДОРОЖНАЯ!$L$17:$L$23, "Нет пробега") -> 0 | BD6: =SUMPRODUCT(--(MMULT(-([1]ДОРОЖНАЯ!$H$17:$K$23="+"),{1;1;1;1})>-4))-SUMPRODUCT(--(MMULT(-([1]ДОРОЖНАЯ!$H$17:$K$23="+"),{1;1;1;1})=0)) -> 0 | BE6: =BD6*100/BA6 -> 0 | BF6: =BH6-BD6 -> 5 | BG6: =BI6-BE6 -> 71.42857143 | BH6: =SUMPRODUCT(--(MMULT(-([1]ДОРОЖНАЯ!H17:K23="+"),{1;1;1;1})<0)) -> 5 | BI6: =BH6*100/BA6 -> 71.42857143 | BJ6: =(BH6+BB6+BC6)*100/BA6 -> 71.42857143 | BK6: =COUNTA([1]ВСПОМОГАТЕЛЬНАЯ!$A$17:$A$30) -> 14 | BL6: =COUNTIF([1]ВСПОМОГАТЕЛЬНАЯ!$L$17:$L$30, "Не оборудован") -> 0 | BM6: =COUNTIF([1]ВСПОМОГАТЕЛЬНАЯ!$L$17:$L$30, "Нет пробега") -> 4 | BN6: =SUMPRODUCT(--(MMULT(-([1]ВСПОМОГАТЕЛЬНАЯ!$H$17:$K$30="+"),{1;1;1;1})>-4))-SUMPRODUCT(--(MMULT(-([1]ВСПОМОГАТЕЛЬНАЯ!$H$17:$K$30="+"),{1;1;1;1})=0)) -> 5 | BO6: =BN6*100/BK6 -> 35.71428571 | BP6: =BR6-BN6 -> 5 | BQ6: =BS6-BO6 -> 35.71428571 | BR6: =SUMPRODUCT(--(MMULT(-([1]ВСПОМОГАТЕЛЬНАЯ!H17:K30="+"),{1;1;1;1})<0)) -> 10 | BS6: =BR6*100/BK6 -> 71.42857143 | BT6: =(BR6+BL6+BM6)*100/BK6 -> 100 | BU6: =SUM(AQ6,BA6,BK6) -> 30 | BV6: 0 | BW6: 7 | BX6: 5 | BY6: =BX6*100/BU6 -> 16.66666667 | BZ6: =CB6-BX6 -> 16 | CA6: =CC6-BY6 -> 53.33333333 | CB6: =SUM(AX6,BH6,BR6) -> 21 | CC6: =CB6*100/BU6 -> 70 | CD6: =(CB6+BV6+BW6)*100/BU6 -> 93.33333333 | CE6: =COUNTA([1]ВЫВОЗКА!$A$17:$A$25) -> 9 | CF6: =COUNTIF([1]ВЫВОЗКА!$Q$17:$Q$25, "Не оборудован") -> 0 | CG6: =COUNTIF([1]ВЫВОЗКА!$Q$17:$Q$25, "Нет пробега") -> 0 | CH6: =SUMPRODUCT(--(MMULT(-([1]ВЫВОЗКА!$M$17:$P$25="+"),{1;1;1;1})>-4))-SUMPRODUCT(--(MMULT(-([1]ВЫВОЗКА!$M$17:$P$25="+"),{1;1;1;1})=0)) -> 0 | CI6: =CH6*100/CE6 -> 0 | CJ6: =CL6-CH6 -> 0 | CK6: =CM6-CI6 -> 0 | CL6: =SUMPRODUCT(--(MMULT(-([1]ВЫВОЗКА!M17:P25="+"),{1;1;1;1})<0)) -> 0 | CM6: =CL6*100/CE6 -> 0 | CN6: =CL6*100/(CE6-CF6-CG6) -> 0 | CO6: =COUNTA([1]ДОРОЖНАЯ!$A$17:$A$23) -> 7 | CP6: =COUNTIF([1]ДОРОЖНАЯ!$Q$17:$Q$23, "Не оборудован") -> 0 | CQ6: =COUNTIF([1]ДОРОЖНАЯ!$Q$17:$Q$23, "Нет пробега") -> 0 | CR6: =SUMPRODUCT(--(MMULT(-([1]ДОРОЖНАЯ!$M$17:$P$23="+"),{1;1;1;1})>-4))-SUMPRODUCT(--(MMULT(-([1]ДОРОЖНАЯ!$M$17:$P$23="+"),{1;1;1;1})=0)) -> 0 | CS6: =CR6*100/CO6 -> 0 | CT6: =CV6-CR6 -> 0 | CU6: =CW6-CS6 -> 0 | CV6: =SUMPRODUCT(--(MMULT(-([1]ДОРОЖНАЯ!M17:P23="+"),{1;1;1;1})<0)) -> 0 | CW6: =CV6*100/CO6 -> 0 | CX6: =CV6*100/(CO6-CP6-CQ6) -> 0 | CY6: =COUNTA([1]ВСПОМОГАТЕЛЬНАЯ!$A$17:$A$30) -> 14 | CZ6: =COUNTIF([1]ВСПОМОГАТЕЛЬНАЯ!$Q$17:$Q$30, "Не оборудован") -> 0 | DA6: =COUNTIF([1]ВСПОМОГАТЕЛЬНАЯ!$Q$17:$Q$30, "Нет пробега") -> 0 | DB6: =SUMPRODUCT(--(MMULT(-([1]ВСПОМОГАТЕЛЬНАЯ!$M$17:$P$30="+"),{1;1;1;1})>-4))-SUMPRODUCT(--(MMULT(-([1]ВСПОМОГАТЕЛЬНАЯ!$M$17:$P$30="+"),{1;1;1;1})=0)) -> 0 | DC6: =DB6*100/CY6 -> 0 | DD6: =DF6-DB6 -> 0 | DE6: =DG6-DC6 -> 0 | DF6: =SUMPRODUCT(--(MMULT(-([1]ВСПОМОГАТЕЛЬНАЯ!M17:P30="+"),{1;1;1;1})<0)) -> 0 | DG6: =DF6*100/CY6 -> 0 | DH6: =DF6*100/(CY6-CZ6-DA6) -> 0 | DI6: =SUM(CE6,CO6,CY6) -> 30 | DJ6: 0 | DK6: 0 | DL6: 0 | DM6: =DL6*100/DI6 -> 0 | DN6: =DP6-DL6 -> 0 | DO6: =DQ6-DM6 -> 0 | DP6: =SUM(CL6,CV6,DF6) -> 0 | DQ6: =DP6*100/DI6 -> 0 | DR6: =DP6*100/(DI6-DJ6-DK6) -> 0 | DS6: =COUNTA([1]ВЫВОЗКА!$A$17:$A$25) -> 9 | DT6: =COUNTIF([1]ВЫВОЗКА!$V$17:$V$25, "Не оборудован") -> 0 | DU6: =COUNTIF([1]ВЫВОЗКА!$V$17:$V$25, "Нет пробега") -> 0 | DV6: =SUMPRODUCT(--(MMULT(-([1]ВЫВОЗКА!$R$17:$U$25="+"),{1;1;1;1})>-4))-SUMPRODUCT(--(MMULT(-([1]ВЫВОЗКА!$R$17:$U$25="+"),{1;1;1;1})=0)) -> 0 | DW6: =DV6*100/DS6 -> 0 | DX6: =DZ6-DV6 -> 0 | DY6: =EA6-DW6 -> 0 | DZ6: =SUMPRODUCT(--(MMULT(-([1]ВЫВОЗКА!R17:U25="+"),{1;1;1;1})<0)) -> 0 | EA6: =DZ6*100/DS6 -> 0 | EB6: =DZ6*100/(DS6-DT6-DU6) -> 0 | EC6: =COUNTA([1]ДОРОЖНАЯ!$A$17:$A$23) -> 7 | ED6: =COUNTIF([1]ДОРОЖНАЯ!$V$17:$V$23, "Не оборудован") -> 0 | EE6: =COUNTIF([1]ДОРОЖНАЯ!$V$17:$V$23, "Нет пробега") -> 0 | EF6: =SUMPRODUCT(--(MMULT(-([1]ДОРОЖНАЯ!$R$17:$U$23="+"),{1;1;1;1})>-4))-SUMPRODUCT(--(MMULT(-([1]ДОРОЖНАЯ!$R$17:$U$23="+"),{1;1;1;1})=0)) -> 0 | EG6: =EF6*100/EC6 -> 0 | EH6: =EJ6-EF6 -> 0 | EI6: =EK6-EG6 -> 0 | EJ6: =SUMPRODUCT(--(MMULT(-([1]ДОРОЖНАЯ!R17:U23="+"),{1;1;1;1})<0)) -> 0 | EK6: =EJ6*100/EC6 -> 0 | EL6: =EJ6*100/(EC6-ED6-EE6) -> 0 | EM6: =COUNTA([1]ВСПОМОГАТЕЛЬНАЯ!$A$17:$A$30) -> 14 | EN6: =COUNTIF([1]ВСПОМОГАТЕЛЬНАЯ!$V$17:$V$30, "Не оборудован") -> 0 | EO6: =COUNTIF([1]ВСПОМОГАТЕЛЬНАЯ!$V$17:$V$30, "Нет пробега") -> 0 | EP6: =SUMPRODUCT(--(MMULT(-([1]ВСПОМОГАТЕЛЬНАЯ!$R$17:$U$30="+"),{1;1;1;1})>-4))-SUMPRODUCT(--(MMULT(-([1]ВСПОМОГАТЕЛЬНАЯ!$R$17:$U$30="+"),{1;1;1;1})=0)) -> 0 | EQ6: =EP6*100/EM6 -> 0 | ER6: =ET6-EP6 -> 0 | ES6: =EU6-EQ6 -> 0 | ET6: =SUMPRODUCT(--(MMULT(-([1]ВСПОМОГАТЕЛЬНАЯ!R17:U30="+"),{1;1;1;1})<0)) -> 0 | EU6: =ET6*100/EM6 -> 0 | EV6: =ET6*100/(EM6-EN6-EO6) -> 0 | EW6: =SUM(DS6,EC6,EM6) -> 30 | EX6: 0 | EY6: 0 | EZ6: 0 | FA6: =EZ6*100/EW6 -> 0 | FB6: =FD6-EZ6 -> 0 | FC6: =FE6-FA6 -> 0 | FD6: =SUM(DZ6,EJ6,ET6) -> 0 | FE6: =FD6*100/EW6 -> 0 | FF6: =FD6*100/(EW6-EX6-EY6) -> 0 | FG6: =COUNTA([1]ВЫВОЗКА!$A$17:$A$25) -> 9 | FH6: =COUNTIF([1]ВЫВОЗКА!$AA$17:$AA$25, "Не оборудован") -> 0 | FI6: =COUNTIF([1]ВЫВОЗКА!$AA$17:$AA$25, "Нет пробега") -> 0 | FJ6: =SUMPRODUCT(--(MMULT(-([1]ВЫВОЗКА!$W$17:$Z$25="+"),{1;1;1;1})>-4))-SUMPRODUCT(--(MMULT(-([1]ВЫВОЗКА!$W$17:$Z$25="+"),{1;1;1;1})=0)) -> 0 | FK6: =FJ6*100/FG6 -> 0 | FL6: =FN6-FJ6 -> 0 | FM6: =FO6-FK6 -> 0 | FN6: =SUMPRODUCT(--(MMULT(-([1]ВЫВОЗКА!$W$17:$Z$25="+"),{1;1;1;1})<0)) -> 0 | FO6: =FN6*100/FG6 -> 0 | FP6: =FN6*100/(FG6-FH6-FI6) -> 0 | FQ6: =COUNTA([1]ДОРОЖНАЯ!$A$17:$A$23) -> 7 | FR6: =COUNTIF([1]ДОРОЖНАЯ!$AA$17:$AA$23, "Не оборудован") -> 0 | FS6: =COUNTIF([1]ДОРОЖНАЯ!$AA$17:$AA$23, "Нет пробега") -> 0 | FT6: =SUMPRODUCT(--(MMULT(-([1]ДОРОЖНАЯ!$W$17:$Z$23="+"),{1;1;1;1})>-4))-SUMPRODUCT(--(MMULT(-([1]ДОРОЖНАЯ!$W$17:$Z$23="+"),{1;1;1;1})=0)) -> 0 | FU6: =FT6*100/FQ6 -> 0 | FV6: =FX6-FT6 -> 0 | FW6: =FY6-FU6 -> 0 | FX6: =SUMPRODUCT(--(MMULT(-([1]ДОРОЖНАЯ!$W$17:$Z$23="+"),{1;1;1;1})<0)) -> 0 | FY6: =FX6*100/FQ6 -> 0 | FZ6: =FX6*100/(FQ6-FR6-FS6) -> 0 | GA6: =COUNTA([1]ВСПОМОГАТЕЛЬНАЯ!$A$17:$A$30) -> 14 | GB6: =COUNTIF([1]ВСПОМОГАТЕЛЬНАЯ!$AA$17:$AA$30, "Не оборудован") -> 0 | GC6: =COUNTIF([1]ВСПОМОГАТЕЛЬНАЯ!$AA$17:$AA$30, "Нет пробега") -> 0 | GD6: =SUMPRODUCT(--(MMULT(-([1]ВСПОМОГАТЕЛЬНАЯ!$W$17:$Z$30="+"),{1;1;1;1})>-4))-SUMPRODUCT(--(MMULT(-([1]ВСПОМОГАТЕЛЬНАЯ!$W$17:$Z$30="+"),{1;1;1;1})=0)) -> 0 | GE6: =GD6*100/GA6 -> 0 | GF6: =GH6-GD6 -> 0 | GG6: =GI6-GE6 -> 0 | GH6: =SUMPRODUCT(--(MMULT(-([1]ВСПОМОГАТЕЛЬНАЯ!$W$17:$Z$30="+"),{1;1;1;1})<0)) -> 0 | GI6: =GH6*100/GA6 -> 0 | GJ6: =GH6*100/(GA6-GB6-GC6) -> 0 | GK6: =SUM(FG6,FQ6,GA6) -> 30 | GL6: 0 | GM6: 0 | GN6: 0 | GO6: =GN6*100/GK6 -> 0 | GP6: =GR6-GN6 -> 0 | GQ6: =GS6-GO6 -> 0 | GR6: =SUM(FN6,FX6,GH6) -> 0 | GS6: =GR6*100/GK6 -> 0 | GT6: =GR6*100/(GK6-GL6-GM6) -> 0
A7: 2 | B7: Сямженское ОП | C7: =COUNTA([1]ВЫВОЗКА!$A$103:$A$108) -> 6 | D7: =COUNTIF([1]ВЫВОЗКА!$G$103:$G$108, "Не оборудован") -> 0 | E7: =COUNTIF([1]ВЫВОЗКА!$G$103:$G$108, "Нет пробега") -> 0 | F7: =SUMPRODUCT(--(MMULT(-([1]ВЫВОЗКА!$C$103:$F$108="+"),{1;1;1;1})>-4))-SUMPRODUCT(--(MMULT(-([1]ВЫВОЗКА!$C$103:$F$108="+"),{1;1;1;1})=0)) -> 0 | G7: 0 | H7: =J7-F7 -> 6 | I7: =K7-G7 -> 100 | J7: =SUMPRODUCT(--(MMULT(-([1]ВЫВОЗКА!$C$103:$F$108="+"),{1;1;1;1})<0)) -> 6 | K7: 100 | L7: =(J7+D7+E7)*100/C7 -> 100 | M7: =COUNTA([1]ДОРОЖНАЯ!$A$86:$A$88) -> 3 | N7: =COUNTIF([1]ДОРОЖНАЯ!$G$86:$G$88, "Не оборудован") -> 0 | O7: =COUNTIF([1]ДОРОЖНАЯ!$G$86:$G$88, "Нет пробега") -> 0 | P7: =SUMPRODUCT(--(MMULT(-([1]ДОРОЖНАЯ!$C$86:$F$88="+"),{1;1;1;1})>-4))-SUMPRODUCT(--(MMULT(-([1]ДОРОЖНАЯ!$C$86:$F$88="+"),{1;1;1;1})=0)) -> 0 | Q7: =P7*100/M7 -> 0 | R7: =T7-P7 -> 2 | S7: =U7-Q7 -> 66.66666667 | T7: =SUMPRODUCT(--(MMULT(-([1]ДОРОЖНАЯ!$C$86:$F$88="+"),{1;1;1;1})<0)) -> 2 | U7: =T7*100/M7 -> 66.66666667 | V7: 66.66666667 | W7: =COUNTA([1]ВСПОМОГАТЕЛЬНАЯ!$A$141:$A$148) -> 8 | X7: =COUNTIF([1]ВСПОМОГАТЕЛЬНАЯ!$G$141:$G$148, "Не оборудован") -> 0 | Y7: =COUNTIF([1]ВСПОМОГАТЕЛЬНАЯ!$G$141:$G$148, "Нет пробега") -> 1 | Z7: =SUMPRODUCT(--(MMULT(-([1]ВСПОМОГАТЕЛЬНАЯ!$C$141:$F$148="+"),{1;1;1;1})>-4))-SUMPRODUCT(--(MMULT(-([1]ВСПОМОГАТЕЛЬНАЯ!$C$141:$F$148="+"),{1;1;1;1})=0)) -> 0 | AA7: =Z7*100/W7 -> 0 | AB7: =AD7-Z7 -> 7 | AC7: =AE7-AA7 -> 87.5 | AD7: =SUMPRODUCT(--(MMULT(-([1]ВСПОМОГАТЕЛЬНАЯ!$C$141:$F$148="+"),{1;1;1;1})<0)) -> 7 | AE7: =AD7*100/W7 -> 87.5 | AF7: 100 | AG7: 17 | AH7: 0 | AI7: =SUM(E7,O7,Y7) -> 1 | AJ7: 0 | AK7: 0 | AL7: =AN7-AJ7 -> 15 | AM7: =AO7-AK7 -> 88.23529412 | AN7: 15 | AO7: 88.23529412 | AP7: 94.11764706 | AQ7: =COUNTA([1]ВЫВОЗКА!$A$103:$A$108) -> 6 | AR7: =COUNTIF([1]ВЫВОЗКА!$L$103:$L$108, "Не оборудован") -> 0 | AS7: =COUNTIF([1]ВЫВОЗКА!$L$103:$L$108, "Нет пробега") -> 0 | AT7: =SUMPRODUCT(--(MMULT(-([1]ВЫВОЗКА!$H$103:$K$108="+"),{1;1;1;1})>-4))-SUMPRODUCT(--(MMULT(-([1]ВЫВОЗКА!$H$103:$K$108="+"),{1;1;1;1})=0)) -> 0 | AU7: 0 | AV7: =AX7-AT7 -> 6 | AW7: =AY7-AU7 -> 100 | AX7: =SUMPRODUCT(--(MMULT(-([1]ВЫВОЗКА!$H$103:$K$108="+"),{1;1;1;1})<0)) -> 6 | AY7: 100 | AZ7: =(AX7+AR7+AS7)*100/AQ7 -> 100 | BA7: =COUNTA([1]ДОРОЖНАЯ!$A$86:$A$88) -> 3 | BB7: =COUNTIF([1]ДОРОЖНАЯ!$L$86:$L$88, "Не оборудован") -> 0 | BC7: =COUNTIF([1]ДОРОЖНАЯ!$L$86:$L$88, "Нет пробега") -> 0 | BD7: =SUMPRODUCT(--(MMULT(-([1]ДОРОЖНАЯ!$H$86:$K$88="+"),{1;1;1;1})>-4))-SUMPRODUCT(--(MMULT(-([1]ДОРОЖНАЯ!$H$86:$K$88="+"),{1;1;1;1})=0)) -> 0 | BE7: =BD7*100/BA7 -> 0 | BF7: =BH7-BD7 -> 3 | BG7: =BI7-BE7 -> 100 | BH7: =SUMPRODUCT(--(MMULT(-([1]ДОРОЖНАЯ!H86:K88="+"),{1;1;1;1})<0)) -> 3 | BI7: =BH7*100/BA7 -> 100 | BJ7: =(BH7+BB7+BC7)*100/BA7 -> 100 | BK7: =COUNTA([1]ВСПОМОГАТЕЛЬНАЯ!$A$141:$A$148) -> 8 | BL7: =COUNTIF([1]ВСПОМОГАТЕЛЬНАЯ!$L$141:$L$148, "Не оборудован") -> 0 | BM7: =COUNTIF([1]ВСПОМОГАТЕЛЬНАЯ!$L$141:$L$148, "Нет пробега") -> 1 | BN7: =SUMPRODUCT(--(MMULT(-([1]ВСПОМОГАТЕЛЬНАЯ!$H$141:$K$148="+"),{1;1;1;1})>-4))-SUMPRODUCT(--(MMULT(-([1]ВСПОМОГАТЕЛЬНАЯ!$H$141:$K$148="+"),{1;1;1;1})=0)) -> 0 | BO7: =BN7*100/BK7 -> 0 | BP7: =BR7-BN7 -> 7 | BQ7: =BS7-BO7 -> 87.5 | BR7: =SUMPRODUCT(--(MMULT(-([1]ВСПОМОГАТЕЛЬНАЯ!H141:K148="+"),{1;1;1;1})<0)) -> 7 | BS7: =BR7*100/BK7 -> 87.5 | BT7: =(BR7+BL7+BM7)*100/BK7 -> 100 | BU7: 17 | BV7: 0 | BW7: 1 | BX7: 0 | BY7: =BX7*100/BU7 -> 0 | BZ7: =CB7-BX7 -> 16 | CA7: =CC7-BY7 -> 94.11764706 | CB7: 16 | CC7: =CB7*100/BU7 -> 94.11764706 | CD7: =(CB7+BV7+BW7)*100/BU7 -> 100 | CE7: =COUNTA([1]ВЫВОЗКА!$A$103:$A$108) -> 6 | CF7: =COUNTIF([1]ВЫВОЗКА!$Q$103:$Q$108, "Не оборудован") -> 0 | CG7: =COUNTIF([1]ВЫВОЗКА!$Q$103:$Q$108, "Нет пробега") -> 0 | CH7: =SUMPRODUCT(--(MMULT(-([1]ВЫВОЗКА!$M$103:$P$108="+"),{1;1;1;1})>-4))-SUMPRODUCT(--(MMULT(-([1]ВЫВОЗКА!$M$103:$P$108="+"),{1;1;1;1})=0)) -> 0 | CI7: 0 | CJ7: =CL7-CH7 -> 0 | CK7: =CM7-CI7 -> 0 | CL7: =SUMPRODUCT(--(MMULT(-([1]ВЫВОЗКА!M103:P108="+"),{1;1;1;1})<0)) -> 0 | CM7: 0 | CN7: =CL7*100/(CE7-CF7-CG7) -> 0 | CO7: =COUNTA([1]ДОРОЖНАЯ!$A$86:$A$88) -> 3 | CP7: =COUNTIF([1]ДОРОЖНАЯ!$Q$86:$Q$88, "Не оборудован") -> 0 | CQ7: =COUNTIF([1]ДОРОЖНАЯ!$Q$86:$Q$88, "Нет пробега") -> 0 | CR7: =SUMPRODUCT(--(MMULT(-([1]ДОРОЖНАЯ!$M$86:$P$88="+"),{1;1;1;1})>-4))-SUMPRODUCT(--(MMULT(-([1]ДОРОЖНАЯ!$M$86:$P$88="+"),{1;1;1;1})=0)) -> 0 | CS7: 0 | CT7: =CV7-CR7 -> 0 | CU7: =CW7-CS7 -> 0 | CV7: =SUMPRODUCT(--(MMULT(-([1]ДОРОЖНАЯ!M86:P88="+"),{1;1;1;1})<0)) -> 0 | CW7: 0 | CX7: =CV7*100/(CO7-CP7-CQ7) -> 0 | CY7: =COUNTA([1]ВСПОМОГАТЕЛЬНАЯ!$A$141:$A$148) -> 8 | CZ7: =COUNTIF([1]ВСПОМОГАТЕЛЬНАЯ!$Q$141:$Q$148, "Не оборудован") -> 0 | DA7: =COUNTIF([1]ВСПОМОГАТЕЛЬНАЯ!$Q$141:$Q$148, "Нет пробега") -> 0 | DB7: =SUMPRODUCT(--(MMULT(-([1]ВСПОМОГАТЕЛЬНАЯ!$M$141:$P$148="+"),{1;1;1;1})>-4))-SUMPRODUCT(--(MMULT(-([1]ВСПОМОГАТЕЛЬНАЯ!$M$141:$P$148="+"),{1;1;1;1})=0)) -> 0 | DC7: 0 | DD7: =DF7-DB7 -> 0 | DE7: =DG7-DC7 -> 0 | DF7: =SUMPRODUCT(--(MMULT(-([1]ВСПОМОГАТЕЛЬНАЯ!M141:P148="+"),{1;1;1;1})<0)) -> 0 | DG7: 0 | DH7: =(DF7+CZ7+DA7)*100/CY7 -> 0 | DI7: 17 | DJ7: 0 | DK7: =SUM(CG7,CQ7,DA7) -> 0 | DL7: 0 | DM7: 0 | DN7: =DP7-DL7 -> 0 | DO7: =DQ7-DM7 -> 0 | DP7: 0 | DQ7: 0 | DR7: =DP7*100/(DI7-DJ7-DK7) -> 0 | DS7: =COUNTA([1]ВЫВОЗКА!$A$103:$A$108) -> 6 | DT7: =COUNTIF([1]ВЫВОЗКА!$V$103:$V$108, "Не оборудован") -> 0 | DU7: =COUNTIF([1]ВЫВОЗКА!$V$103:$V$108, "Нет пробега") -> 0 | DV7: =SUMPRODUCT(--(MMULT(-([1]ВЫВОЗКА!$R$103:$U$108="+"),{1;1;1;1})>-4))-SUMPRODUCT(--(MMULT(-([1]ВЫВОЗКА!$R$103:$U$108="+"),{1;1;1;1})=0)) -> 0 | DW7: 0 | DX7: =DZ7-DV7 -> 0 | DY7: =EA7-DW7 -> 0 | DZ7: =SUMPRODUCT(--(MMULT(-([1]ВЫВОЗКА!R103:U108="+"),{1;1;1;1})<0)) -> 0 | EA7: 0 | EB7: =DZ7*100/(DS7-DT7-DU7) -> 0 | EC7: =COUNTA([1]ДОРОЖНАЯ!$A$86:$A$88) -> 3 | ED7: =COUNTIF([1]ДОРОЖНАЯ!$V$86:$V$88, "Не оборудован") -> 0 | EE7: =COUNTIF([1]ДОРОЖНАЯ!$V$86:$V$88, "Нет пробега") -> 0 | EF7: =SUMPRODUCT(--(MMULT(-([1]ДОРОЖНАЯ!$R$86:$U$88="+"),{1;1;1;1})>-4))-SUMPRODUCT(--(MMULT(-([1]ДОРОЖНАЯ!$R$86:$U$88="+"),{1;1;1;1})=0)) -> 0 | EG7: =EF7*100/EC7 -> 0 | EH7: =EJ7-EF7 -> 0 | EI7: =EK7-EG7 -> 0 | EJ7: =SUMPRODUCT(--(MMULT(-([1]ДОРОЖНАЯ!R86:U88="+"),{1;1;1;1})<0)) -> 0 | EK7: =EJ7*100/EC7 -> 0 | EL7: =EJ7*100/(EC7-ED7-EE7) -> 0 | EM7: =COUNTA([1]ВСПОМОГАТЕЛЬНАЯ!$A$141:$A$148) -> 8 | EN7: =COUNTIF([1]ВСПОМОГАТЕЛЬНАЯ!$V$141:$V$148, "Не оборудован") -> 0 | EO7: =COUNTIF([1]ВСПОМОГАТЕЛЬНАЯ!$V$141:$V$148, "Нет пробега") -> 0 | EP7: =SUMPRODUCT(--(MMULT(-([1]ВСПОМОГАТЕЛЬНАЯ!$R$141:$U$148="+"),{1;1;1;1})>-4))-SUMPRODUCT(--(MMULT(-([1]ВСПОМОГАТЕЛЬНАЯ!$R$141:$U$148="+"),{1;1;1;1})=0)) -> 0 | EQ7: =EP7*100/EM7 -> 0 | ER7: =ET7-EP7 -> 0 | ES7: =EU7-EQ7 -> 0 | ET7: =SUMPRODUCT(--(MMULT(-([1]ВСПОМОГАТЕЛЬНАЯ!R141:U148="+"),{1;1;1;1})<0)) -> 0 | EU7: =ET7*100/EM7 -> 0 | EV7: =ET7*100/(EM7-EN7-EO7) -> 0 | EW7: 17 | EX7: 0 | EY7: 0 | EZ7: 0 | FA7: =EZ7*100/EW7 -> 0 | FB7: =FD7-EZ7 -> 0 | FC7: =FE7-FA7 -> 0 | FD7: 0 | FE7: =FD7*100/EW7 -> 0 | FF7: =FD7*100/(EW7-EX7-EY7) -> 0 | FG7: =COUNTA([1]ВЫВОЗКА!$A$103:$A$108) -> 6 | FH7: =COUNTIF([1]ВЫВОЗКА!$AA$103:$AA$108, "Не оборудован") -> 0 | FI7: =COUNTIF([1]ВЫВОЗКА!$AA$103:$AA$108, "Нет пробега") -> 0 | FJ7: =SUMPRODUCT(--(MMULT(-([1]ВЫВОЗКА!$W$103:$Z$108="+"),{1;1;1;1})>-4))-SUMPRODUCT(--(MMULT(-([1]ВЫВОЗКА!$W$103:$Z$108="+"),{1;1;1;1})=0)) -> 0 | FK7: 0 | FL7: =FN7-FJ7 -> 0 | FM7: =FO7-FK7 -> 0 | FN7: =SUMPRODUCT(--(MMULT(-([1]ВЫВОЗКА!$W$103:$Z$108="+"),{1;1;1;1})<0)) -> 0 | FO7: 0 | FP7: =FN7*100/(FG7-FH7-FI7) -> 0 | FQ7: =COUNTA([1]ДОРОЖНАЯ!$A$86:$A$88) -> 3 | FR7: =COUNTIF([1]ДОРОЖНАЯ!$AA$86:$AA$88, "Не оборудован") -> 0 | FS7: =COUNTIF([1]ДОРОЖНАЯ!$AA$86:$AA$88, "Нет пробега") -> 0 | FT7: =SUMPRODUCT(--(MMULT(-([1]ДОРОЖНАЯ!$W$86:$Z$88="+"),{1;1;1;1})>-4))-SUMPRODUCT(--(MMULT(-([1]ДОРОЖНАЯ!$W$86:$Z$88="+"),{1;1;1;1})=0)) -> 0 | FU7: =FT7*100/FQ7 -> 0 | FV7: =FX7-FT7 -> 0 | FW7: =FY7-FU7 -> 0 | FX7: =SUMPRODUCT(--(MMULT(-([1]ДОРОЖНАЯ!$W$86:$Z$88="+"),{1;1;1;1})<0)) -> 0 | FY7: =FX7*100/FQ7 -> 0 | FZ7: =FX7*100/(FQ7-FR7-FS7) -> 0 | GA7: =COUNTA([1]ВСПОМОГАТЕЛЬНАЯ!$A$141:$A$148) -> 8 | GB7: =COUNTIF([1]ВСПОМОГАТЕЛЬНАЯ!$AA$141:$AA$148, "Не оборудован") -> 0 | GC7: =COUNTIF([1]ВСПОМОГАТЕЛЬНАЯ!$AA$141:$AA$148, "Нет пробега") -> 0 | GD7: =SUMPRODUCT(--(MMULT(-([1]ВСПОМОГАТЕЛЬНАЯ!$W$141:$Z$148="+"),{1;1;1;1})>-4))-SUMPRODUCT(--(MMULT(-([1]ВСПОМОГАТЕЛЬНАЯ!$W$141:$Z$148="+"),{1;1;1;1})=0)) -> 0 | GE7: =GD7*100/GA7 -> 0 | GF7: =GH7-GD7 -> 0 | GG7: =GI7-GE7 -> 0 | GH7: =SUMPRODUCT(--(MMULT(-([1]ВСПОМОГАТЕЛЬНАЯ!$W$141:$Z$148="+"),{1;1;1;1})<0)) -> 0 | GI7: =GH7*100/GA7 -> 0 | GJ7: =GH7*100/(GA7-GB7-GC7) -> 0 | GK7: 17 | GL7: 0 | GM7: 0 | GN7: 0 | GO7: =GN7*100/GK7 -> 0 | GP7: =GR7-GN7 -> 0 | GQ7: =GS7-GO7 -> 0 | GR7: 0 | GS7: =GR7*100/GK7 -> 0 | GT7: =GR7*100/(GK7-GL7-GM7) -> 0
A8: 3 | B8: Коношское ОП | C8: =COUNTA([1]ВЫВОЗКА!$A$153:$A$166) -> 14 | D8: =COUNTIF([1]ВЫВОЗКА!$G$153:$G$166, "Не оборудован") -> 0 | E8: =COUNTIF([1]ВЫВОЗКА!$G$153:$G$166, "Нет пробега") -> 12 | F8: =SUMPRODUCT(--(MMULT(-([1]ВЫВОЗКА!$C$153:$F$166="+"),{1;1;1;1})>-4))-SUMPRODUCT(--(MMULT(-([1]ВЫВОЗКА!$C$153:$F$166="+"),{1;1;1;1})=0)) -> 0 | G8: 0 | H8: =J8-F8 -> 2 | I8: 14.28571429 | J8: =SUMPRODUCT(--(MMULT(-([1]ВЫВОЗКА!$C$153:$F$166="+"),{1;1;1;1})<0)) -> 2 | K8: 14.28571429 | L8: 100 | M8: =COUNTA([1]ДОРОЖНАЯ!$A$127:$A$133) -> 7 | N8: =COUNTIF([1]ДОРОЖНАЯ!$G$127:$G$133, "Не оборудован") -> 0 | O8: =COUNTIF([1]ДОРОЖНАЯ!$G$127:$G$133, "Нет пробега") -> 1 | P8: =SUMPRODUCT(--(MMULT(-([1]ДОРОЖНАЯ!$C$127:$F$133="+"),{1;1;1;1})>-4))-SUMPRODUCT(--(MMULT(-([1]ДОРОЖНАЯ!$C$127:$F$133="+"),{1;1;1;1})=0)) -> 0 | Q8: 0 | R8: =T8-P8 -> 6 | S8: 85.71428571 | T8: =SUMPRODUCT(--(MMULT(-([1]ДОРОЖНАЯ!$C$127:$F$133="+"),{1;1;1;1})<0)) -> 6 | U8: 85.71428571 | V8: 100 | W8: =COUNTA([1]ВСПОМОГАТЕЛЬНАЯ!$A$221:$A$237) -> 17 | X8: =COUNTIF([1]ВСПОМОГАТЕЛЬНАЯ!$G$221:$G$237, "Не оборудован") -> 0 | Y8: =COUNTIF([1]ВСПОМОГАТЕЛЬНАЯ!$G$221:$G$237, "Нет пробега") -> 0 | Z8: =SUMPRODUCT(--(MMULT(-([1]ВСПОМОГАТЕЛЬНАЯ!$C$221:$F$237="+"),{1;1;1;1})>-4))-SUMPRODUCT(--(MMULT(-([1]ВСПОМОГАТЕЛЬНАЯ!$C$221:$F$237="+"),{1;1;1;1})=0)) -> 0 | AA8: 0 | AB8: =AD8-Z8 -> 13 | AC8: 76.47058824 | AD8: =SUMPRODUCT(--(MMULT(-([1]ВСПОМОГАТЕЛЬНАЯ!$C$221:$F$237="+"),{1;1;1;1})<0)) -> 13 | AE8: 76.47058824 | AF8: 76.47058824 | AG8: 38 | AH8: 0 | AI8: 13 | AJ8: 0 | AK8: 0 | AL8: =AN8-AJ8 -> 21 | AM8: 55.26315789 | AN8: 21 | AO8: 55.26315789 | AP8: 89.47368421 | AQ8: =COUNTA([1]ВЫВОЗКА!$A$153:$A$166) -> 14 | AR8: =COUNTIF([1]ВЫВОЗКА!$L$153:$L$166, "Не оборудован") -> 0 | AS8: =COUNTIF([1]ВЫВОЗКА!$L$153:$L$166, "Нет пробега") -> 13 | AT8: =SUMPRODUCT(--(MMULT(-([1]ВЫВОЗКА!$H$153:$K$166="+"),{1;1;1;1})>-4))-SUMPRODUCT(--(MMULT(-([1]ВЫВОЗКА!$H$153:$K$166="+"),{1;1;1;1})=0)) -> 0 | AU8: 0 | AV8: =AX8-AT8 -> 1 | AW8: 7.142857143 | AX8: =SUMPRODUCT(--(MMULT(-([1]ВЫВОЗКА!$H$153:$K$166="+"),{1;1;1;1})<0)) -> 1 | AY8: 7.142857143 | AZ8: 100 | BA8: =COUNTA([1]ДОРОЖНАЯ!$A$127:$A$133) -> 7 | BB8: =COUNTIF([1]ДОРОЖНАЯ!$L$127:$L$133, "Не оборудован") -> 0 | BC8: =COUNTIF([1]ДОРОЖНАЯ!$L$127:$L$133, "Нет пробега") -> 1 | BD8: =SUMPRODUCT(--(MMULT(-([1]ДОРОЖНАЯ!$H$127:$K$133="+"),{1;1;1;1})>-4))-SUMPRODUCT(--(MMULT(-([1]ДОРОЖНАЯ!$H$127:$K$133="+"),{1;1;1;1})=0)) -> 0 | BE8: 0 | BF8: =BH8-BD8 -> 2 | BG8: 28.57142857 | BH8: =SUMPRODUCT(--(MMULT(-([1]ДОРОЖНАЯ!H127:K133="+"),{1;1;1;1})<0)) -> 2 | BI8: 28.57142857 | BJ8: 42.85714286 | BK8: =COUNTA([1]ВСПОМОГАТЕЛЬНАЯ!$A$221:$A$237) -> 17 | BL8: =COUNTIF([1]ВСПОМОГАТЕЛЬНАЯ!$L$221:$L$237, "Не оборудован") -> 0 | BM8: =COUNTIF([1]ВСПОМОГАТЕЛЬНАЯ!$L$221:$L$237, "Нет пробега") -> 1 | BN8: =SUMPRODUCT(--(MMULT(-([1]ВСПОМОГАТЕЛЬНАЯ!$H$221:$K$237="+"),{1;1;1;1})>-4))-SUMPRODUCT(--(MMULT(-([1]ВСПОМОГАТЕЛЬНАЯ!$H$221:$K$237="+"),{1;1;1;1})=0)) -> 0 | BO8: 0 | BP8: =BR8-BN8 -> 12 | BQ8: 70.58823529 | BR8: =SUMPRODUCT(--(MMULT(-([1]ВСПОМОГАТЕЛЬНАЯ!H221:K237="+"),{1;1;1;1})<0)) -> 12 | BS8: 70.58823529 | BT8: =(BR8+BL8+BM8)*100/BK8 -> 76.47058824 | BU8: 38 | BV8: 0 | BW8: 15 | BX8: 0 | BY8: 0 | BZ8: =CB8-BX8 -> 15 | CA8: 39.47368421 | CB8: 15 | CC8: 39.47368421 | CD8: 78.94736842 | CE8: =COUNTA([1]ВЫВОЗКА!$A$153:$A$166) -> 14 | CF8: =COUNTIF([1]ВЫВОЗКА!$Q$153:$Q$166, "Не оборудован") -> 0 | CG8: =COUNTIF([1]ВЫВОЗКА!$Q$153:$Q$166, "Нет пробега") -> 0 | CH8: =SUMPRODUCT(--(MMULT(-([1]ВЫВОЗКА!$M$153:$P$166="+"),{1;1;1;1})>-4))-SUMPRODUCT(--(MMULT(-([1]ВЫВОЗКА!$M$153:$P$166="+"),{1;1;1;1})=0)) -> 0 | CI8: 0 | CJ8: =CL8-CH8 -> 0 | CK8: 0 | CL8: =SUMPRODUCT(--(MMULT(-([1]ВЫВОЗКА!M153:P166="+"),{1;1;1;1})<0)) -> 0 | CM8: 0 | CN8: 0 | CO8: =COUNTA([1]ДОРОЖНАЯ!$A$127:$A$133) -> 7 | CP8: =COUNTIF([1]ДОРОЖНАЯ!$Q$127:$Q$133, "Не оборудован") -> 0 | CQ8: =COUNTIF([1]ДОРОЖНАЯ!$Q$127:$Q$133, "Нет пробега") -> 0 | CR8: =SUMPRODUCT(--(MMULT(-([1]ДОРОЖНАЯ!$M$127:$P$133="+"),{1;1;1;1})>-4))-SUMPRODUCT(--(MMULT(-([1]ДОРОЖНАЯ!$M$127:$P$133="+"),{1;1;1;1})=0)) -> 0 | CS8: 0 | CT8: =CV8-CR8 -> 0 | CU8: 0 | CV8: =SUMPRODUCT(--(MMULT(-([1]ДОРОЖНАЯ!M127:P133="+"),{1;1;1;1})<0)) -> 0 | CW8: 0 | CX8: 0 | CY8: =COUNTA([1]ВСПОМОГАТЕЛЬНАЯ!$A$221:$A$237) -> 17 | CZ8: =COUNTIF([1]ВСПОМОГАТЕЛЬНАЯ!$Q$221:$Q$237, "Не оборудован") -> 0 | DA8: =COUNTIF([1]ВСПОМОГАТЕЛЬНАЯ!$Q$221:$Q$237, "Нет пробега") -> 0 | DB8: =SUMPRODUCT(--(MMULT(-([1]ВСПОМОГАТЕЛЬНАЯ!$M$221:$P$237="+"),{1;1;1;1})>-4))-SUMPRODUCT(--(MMULT(-([1]ВСПОМОГАТЕЛЬНАЯ!$M$221:$P$237="+"),{1;1;1;1})=0)) -> 0 | DC8: 0 | DD8: =DF8-DB8 -> 0 | DE8: 0 | DF8: =SUMPRODUCT(--(MMULT(-([1]ВСПОМОГАТЕЛЬНАЯ!M221:P237="+"),{1;1;1;1})<0)) -> 0 | DG8: 0 | DH8: =DF8*100/(CY8-CZ8-DA8) -> 0 | DI8: 38 | DJ8: 0 | DK8: 0 | DL8: 0 | DM8: 0 | DN8: =DP8-DL8 -> 0 | DO8: 0 | DP8: 0 | DQ8: 0 | DR8: 0 | DS8: =COUNTA([1]ВЫВОЗКА!$A$153:$A$166) -> 14 | DT8: =COUNTIF([1]ВЫВОЗКА!$V$153:$V$166, "Не оборудован") -> 0 | DU8: =COUNTIF([1]ВЫВОЗКА!$V$153:$V$166, "Нет пробега") -> 0 | DV8: =SUMPRODUCT(--(MMULT(-([1]ВЫВОЗКА!$R$153:$U$166="+"),{1;1;1;1})>-4))-SUMPRODUCT(--(MMULT(-([1]ВЫВОЗКА!$R$153:$U$166="+"),{1;1;1;1})=0)) -> 0 | DW8: 0 | DX8: =DZ8-DV8 -> 0 | DY8: 0 | DZ8: =SUMPRODUCT(--(MMULT(-([1]ВЫВОЗКА!R153:U166="+"),{1;1;1;1})<0)) -> 0 | EA8: 0 | EB8: 0 | EC8: =COUNTA([1]ДОРОЖНАЯ!$A$127:$A$133) -> 7 | ED8: =COUNTIF([1]ДОРОЖНАЯ!$V$127:$V$133, "Не оборудован") -> 0 | EE8: =COUNTIF([1]ДОРОЖНАЯ!$V$127:$V$133, "Нет пробега") -> 0 | EF8: =SUMPRODUCT(--(MMULT(-([1]ДОРОЖНАЯ!$R$127:$U$133="+"),{1;1;1;1})>-4))-SUMPRODUCT(--(MMULT(-([1]ДОРОЖНАЯ!$R$127:$U$133="+"),{1;1;1;1})=0)) -> 0 | EG8: 0 | EH8: =EJ8-EF8 -> 0 | EI8: 0 | EJ8: =SUMPRODUCT(--(MMULT(-([1]ДОРОЖНАЯ!R127:U133="+"),{1;1;1;1})<0)) -> 0 | EK8: 0 | EL8: 0 | EM8: =COUNTA([1]ВСПОМОГАТЕЛЬНАЯ!$A$221:$A$237) -> 17 | EN8: =COUNTIF([1]ВСПОМОГАТЕЛЬНАЯ!$V$221:$V$237, "Не оборудован") -> 0 | EO8: =COUNTIF([1]ВСПОМОГАТЕЛЬНАЯ!$V$221:$V$237, "Нет пробега") -> 0 | EP8: =SUMPRODUCT(--(MMULT(-([1]ВСПОМОГАТЕЛЬНАЯ!$R$221:$U$237="+"),{1;1;1;1})>-4))-SUMPRODUCT(--(MMULT(-([1]ВСПОМОГАТЕЛЬНАЯ!$R$221:$U$237="+"),{1;1;1;1})=0)) -> 0 | EQ8: 0 | ER8: =ET8-EP8 -> 0 | ES8: 0 | ET8: =SUMPRODUCT(--(MMULT(-([1]ВСПОМОГАТЕЛЬНАЯ!R221:U237="+"),{1;1;1;1})<0)) -> 0 | EU8: 0 | EV8: 0 | EW8: 38 | EX8: 0 | EY8: 0 | EZ8: 0 | FA8: 0 | FB8: =FD8-EZ8 -> 0 | FC8: 0 | FD8: 0 | FE8: 0 | FF8: 0 | FG8: =COUNTA([1]ВЫВОЗКА!$A$153:$A$166) -> 14 | FH8: =COUNTIF([1]ВЫВОЗКА!$AA$153:$AA$166, "Не оборудован") -> 0 | FI8: =COUNTIF([1]ВЫВОЗКА!$AA$153:$AA$166, "Нет пробега") -> 0 | FJ8: =SUMPRODUCT(--(MMULT(-([1]ВЫВОЗКА!$W$153:$Z$166="+"),{1;1;1;1})>-4))-SUMPRODUCT(--(MMULT(-([1]ВЫВОЗКА!$W$153:$Z$166="+"),{1;1;1;1})=0)) -> 0 | FK8: =FJ8*100/FG8 -> 0 | FL8: =FN8-FJ8 -> 0 | FM8: 0 | FN8: =SUMPRODUCT(--(MMULT(-([1]ВЫВОЗКА!$W$153:$Z$166="+"),{1;1;1;1})<0)) -> 0 | FO8: =FN8*100/FG8 -> 0 | FP8: 0 | FQ8: =COUNTA([1]ДОРОЖНАЯ!$A$127:$A$133) -> 7 | FR8: =COUNTIF([1]ДОРОЖНАЯ!$AA$127:$AA$133, "Не оборудован") -> 0 | FS8: =COUNTIF([1]ДОРОЖНАЯ!$AA$127:$AA$133, "Нет пробега") -> 0 | FT8: =SUMPRODUCT(--(MMULT(-([1]ДОРОЖНАЯ!$W$127:$Z$133="+"),{1;1;1;1})>-4))-SUMPRODUCT(--(MMULT(-([1]ДОРОЖНАЯ!$W$127:$Z$133="+"),{1;1;1;1})=0)) -> 0 | FU8: 0 | FV8: =FX8-FT8 -> 0 | FW8: 0 | FX8: =SUMPRODUCT(--(MMULT(-([1]ДОРОЖНАЯ!$W$127:$Z$133="+"),{1;1;1;1})<0)) -> 0 | FY8: 0 | FZ8: 0 | GA8: =COUNTA([1]ВСПОМОГАТЕЛЬНАЯ!$A$221:$A$237) -> 17 | GB8: =COUNTIF([1]ВСПОМОГАТЕЛЬНАЯ!$AA$221:$AA$237, "Не оборудован") -> 0 | GC8: =COUNTIF([1]ВСПОМОГАТЕЛЬНАЯ!$AA$221:$AA$237, "Нет пробега") -> 0 | GD8: =SUMPRODUCT(--(MMULT(-([1]ВСПОМОГАТЕЛЬНАЯ!$W$221:$Z$237="+"),{1;1;1;1})>-4))-SUMPRODUCT(--(MMULT(-([1]ВСПОМОГАТЕЛЬНАЯ!$W$221:$Z$237="+"),{1;1;1;1})=0)) -> 0 | GE8: 0 | GF8: =GH8-GD8 -> 0 | GG8: 0 | GH8: =SUMPRODUCT(--(MMULT(-([1]ВСПОМОГАТЕЛЬНАЯ!$W$221:$Z$237="+"),{1;1;1;1})<0)) -> 0 | GI8: 0 | GJ8: 0 | GK8: 38 | GL8: 0 | GM8: 0 | GN8: 0 | GO8: 0 | GP8: =GR8-GN8 -> 0 | GQ8: 0 | GR8: 0 | GS8: 0 | GT8: 0
A9: 4 | B9: Дмитриевское ОП | C9: =COUNTA([1]ВЫВОЗКА!$A$139:$A$150) -> 12 | D9: =COUNTIF([1]ВЫВОЗКА!$G$139:$G$150, "Не оборудован") -> 0 | E9: =COUNTIF([1]ВЫВОЗКА!$G$139:$G$150, "Нет пробега") -> 3 | F9: =SUMPRODUCT(--(MMULT(-([1]ВЫВОЗКА!$C$139:$F$150="+"),{1;1;1;1})>-4))-SUMPRODUCT(--(MMULT(-([1]ВЫВОЗКА!$C$139:$F$150="+"),{1;1;1;1})=0)) -> 0 | G9: 0 | H9: 9 | I9: 75 | J9: =SUMPRODUCT(--(MMULT(-([1]ВЫВОЗКА!$C$139:$F$150="+"),{1;1;1;1})<0)) -> 9 | K9: 75 | L9: 100 | M9: =COUNTA([1]ДОРОЖНАЯ!$A$108:$A$124) -> 17 | N9: =COUNTIF([1]ДОРОЖНАЯ!$G$108:$G$124, "Не оборудован") -> 0 | O9: =COUNTIF([1]ДОРОЖНАЯ!$G$108:$G$124, "Нет пробега") -> 1 | P9: =SUMPRODUCT(--(MMULT(-([1]ДОРОЖНАЯ!$C$108:$F$124="+"),{1;1;1;1})>-4))-SUMPRODUCT(--(MMULT(-([1]ДОРОЖНАЯ!$C$108:$F$124="+"),{1;1;1;1})=0)) -> 0 | Q9: 0 | R9: 12 | S9: 70.58823529 | T9: =SUMPRODUCT(--(MMULT(-([1]ДОРОЖНАЯ!$C$108:$F$124="+"),{1;1;1;1})<0)) -> 12 | U9: 70.58823529 | V9: 76.47058824 | W9: =COUNTA([1]ВСПОМОГАТЕЛЬНАЯ!$A$184:$A$218) -> 35 | X9: =COUNTIF([1]ВСПОМОГАТЕЛЬНАЯ!$G$184:$G$218, "Не оборудован") -> 0 | Y9: =COUNTIF([1]ВСПОМОГАТЕЛЬНАЯ!$G$184:$G$218, "Нет пробега") -> 6 | Z9: =SUMPRODUCT(--(MMULT(-([1]ВСПОМОГАТЕЛЬНАЯ!$C$184:$F$218="+"),{1;1;1;1})>-4))-SUMPRODUCT(--(MMULT(-([1]ВСПОМОГАТЕЛЬНАЯ!$C$184:$F$218="+"),{1;1;1;1})=0)) -> 0 | AA9: 0 | AB9: 19 | AC9: 54.28571429 | AD9: =SUMPRODUCT(--(MMULT(-([1]ВСПОМОГАТЕЛЬНАЯ!$C$184:$F$218="+"),{1;1;1;1})<0)) -> 19 | AE9: 54.28571429 | AF9: 71.42857143 | AG9: 64 | AH9: 0 | AI9: 10 | AJ9: 0 | AK9: 0 | AL9: 40 | AM9: 62.5 | AN9: 40 | AO9: 62.5 | AP9: 78.125 | AQ9: =COUNTA([1]ВЫВОЗКА!$A$139:$A$150) -> 12 | AR9: =COUNTIF([1]ВЫВОЗКА!$L$139:$L$150, "Не оборудован") -> 0 | AS9: =COUNTIF([1]ВЫВОЗКА!$L$139:$L$150, "Нет пробега") -> 1 | AT9: =SUMPRODUCT(--(MMULT(-([1]ВЫВОЗКА!$H$139:$K$150="+"),{1;1;1;1})>-4))-SUMPRODUCT(--(MMULT(-([1]ВЫВОЗКА!$H$139:$K$150="+"),{1;1;1;1})=0)) -> 0 | AU9: 0 | AV9: 9 | AW9: 75 | AX9: =SUMPRODUCT(--(MMULT(-([1]ВЫВОЗКА!$H$139:$K$150="+"),{1;1;1;1})<0)) -> 9 | AY9: 75 | AZ9: 83.33333333 | BA9: =COUNTA([1]ДОРОЖНАЯ!$A$108:$A$124) -> 17 | BB9: =COUNTIF([1]ДОРОЖНАЯ!$L$108:$L$124, "Не оборудован") -> 0 | BC9: =COUNTIF([1]ДОРОЖНАЯ!$L$108:$L$124, "Нет пробега") -> 2 | BD9: =SUMPRODUCT(--(MMULT(-([1]ДОРОЖНАЯ!$H$108:$K$124="+"),{1;1;1;1})>-4))-SUMPRODUCT(--(MMULT(-([1]ДОРОЖНАЯ!$H$108:$K$124="+"),{1;1;1;1})=0)) -> 0 | BE9: 0 | BF9: 11 | BG9: 64.70588235 | BH9: =SUMPRODUCT(--(MMULT(-([1]ДОРОЖНАЯ!H108:K124="+"),{1;1;1;1})<0)) -> 11 | BI9: 64.70588235 | BJ9: 76.47058824 | BK9: =COUNTA([1]ВСПОМОГАТЕЛЬНАЯ!$A$184:$A$218) -> 35 | BL9: =COUNTIF([1]ВСПОМОГАТЕЛЬНАЯ!$L$184:$L$218, "Не оборудован") -> 0 | BM9: =COUNTIF([1]ВСПОМОГАТЕЛЬНАЯ!$L$184:$L$218, "Нет пробега") -> 5 | BN9: =SUMPRODUCT(--(MMULT(-([1]ВСПОМОГАТЕЛЬНАЯ!$H$184:$K$218="+"),{1;1;1;1})>-4))-SUMPRODUCT(--(MMULT(-([1]ВСПОМОГАТЕЛЬНАЯ!$H$184:$K$218="+"),{1;1;1;1})=0)) -> 0 | BO9: 0 | BP9: 21 | BQ9: 60 | BR9: =SUMPRODUCT(--(MMULT(-([1]ВСПОМОГАТЕЛЬНАЯ!H184:K218="+"),{1;1;1;1})<0)) -> 21 | BS9: 60 | BT9: 74.28571429 | BU9: 64 | BV9: 0 | BW9: 8 | BX9: 0 | BY9: 0 | BZ9: 41 | CA9: 64.0625 | CB9: 41 | CC9: 64.0625 | CD9: 76.5625 | CE9: =COUNTA([1]ВЫВОЗКА!$A$139:$A$150) -> 12 | CF9: =COUNTIF([1]ВЫВОЗКА!$Q$139:$Q$150, "Не оборудован") -> 0 | CG9: =COUNTIF([1]ВЫВОЗКА!$Q$139:$Q$150, "Нет пробега") -> 0 | CH9: =SUMPRODUCT(--(MMULT(-([1]ВЫВОЗКА!$M$139:$P$150="+"),{1;1;1;1})>-4))-SUMPRODUCT(--(MMULT(-([1]ВЫВОЗКА!$M$139:$P$150="+"),{1;1;1;1})=0)) -> 0 | CI9: 0 | CJ9: 0 | CK9: 0 | CL9: =SUMPRODUCT(--(MMULT(-([1]ВЫВОЗКА!M139:P150="+"),{1;1;1;1})<0)) -> 0 | CM9: 0 | CN9: 0 | CO9: =COUNTA([1]ДОРОЖНАЯ!$A$108:$A$124) -> 17 | CP9: =COUNTIF([1]ДОРОЖНАЯ!$Q$108:$Q$124, "Не оборудован") -> 0 | CQ9: =COUNTIF([1]ДОРОЖНАЯ!$Q$108:$Q$124, "Нет пробега") -> 0 | CR9: =SUMPRODUCT(--(MMULT(-([1]ДОРОЖНАЯ!$M$108:$P$124="+"),{1;1;1;1})>-4))-SUMPRODUCT(--(MMULT(-([1]ДОРОЖНАЯ!$M$108:$P$124="+"),{1;1;1;1})=0)) -> 0 | CS9: 0 | CT9: 0 | CU9: 0 | CV9: =SUMPRODUCT(--(MMULT(-([1]ДОРОЖНАЯ!M108:P124="+"),{1;1;1;1})<0)) -> 0 | CW9: 0 | CX9: 0 | CY9: =COUNTA([1]ВСПОМОГАТЕЛЬНАЯ!$A$184:$A$218) -> 35 | CZ9: =COUNTIF([1]ВСПОМОГАТЕЛЬНАЯ!$Q$184:$Q$218, "Не оборудован") -> 0 | DA9: =COUNTIF([1]ВСПОМОГАТЕЛЬНАЯ!$Q$184:$Q$218, "Нет пробега") -> 0 | DB9: =SUMPRODUCT(--(MMULT(-([1]ВСПОМОГАТЕЛЬНАЯ!$M$184:$P$218="+"),{1;1;1;1})>-4))-SUMPRODUCT(--(MMULT(-([1]ВСПОМОГАТЕЛЬНАЯ!$M$184:$P$218="+"),{1;1;1;1})=0)) -> 0 | DC9: 0 | DD9: 0 | DE9: 0 | DF9: =SUMPRODUCT(--(MMULT(-([1]ВСПОМОГАТЕЛЬНАЯ!M184:P218="+"),{1;1;1;1})<0)) -> 0 | DG9: 0 | DH9: 0 | DI9: 64 | DJ9: 0 | DK9: 0 | DL9: 0 | DM9: 0 | DN9: 0 | DO9: 0 | DP9: 0 | DQ9: 0 | DR9: 0 | DS9: =COUNTA([1]ВЫВОЗКА!$A$139:$A$150) -> 12 | DT9: =COUNTIF([1]ВЫВОЗКА!$V$139:$V$150, "Не оборудован") -> 0 | DU9: =COUNTIF([1]ВЫВОЗКА!$V$139:$V$150, "Нет пробега") -> 0 | DV9: =SUMPRODUCT(--(MMULT(-([1]ВЫВОЗКА!$R$139:$U$150="+"),{1;1;1;1})>-4))-SUMPRODUCT(--(MMULT(-([1]ВЫВОЗКА!$R$139:$U$150="+"),{1;1;1;1})=0)) -> 0 | DW9: 0 | DX9: 0 | DY9: 0 | DZ9: =SUMPRODUCT(--(MMULT(-([1]ВЫВОЗКА!R139:U150="+"),{1;1;1;1})<0)) -> 0 | EA9: 0 | EB9: 0 | EC9: =COUNTA([1]ДОРОЖНАЯ!$A$108:$A$124) -> 17 | ED9: =COUNTIF([1]ДОРОЖНАЯ!$V$108:$V$124, "Не оборудован") -> 0 | EE9: =COUNTIF([1]ДОРОЖНАЯ!$V$108:$V$124, "Нет пробега") -> 0 | EF9: =SUMPRODUCT(--(MMULT(-([1]ДОРОЖНАЯ!$R$108:$U$124="+"),{1;1;1;1})>-4))-SUMPRODUCT(--(MMULT(-([1]ДОРОЖНАЯ!$R$108:$U$124="+"),{1;1;1;1})=0)) -> 0 | EG9: 0 | EH9: 0 | EI9: 0 | EJ9: =SUMPRODUCT(--(MMULT(-([1]ДОРОЖНАЯ!R108:U124="+"),{1;1;1;1})<0)) -> 0 | EK9: 0 | EL9: 0 | EM9: =COUNTA([1]ВСПОМОГАТЕЛЬНАЯ!$A$184:$A$218) -> 35 | EN9: =COUNTIF([1]ВСПОМОГАТЕЛЬНАЯ!$V$184:$V$218, "Не оборудован") -> 0 | EO9: =COUNTIF([1]ВСПОМОГАТЕЛЬНАЯ!$V$184:$V$218, "Нет пробега") -> 0 | EP9: =SUMPRODUCT(--(MMULT(-([1]ВСПОМОГАТЕЛЬНАЯ!$R$184:$U$218="+"),{1;1;1;1})>-4))-SUMPRODUCT(--(MMULT(-([1]ВСПОМОГАТЕЛЬНАЯ!$R$184:$U$218="+"),{1;1;1;1})=0)) -> 0 | EQ9: 0 | ER9: 0 | ES9: 0 | ET9: =SUMPRODUCT(--(MMULT(-([1]ВСПОМОГАТЕЛЬНАЯ!R184:U218="+"),{1;1;1;1})<0)) -> 0 | EU9: 0 | EV9: 0 | EW9: 64 | EX9: 0 | EY9: 0 | EZ9: 0 | FA9: 0 | FB9: 0 | FC9: 0 | FD9: 0 | FE9: 0 | FF9: 0 | FG9: =COUNTA([1]ВЫВОЗКА!$A$139:$A$150) -> 12 | FH9: =COUNTIF([1]ВЫВОЗКА!$AA$139:$AA$150, "Не оборудован") -> 0 | FI9: =COUNTIF([1]ВЫВОЗКА!$AA$139:$AA$150, "Нет пробега") -> 0 | FJ9: =SUMPRODUCT(--(MMULT(-([1]ВЫВОЗКА!$W$139:$Z$150="+"),{1;1;1;1})>-4))-SUMPRODUCT(--(MMULT(-([1]ВЫВОЗКА!$W$139:$Z$150="+"),{1;1;1;1})=0)) -> 0 | FK9: 0 | FL9: 0 | FM9: 0 | FN9: =SUMPRODUCT(--(MMULT(-([1]ВЫВОЗКА!$W$139:$Z$150="+"),{1;1;1;1})<0)) -> 0 | FO9: 0 | FP9: 0 | FQ9: =COUNTA([1]ДОРОЖНАЯ!$A$108:$A$124) -> 17 | FR9: =COUNTIF([1]ДОРОЖНАЯ!$AA$108:$AA$124, "Не оборудован") -> 0 | FS9: =COUNTIF([1]ДОРОЖНАЯ!$AA$108:$AA$124, "Нет пробега") -> 0 | FT9: =SUMPRODUCT(--(MMULT(-([1]ДОРОЖНАЯ!$W$108:$Z$124="+"),{1;1;1;1})>-4))-SUMPRODUCT(--(MMULT(-([1]ДОРОЖНАЯ!$W$108:$Z$124="+"),{1;1;1;1})=0)) -> 0 | FU9: 0 | FV9: 0 | FW9: 0 | FX9: =SUMPRODUCT(--(MMULT(-([1]ДОРОЖНАЯ!$W$108:$Z$124="+"),{1;1;1;1})<0)) -> 0 | FY9: 0 | FZ9: 0 | GA9: =COUNTA([1]ВСПОМОГАТЕЛЬНАЯ!$A$184:$A$218) -> 35 | GB9: =COUNTIF([1]ВСПОМОГАТЕЛЬНАЯ!$AA$184:$AA$218, "Не оборудован") -> 0 | GC9: =COUNTIF([1]ВСПОМОГАТЕЛЬНАЯ!$AA$184:$AA$218, "Нет пробега") -> 0 | GD9: =SUMPRODUCT(--(MMULT(-([1]ВСПОМОГАТЕЛЬНАЯ!$W$184:$Z$218="+"),{1;1;1;1})>-4))-SUMPRODUCT(--(MMULT(-([1]ВСПОМОГАТЕЛЬНАЯ!$W$184:$Z$218="+"),{1;1;1;1})=0)) -> 0 | GE9: 0 | GF9: 0 | GG9: 0 | GH9: =SUMPRODUCT(--(MMULT(-([1]ВСПОМОГАТЕЛЬНАЯ!$W$184:$Z$218="+"),{1;1;1;1})<0)) -> 0 | GI9: 0 | GJ9: 0 | GK9: 64 | GL9: 0 | GM9: 0 | GN9: 0 | GO9: 0 | GP9: 0 | GQ9: 0 | GR9: 0 | GS9: 0 | GT9: 0
A10: 5 | B10: Шалакушское ОП | C10: =COUNTA([1]ВЫВОЗКА!$A$178:$A$191) -> 14 | D10: =COUNTIF([1]ВЫВОЗКА!$G$178:$G$191, "Не оборудован") -> 0 | E10: =COUNTIF([1]ВЫВОЗКА!$G$178:$G$191, "Нет пробега") -> 12 | F10: =SUMPRODUCT(--(MMULT(-([1]ВЫВОЗКА!$C$178:$F$191="+"),{1;1;1;1})>-4))-SUMPRODUCT(--(MMULT(-([1]ВЫВОЗКА!$C$178:$F$191="+"),{1;1;1;1})=0)) -> 0 | G10: 0 | H10: 2 | I10: 14.28571429 | J10: =SUMPRODUCT(--(MMULT(-([1]ВЫВОЗКА!$C$178:$F$191="+"),{1;1;1;1})<0)) -> 2 | K10: 14.28571429 | L10: 100 | M10: =COUNTA([1]ДОРОЖНАЯ!$A$147:$A$153) -> 7 | N10: =COUNTIF([1]ДОРОЖНАЯ!$G$147:$G$153, "Не оборудован") -> 0 | O10: =COUNTIF([1]ДОРОЖНАЯ!$G$147:$G$153, "Нет пробега") -> 5 | P10: =SUMPRODUCT(--(MMULT(-([1]ДОРОЖНАЯ!$C$147:$F$153="+"),{1;1;1;1})>-4))-SUMPRODUCT(--(MMULT(-([1]ДОРОЖНАЯ!$C$147:$F$153="+"),{1;1;1;1})=0)) -> 0 | Q10: 0 | R10: 2 | S10: 28.57142857 | T10: =SUMPRODUCT(--(MMULT(-([1]ДОРОЖНАЯ!$C$147:$F$153="+"),{1;1;1;1})<0)) -> 2 | U10: 28.57142857 | V10: 100 | W10: =COUNTA([1]ВСПОМОГАТЕЛЬНАЯ!$A$253:$A$273) -> 21 | X10: =COUNTIF([1]ВСПОМОГАТЕЛЬНАЯ!$G$253:$G$273, "Не оборудован") -> 0 | Y10: =COUNTIF([1]ВСПОМОГАТЕЛЬНАЯ!$G$253:$G$273, "Нет пробега") -> 7 | Z10: =SUMPRODUCT(--(MMULT(-([1]ВСПОМОГАТЕЛЬНАЯ!$C$253:$F$273="+"),{1;1;1;1})>-4))-SUMPRODUCT(--(MMULT(-([1]ВСПОМОГАТЕЛЬНАЯ!$C$253:$F$273="+"),{1;1;1;1})=0)) -> 0 | AA10: 0 | AB10: 14 | AC10: 66.66666667 | AD10: =SUMPRODUCT(--(MMULT(-([1]ВСПОМОГАТЕЛЬНАЯ!$C$253:$F$273="+"),{1;1;1;1})<0)) -> 14 | AE10: 66.66666667 | AF10: 100 | AG10: 42 | AH10: 0 | AI10: 24 | AJ10: 0 | AK10: 0 | AL10: 18 | AM10: 42.85714286 | AN10: 18 | AO10: 42.85714286 | AP10: 100 | AQ10: =COUNTA([1]ВЫВОЗКА!$A$178:$A$191) -> 14 | AR10: =COUNTIF([1]ВЫВОЗКА!$L$178:$L$191, "Не оборудован") -> 0 | AS10: =COUNTIF([1]ВЫВОЗКА!$L$178:$L$191, "Нет пробега") -> 9 | AT10: =SUMPRODUCT(--(MMULT(-([1]ВЫВОЗКА!$H$178:$K$191="+"),{1;1;1;1})>-4))-SUMPRODUCT(--(MMULT(-([1]ВЫВОЗКА!$H$178:$K$191="+"),{1;1;1;1})=0)) -> 0 | AU10: 0 | AV10: 4 | AW10: 28.57142857 | AX10: =SUMPRODUCT(--(MMULT(-([1]ВЫВОЗКА!$H$178:$K$191="+"),{1;1;1;1})<0)) -> 4 | AY10: 28.57142857 | AZ10: 92.85714286 | BA10: =COUNTA([1]ДОРОЖНАЯ!$A$147:$A$153) -> 7 | BB10: =COUNTIF([1]ДОРОЖНАЯ!$L$147:$L$153, "Не оборудован") -> 0 | BC10: =COUNTIF([1]ДОРОЖНАЯ!$L$147:$L$153, "Нет пробега") -> 3 | BD10: =SUMPRODUCT(--(MMULT(-([1]ДОРОЖНАЯ!$H$147:$K$153="+"),{1;1;1;1})>-4))-SUMPRODUCT(--(MMULT(-([1]ДОРОЖНАЯ!$H$147:$K$153="+"),{1;1;1;1})=0)) -> 0 | BE10: 0 | BF10: 4 | BG10: 57.14285714 | BH10: =SUMPRODUCT(--(MMULT(-([1]ДОРОЖНАЯ!H147:K153="+"),{1;1;1;1})<0)) -> 4 | BI10: 57.14285714 | BJ10: 100 | BK10: =COUNTA([1]ВСПОМОГАТЕЛЬНАЯ!$A$253:$A$273) -> 21 | BL10: =COUNTIF([1]ВСПОМОГАТЕЛЬНАЯ!$L$253:$L$273, "Не оборудован") -> 0 | BM10: =COUNTIF([1]ВСПОМОГАТЕЛЬНАЯ!$L$253:$L$273, "Нет пробега") -> 5 | BN10: =SUMPRODUCT(--(MMULT(-([1]ВСПОМОГАТЕЛЬНАЯ!$H$253:$K$273="+"),{1;1;1;1})>-4))-SUMPRODUCT(--(MMULT(-([1]ВСПОМОГАТЕЛЬНАЯ!$H$253:$K$273="+"),{1;1;1;1})=0)) -> 0 | BO10: 0 | BP10: 16 | BQ10: 76.19047619 | BR10: =SUMPRODUCT(--(MMULT(-([1]ВСПОМОГАТЕЛЬНАЯ!H253:K273="+"),{1;1;1;1})<0)) -> 16 | BS10: 76.19047619 | BT10: 100 | BU10: 42 | BV10: 0 | BW10: 17 | BX10: 0 | BY10: 0 | BZ10: 24 | CA10: 57.14285714 | CB10: 24 | CC10: 57.14285714 | CD10: 97.61904762 | CE10: =COUNTA([1]ВЫВОЗКА!$A$178:$A$191) -> 14 | CF10: =COUNTIF([1]ВЫВОЗКА!$Q$178:$Q$191, "Не оборудован") -> 0 | CG10: =COUNTIF([1]ВЫВОЗКА!$Q$178:$Q$191, "Нет пробега") -> 0 | CH10: =SUMPRODUCT(--(MMULT(-([1]ВЫВОЗКА!$M$178:$P$191="+"),{1;1;1;1})>-4))-SUMPRODUCT(--(MMULT(-([1]ВЫВОЗКА!$M$178:$P$191="+"),{1;1;1;1})=0)) -> 0 | CI10: 0 | CJ10: 0 | CK10: 0 | CL10: =SUMPRODUCT(--(MMULT(-([1]ВЫВОЗКА!M178:P191="+"),{1;1;1;1})<0)) -> 0 | CM10: 0 | CN10: 0 | CO10: =COUNTA([1]ДОРОЖНАЯ!$A$147:$A$153) -> 7 | CP10: =COUNTIF([1]ДОРОЖНАЯ!$Q$147:$Q$153, "Не оборудован") -> 0 | CQ10: =COUNTIF([1]ДОРОЖНАЯ!$Q$147:$Q$153, "Нет пробега") -> 0 | CR10: =SUMPRODUCT(--(MMULT(-([1]ДОРОЖНАЯ!$M$147:$P$153="+"),{1;1;1;1})>-4))-SUMPRODUCT(--(MMULT(-([1]ДОРОЖНАЯ!$M$147:$P$153="+"),{1;1;1;1})=0)) -> 0 | CS10: 0 | CT10: 0 | CU10: 0 | CV10: =SUMPRODUCT(--(MMULT(-([1]ДОРОЖНАЯ!M147:P153="+"),{1;1;1;1})<0)) -> 0 | CW10: 0 | CX10: 0 | CY10: =COUNTA([1]ВСПОМОГАТЕЛЬНАЯ!$A$253:$A$273) -> 21 | CZ10: =COUNTIF([1]ВСПОМОГАТЕЛЬНАЯ!$Q$253:$Q$273, "Не оборудован") -> 0 | DA10: =COUNTIF([1]ВСПОМОГАТЕЛЬНАЯ!$Q$253:$Q$273, "Нет пробега") -> 0 | DB10: =SUMPRODUCT(--(MMULT(-([1]ВСПОМОГАТЕЛЬНАЯ!$M$253:$P$273="+"),{1;1;1;1})>-4))-SUMPRODUCT(--(MMULT(-([1]ВСПОМОГАТЕЛЬНАЯ!$M$253:$P$273="+"),{1;1;1;1})=0)) -> 0 | DC10: 0 | DD10: 0 | DE10: 0 | DF10: =SUMPRODUCT(--(MMULT(-([1]ВСПОМОГАТЕЛЬНАЯ!M253:P273="+"),{1;1;1;1})<0)) -> 0 | DG10: 0 | DH10: 0 | DI10: 42 | DJ10: =SUM(CF10,CP10,CZ10) -> 0 | DK10: =SUM(CG10,CQ10,DA10) -> 0 | DL10: 0 | DM10: 0 | DN10: 0 | DO10: 0 | DP10: 0 | DQ10: 0 | DR10: 0 | DS10: =COUNTA([1]ВЫВОЗКА!$A$178:$A$191) -> 14 | DT10: =COUNTIF([1]ВЫВОЗКА!$V$178:$V$191, "Не оборудован") -> 0 | DU10: =COUNTIF([1]ВЫВОЗКА!$V$178:$V$191, "Нет пробега") -> 0 | DV10: =SUMPRODUCT(--(MMULT(-([1]ВЫВОЗКА!$R$178:$U$191="+"),{1;1;1;1})>-4))-SUMPRODUCT(--(MMULT(-([1]ВЫВОЗКА!$R$178:$U$191="+"),{1;1;1;1})=0)) -> 0 | DW10: 0 | DX10: 0 | DY10: 0 | DZ10: =SUMPRODUCT(--(MMULT(-([1]ВЫВОЗКА!R178:U191="+"),{1;1;1;1})<0)) -> 0 | EA10: 0 | EB10: 0 | EC10: =COUNTA([1]ДОРОЖНАЯ!$A$147:$A$153) -> 7 | ED10: =COUNTIF([1]ДОРОЖНАЯ!$V$147:$V$153, "Не оборудован") -> 0 | EE10: =COUNTIF([1]ДОРОЖНАЯ!$V$147:$V$153, "Нет пробега") -> 0 | EF10: =SUMPRODUCT(--(MMULT(-([1]ДОРОЖНАЯ!$R$147:$U$153="+"),{1;1;1;1})>-4))-SUMPRODUCT(--(MMULT(-([1]ДОРОЖНАЯ!$R$147:$U$153="+"),{1;1;1;1})=0)) -> 0 | EG10: 0 | EH10: 0 | EI10: 0 | EJ10: =SUMPRODUCT(--(MMULT(-([1]ДОРОЖНАЯ!R147:U153="+"),{1;1;1;1})<0)) -> 0 | EK10: 0 | EL10: 0 | EM10: =COUNTA([1]ВСПОМОГАТЕЛЬНАЯ!$A$253:$A$273) -> 21 | EN10: =COUNTIF([1]ВСПОМОГАТЕЛЬНАЯ!$V$253:$V$273, "Не оборудован") -> 0 | EO10: =COUNTIF([1]ВСПОМОГАТЕЛЬНАЯ!$V$253:$V$273, "Нет пробега") -> 0 | EP10: =SUMPRODUCT(--(MMULT(-([1]ВСПОМОГАТЕЛЬНАЯ!$R$253:$U$273="+"),{1;1;1;1})>-4))-SUMPRODUCT(--(MMULT(-([1]ВСПОМОГАТЕЛЬНАЯ!$R$253:$U$273="+"),{1;1;1;1})=0)) -> 0 | EQ10: 0 | ER10: 0 | ES10: 0 | ET10: =SUMPRODUCT(--(MMULT(-([1]ВСПОМОГАТЕЛЬНАЯ!R253:U273="+"),{1;1;1;1})<0)) -> 0 | EU10: 0 | EV10: 0 | EW10: 42 | EX10: 0 | EY10: 0 | EZ10: 0 | FA10: 0 | FB10: 0 | FC10: 0 | FD10: 0 | FE10: 0 | FF10: 0 | FG10: =COUNTA([1]ВЫВОЗКА!$A$178:$A$191) -> 14 | FH10: =COUNTIF([1]ВЫВОЗКА!$AA$178:$AA$191, "Не оборудован") -> 0 | FI10: =COUNTIF([1]ВЫВОЗКА!$AA$178:$AA$191, "Нет пробега") -> 0 | FJ10: =SUMPRODUCT(--(MMULT(-([1]ВЫВОЗКА!$W$178:$Z$191="+"),{1;1;1;1})>-4))-SUMPRODUCT(--(MMULT(-([1]ВЫВОЗКА!$W$178:$Z$191="+"),{1;1;1;1})=0)) -> 0 | FK10: 0 | FL10: 0 | FM10: 0 | FN10: =SUMPRODUCT(--(MMULT(-([1]ВЫВОЗКА!$W$178:$Z$191="+"),{1;1;1;1})<0)) -> 0 | FO10: 0 | FP10: 0 | FQ10: =COUNTA([1]ДОРОЖНАЯ!$A$147:$A$153) -> 7 | FR10: =COUNTIF([1]ДОРОЖНАЯ!$AA$147:$AA$153, "Не оборудован") -> 0 | FS10: =COUNTIF([1]ДОРОЖНАЯ!$AA$147:$AA$153, "Нет пробега") -> 0 | FT10: =SUMPRODUCT(--(MMULT(-([1]ДОРОЖНАЯ!$W$147:$Z$153="+"),{1;1;1;1})>-4))-SUMPRODUCT(--(MMULT(-([1]ДОРОЖНАЯ!$W$147:$Z$153="+"),{1;1;1;1})=0)) -> 0 | FU10: 0 | FV10: 0 | FW10: 0 | FX10: =SUMPRODUCT(--(MMULT(-([1]ДОРОЖНАЯ!$W$147:$Z$153="+"),{1;1;1;1})<0)) -> 0 | FY10: 0 | FZ10: 0 | GA10: =COUNTA([1]ВСПОМОГАТЕЛЬНАЯ!$A$253:$A$273) -> 21 | GB10: =COUNTIF([1]ВСПОМОГАТЕЛЬНАЯ!$AA$253:$AA$273, "Не оборудован") -> 0 | GC10: =COUNTIF([1]ВСПОМОГАТЕЛЬНАЯ!$AA$253:$AA$273, "Нет пробега") -> 0 | GD10: =SUMPRODUCT(--(MMULT(-([1]ВСПОМОГАТЕЛЬНАЯ!$W$253:$Z$273="+"),{1;1;1;1})>-4))-SUMPRODUCT(--(MMULT(-([1]ВСПОМОГАТЕЛЬНАЯ!$W$253:$Z$273="+"),{1;1;1;1})=0)) -> 0 | GE10: 0 | GF10: 0 | GG10: 0 | GH10: =SUMPRODUCT(--(MMULT(-([1]ВСПОМОГАТЕЛЬНАЯ!$W$253:$Z$273="+"),{1;1;1;1})<0)) -> 0 | GI10: 0 | GJ10: 0 | GK10: 42 | GL10: =SUM(FH10,FR10,GB10) -> 0 | GM10: =SUM(FI10,FS10,GC10) -> 0 | GN10: 0 | GO10: 0 | GP10: 0 | GQ10: 0 | GR10: 0 | GS10: 0 | GT10: 0
A11: 6 | B11: Карпогорское ОП | C11: =COUNTA([1]ВЫВОЗКА!$A$52:$A$78) -> 27 | D11: =COUNTIF([1]ВЫВОЗКА!$G$52:$G$78, "Не оборудован") -> 0 | E11: =COUNTIF([1]ВЫВОЗКА!$G$52:$G$78, "Нет пробега") -> 5 | F11: =SUMPRODUCT(--(MMULT(-([1]ВЫВОЗКА!$C$52:$F$78="+"),{1;1;1;1})>-4))-SUMPRODUCT(--(MMULT(-([1]ВЫВОЗКА!$C$52:$F$78="+"),{1;1;1;1})=0)) -> 0 | G11: 0 | H11: 21 | I11: 77.77777778 | J11: =SUMPRODUCT(--(MMULT(-([1]ВЫВОЗКА!$C$52:$F$78="+"),{1;1;1;1})<0)) -> 21 | K11: 77.77777778 | L11: 96.2962963 | M11: =COUNTA([1]ДОРОЖНАЯ!$A$38:$A$62) -> 25 | N11: =COUNTIF([1]ДОРОЖНАЯ!$G$38:$G$62, "Не оборудован") -> 0 | O11: =COUNTIF([1]ДОРОЖНАЯ!$G$38:$G$62, "Нет пробега") -> 0 | P11: =SUMPRODUCT(--(MMULT(-([1]ДОРОЖНАЯ!$C$38:$F$62="+"),{1;1;1;1})>-4))-SUMPRODUCT(--(MMULT(-([1]ДОРОЖНАЯ!$C$38:$F$62="+"),{1;1;1;1})=0)) -> 0 | Q11: 0 | R11: 16 | S11: 64 | T11: =SUMPRODUCT(--(MMULT(-([1]ДОРОЖНАЯ!$C$38:$F$62="+"),{1;1;1;1})<0)) -> 16 | U11: 64 | V11: 64 | W11: =COUNTA([1]ВСПОМОГАТЕЛЬНАЯ!$A$60:$A$99) -> 40 | X11: =COUNTIF([1]ВСПОМОГАТЕЛЬНАЯ!$G$60:$G$99, "Не оборудован") -> 0 | Y11: =COUNTIF([1]ВСПОМОГАТЕЛЬНАЯ!$G$60:$G$99, "Нет пробега") -> 1 | Z11: =SUMPRODUCT(--(MMULT(-([1]ВСПОМОГАТЕЛЬНАЯ!$C$60:$F$99="+"),{1;1;1;1})>-4))-SUMPRODUCT(--(MMULT(-([1]ВСПОМОГАТЕЛЬНАЯ!$C$60:$F$99="+"),{1;1;1;1})=0)) -> 0 | AA11: 0 | AB11: 27 | AC11: 67.5 | AD11: =SUMPRODUCT(--(MMULT(-([1]ВСПОМОГАТЕЛЬНАЯ!$C$60:$F$99="+"),{1;1;1;1})<0)) -> 27 | AE11: 67.5 | AF11: 70 | AG11: 92 | AH11: 0 | AI11: 6 | AJ11: 0 | AK11: 0 | AL11: 64 | AM11: 69.56521739 | AN11: 64 | AO11: 69.56521739 | AP11: 76.08695652 | AQ11: =COUNTA([1]ВЫВОЗКА!$A$52:$A$78) -> 27 | AR11: =COUNTIF([1]ВЫВОЗКА!$L$52:$L$78, "Не оборудован") -> 0 | AS11: =COUNTIF([1]ВЫВОЗКА!$L$52:$L$78, "Нет пробега") -> 6 | AT11: =SUMPRODUCT(--(MMULT(-([1]ВЫВОЗКА!$H$52:$K$78="+"),{1;1;1;1})>-4))-SUMPRODUCT(--(MMULT(-([1]ВЫВОЗКА!$H$52:$K$78="+"),{1;1;1;1})=0)) -> 0 | AU11: 0 | AV11: 21 | AW11: 77.77777778 | AX11: =SUMPRODUCT(--(MMULT(-([1]ВЫВОЗКА!$H$52:$K$78="+"),{1;1;1;1})<0)) -> 21 | AY11: 77.77777778 | AZ11: 100 | BA11: =COUNTA([1]ДОРОЖНАЯ!$A$38:$A$62) -> 25 | BB11: =COUNTIF([1]ДОРОЖНАЯ!$L$38:$L$62, "Не оборудован") -> 0 | BC11: =COUNTIF([1]ДОРОЖНАЯ!$L$38:$L$62, "Нет пробега") -> 2 | BD11: =SUMPRODUCT(--(MMULT(-([1]ДОРОЖНАЯ!$H$38:$K$62="+"),{1;1;1;1})>-4))-SUMPRODUCT(--(MMULT(-([1]ДОРОЖНАЯ!$H$38:$K$62="+"),{1;1;1;1})=0)) -> 0 | BE11: 0 | BF11: 16 | BG11: 64 | BH11: =SUMPRODUCT(--(MMULT(-([1]ДОРОЖНАЯ!H38:K62="+"),{1;1;1;1})<0)) -> 16 | BI11: 64 | BJ11: 72 | BK11: =COUNTA([1]ВСПОМОГАТЕЛЬНАЯ!$A$60:$A$99) -> 40 | BL11: =COUNTIF([1]ВСПОМОГАТЕЛЬНАЯ!$L$60:$L$99, "Не оборудован") -> 0 | BM11: =COUNTIF([1]ВСПОМОГАТЕЛЬНАЯ!$L$60:$L$99, "Нет пробега") -> 9 | BN11: =SUMPRODUCT(--(MMULT(-([1]ВСПОМОГАТЕЛЬНАЯ!$H$60:$K$99="+"),{1;1;1;1})>-4))-SUMPRODUCT(--(MMULT(-([1]ВСПОМОГАТЕЛЬНАЯ!$H$60:$K$99="+"),{1;1;1;1})=0)) -> 0 | BO11: 0 | BP11: 23 | BQ11: 57.5 | BR11: =SUMPRODUCT(--(MMULT(-([1]ВСПОМОГАТЕЛЬНАЯ!H60:K99="+"),{1;1;1;1})<0)) -> 23 | BS11: 57.5 | BT11: 80 | BU11: 92 | BV11: 0 | BW11: 17 | BX11: 0 | BY11: 0 | BZ11: 60 | CA11: 65.2173913 | CB11: 60 | CC11: 65.2173913 | CD11: 83.69565217 | CE11: =COUNTA([1]ВЫВОЗКА!$A$52:$A$78) -> 27 | CF11: =COUNTIF([1]ВЫВОЗКА!$Q$52:$Q$78, "Не оборудован") -> 0 | CG11: =COUNTIF([1]ВЫВОЗКА!$Q$52:$Q$78, "Нет пробега") -> 0 | CH11: =SUMPRODUCT(--(MMULT(-([1]ВЫВОЗКА!$M$52:$P$78="+"),{1;1;1;1})>-4))-SUMPRODUCT(--(MMULT(-([1]ВЫВОЗКА!$M$52:$P$78="+"),{1;1;1;1})=0)) -> 0 | CI11: 0 | CJ11: 0 | CK11: 0 | CL11: =SUMPRODUCT(--(MMULT(-([1]ВЫВОЗКА!M52:P78="+"),{1;1;1;1})<0)) -> 0 | CM11: 0 | CN11: 0 | CO11: =COUNTA([1]ДОРОЖНАЯ!$A$38:$A$62) -> 25 | CP11: =COUNTIF([1]ДОРОЖНАЯ!$Q$38:$Q$62, "Не оборудован") -> 0 | CQ11: =COUNTIF([1]ДОРОЖНАЯ!$Q$38:$Q$62, "Нет пробега") -> 0 | CR11: =SUMPRODUCT(--(MMULT(-([1]ДОРОЖНАЯ!$M$38:$P$62="+"),{1;1;1;1})>-4))-SUMPRODUCT(--(MMULT(-([1]ДОРОЖНАЯ!$M$38:$P$62="+"),{1;1;1;1})=0)) -> 0 | CS11: 0 | CT11: 0 | CU11: 0 | CV11: =SUMPRODUCT(--(MMULT(-([1]ДОРОЖНАЯ!M38:P62="+"),{1;1;1;1})<0)) -> 0 | CW11: 0 | CX11: 0 | CY11: =COUNTA([1]ВСПОМОГАТЕЛЬНАЯ!$A$60:$A$99) -> 40 | CZ11: =COUNTIF([1]ВСПОМОГАТЕЛЬНАЯ!$Q$60:$Q$99, "Не оборудован") -> 0 | DA11: =COUNTIF([1]ВСПОМОГАТЕЛЬНАЯ!$Q$60:$Q$99, "Нет пробега") -> 0 | DB11: =SUMPRODUCT(--(MMULT(-([1]ВСПОМОГАТЕЛЬНАЯ!$M$60:$P$99="+"),{1;1;1;1})>-4))-SUMPRODUCT(--(MMULT(-([1]ВСПОМОГАТЕЛЬНАЯ!$M$60:$P$99="+"),{1;1;1;1})=0)) -> 0 | DC11: 0 | DD11: 0 | DE11: 0 | DF11: =SUMPRODUCT(--(MMULT(-([1]ВСПОМОГАТЕЛЬНАЯ!M60:P99="+"),{1;1;1;1})<0)) -> 0 | DG11: 0 | DH11: 0 | DI11: 92 | DJ11: 0 | DK11: 0 | DL11: 0 | DM11: 0 | DN11: 0 | DO11: 0 | DP11: 0 | DQ11: 0 | DR11: 0 | DS11: =COUNTA([1]ВЫВОЗКА!$A$52:$A$78) -> 27 | DT11: =COUNTIF([1]ВЫВОЗКА!$V$52:$V$78, "Не оборудован") -> 0 | DU11: =COUNTIF([1]ВЫВОЗКА!$V$52:$V$78, "Нет пробега") -> 0 | DV11: =SUMPRODUCT(--(MMULT(-([1]ВЫВОЗКА!$R$52:$U$78="+"),{1;1;1;1})>-4))-SUMPRODUCT(--(MMULT(-([1]ВЫВОЗКА!$R$52:$U$78="+"),{1;1;1;1})=0)) -> 0 | DW11: 0 | DX11: 0 | DY11: 0 | DZ11: =SUMPRODUCT(--(MMULT(-([1]ВЫВОЗКА!R52:U78="+"),{1;1;1;1})<0)) -> 0 | EA11: 0 | EB11: 0 | EC11: =COUNTA([1]ДОРОЖНАЯ!$A$38:$A$62) -> 25 | ED11: =COUNTIF([1]ДОРОЖНАЯ!$V$38:$V$62, "Не оборудован") -> 0 | EE11: =COUNTIF([1]ДОРОЖНАЯ!$V$38:$V$62, "Нет пробега") -> 0 | EF11: =SUMPRODUCT(--(MMULT(-([1]ДОРОЖНАЯ!$R$38:$U$62="+"),{1;1;1;1})>-4))-SUMPRODUCT(--(MMULT(-([1]ДОРОЖНАЯ!$R$38:$U$62="+"),{1;1;1;1})=0)) -> 0 | EG11: 0 | EH11: 0 | EI11: 0 | EJ11: =SUMPRODUCT(--(MMULT(-([1]ДОРОЖНАЯ!R38:U62="+"),{1;1;1;1})<0)) -> 0 | EK11: 0 | EL11: 0 | EM11: =COUNTA([1]ВСПОМОГАТЕЛЬНАЯ!$A$60:$A$99) -> 40 | EN11: =COUNTIF([1]ВСПОМОГАТЕЛЬНАЯ!$V$60:$V$99, "Не оборудован") -> 0 | EO11: =COUNTIF([1]ВСПОМОГАТЕЛЬНАЯ!$V$60:$V$99, "Нет пробега") -> 0 | EP11: =SUMPRODUCT(--(MMULT(-([1]ВСПОМОГАТЕЛЬНАЯ!$R$60:$U$99="+"),{1;1;1;1})>-4))-SUMPRODUCT(--(MMULT(-([1]ВСПОМОГАТЕЛЬНАЯ!$R$60:$U$99="+"),{1;1;1;1})=0)) -> 0 | EQ11: 0 | ER11: 0 | ES11: 0 | ET11: =SUMPRODUCT(--(MMULT(-([1]ВСПОМОГАТЕЛЬНАЯ!R60:U99="+"),{1;1;1;1})<0)) -> 0 | EU11: 0 | EV11: 0 | EW11: 92 | EX11: 0 | EY11: 0 | EZ11: 0 | FA11: 0 | FB11: 0 | FC11: 0 | FD11: 0 | FE11: 0 | FF11: 0 | FG11: =COUNTA([1]ВЫВОЗКА!$A$52:$A$78) -> 27 | FH11: =COUNTIF([1]ВЫВОЗКА!$AA$52:$AA$78, "Не оборудован") -> 0 | FI11: =COUNTIF([1]ВЫВОЗКА!$AA$52:$AA$78, "Нет пробега") -> 0 | FJ11: =SUMPRODUCT(--(MMULT(-([1]ВЫВОЗКА!$W$52:$Z$78="+"),{1;1;1;1})>-4))-SUMPRODUCT(--(MMULT(-([1]ВЫВОЗКА!$W$52:$Z$78="+"),{1;1;1;1})=0)) -> 0 | FK11: 0 | FL11: 0 | FM11: 0 | FN11: =SUMPRODUCT(--(MMULT(-([1]ВЫВОЗКА!$W$52:$Z$78="+"),{1;1;1;1})<0)) -> 0 | FO11: 0 | FP11: 0 | FQ11: =COUNTA([1]ДОРОЖНАЯ!$A$38:$A$62) -> 25 | FR11: =COUNTIF([1]ДОРОЖНАЯ!$AA$38:$AA$62, "Не оборудован") -> 0 | FS11: =COUNTIF([1]ДОРОЖНАЯ!$AA$38:$AA$62, "Нет пробега") -> 0 | FT11: =SUMPRODUCT(--(MMULT(-([1]ДОРОЖНАЯ!$W$38:$Z$62="+"),{1;1;1;1})>-4))-SUMPRODUCT(--(MMULT(-([1]ДОРОЖНАЯ!$W$38:$Z$62="+"),{1;1;1;1})=0)) -> 0 | FU11: 0 | FV11: 0 | FW11: 0 | FX11: =SUMPRODUCT(--(MMULT(-([1]ДОРОЖНАЯ!$W$38:$Z$62="+"),{1;1;1;1})<0)) -> 0 | FY11: 0 | FZ11: 0 | GA11: =COUNTA([1]ВСПОМОГАТЕЛЬНАЯ!$A$60:$A$99) -> 40 | GB11: =COUNTIF([1]ВСПОМОГАТЕЛЬНАЯ!$AA$60:$AA$99, "Не оборудован") -> 0 | GC11: =COUNTIF([1]ВСПОМОГАТЕЛЬНАЯ!$AA$60:$AA$99, "Нет пробега") -> 0 | GD11: =SUMPRODUCT(--(MMULT(-([1]ВСПОМОГАТЕЛЬНАЯ!$W$60:$Z$99="+"),{1;1;1;1})>-4))-SUMPRODUCT(--(MMULT(-([1]ВСПОМОГАТЕЛЬНАЯ!$W$60:$Z$99="+"),{1;1;1;1})=0)) -> 0 | GE11: 0 | GF11: 0 | GG11: 0 | GH11: =SUMPRODUCT(--(MMULT(-([1]ВСПОМОГАТЕЛЬНАЯ!$W$60:$Z$99="+"),{1;1;1;1})<0)) -> 0 | GI11: 0 | GJ11: 0 | GK11: 92 | GL11: 0 | GM11: 0 | GN11: 0 | GO11: 0 | GP11: 0 | GQ11: 0 | GR11: 0 | GS11: 0 | GT11: 0
A12: 7 | B12: Усть-Покшеньгское ОП | C12: =COUNTA([1]ВЫВОЗКА!$A$111:$A$136) -> 26 | D12: =COUNTIF([1]ВЫВОЗКА!$G$111:$G$136, "Не оборудован") -> 0 | E12: =COUNTIF([1]ВЫВОЗКА!$G$111:$G$136, "Нет пробега") -> 9 | F12: =SUMPRODUCT(--(MMULT(-([1]ВЫВОЗКА!$C$111:$F$136="+"),{1;1;1;1})>-4))-SUMPRODUCT(--(MMULT(-([1]ВЫВОЗКА!$C$111:$F$136="+"),{1;1;1;1})=0)) -> 0 | G12: 0 | H12: 17 | I12: 65.38461538 | J12: =SUMPRODUCT(--(MMULT(-([1]ВЫВОЗКА!$C$111:$F$136="+"),{1;1;1;1})<0)) -> 17 | K12: 65.38461538 | L12: 100 | M12: =COUNTA([1]ДОРОЖНАЯ!$A$91:$A$105) -> 15 | N12: =COUNTIF([1]ДОРОЖНАЯ!$G$91:$G$105, "Не оборудован") -> 0 | O12: =COUNTIF([1]ДОРОЖНАЯ!$G$91:$G$105, "Нет пробега") -> 3 | P12: =SUMPRODUCT(--(MMULT(-([1]ДОРОЖНАЯ!$C$91:$F$105="+"),{1;1;1;1})>-4))-SUMPRODUCT(--(MMULT(-([1]ДОРОЖНАЯ!$C$91:$F$105="+"),{1;1;1;1})=0)) -> 0 | Q12: 0 | R12: 11 | S12: 73.33333333 | T12: =SUMPRODUCT(--(MMULT(-([1]ДОРОЖНАЯ!$C$91:$F$105="+"),{1;1;1;1})<0)) -> 11 | U12: 73.33333333 | V12: 93.33333333 | W12: =COUNTA([1]ВСПОМОГАТЕЛЬНАЯ!$A$151:$A$181) -> 31 | X12: =COUNTIF([1]ВСПОМОГАТЕЛЬНАЯ!$G$151:$G$181, "Не оборудован") -> 3 | Y12: =COUNTIF([1]ВСПОМОГАТЕЛЬНАЯ!$G$151:$G$181, "Нет пробега") -> 5 | Z12: =SUMPRODUCT(--(MMULT(-([1]ВСПОМОГАТЕЛЬНАЯ!$C$151:$F$181="+"),{1;1;1;1})>-4))-SUMPRODUCT(--(MMULT(-([1]ВСПОМОГАТЕЛЬНАЯ!$C$151:$F$181="+"),{1;1;1;1})=0)) -> 0 | AA12: 0 | AB12: 22 | AC12: 70.96774194 | AD12: =SUMPRODUCT(--(MMULT(-([1]ВСПОМОГАТЕЛЬНАЯ!$C$151:$F$181="+"),{1;1;1;1})<0)) -> 22 | AE12: 70.96774194 | AF12: 96.77419355 | AG12: 72 | AH12: 3 | AI12: 17 | AJ12: 0 | AK12: 0 | AL12: 50 | AM12: 69.44444444 | AN12: 50 | AO12: 69.44444444 | AP12: 97.22222222 | AQ12: =COUNTA([1]ВЫВОЗКА!$A$111:$A$136) -> 26 | AR12: =COUNTIF([1]ВЫВОЗКА!$L$111:$L$136, "Не оборудован") -> 0 | AS12: =COUNTIF([1]ВЫВОЗКА!$L$111:$L$136, "Нет пробега") -> 6 | AT12: =SUMPRODUCT(--(MMULT(-([1]ВЫВОЗКА!$H$111:$K$136="+"),{1;1;1;1})>-4))-SUMPRODUCT(--(MMULT(-([1]ВЫВОЗКА!$H$111:$K$136="+"),{1;1;1;1})=0)) -> 0 | AU12: 0 | AV12: 20 | AW12: 76.92307692 | AX12: =SUMPRODUCT(--(MMULT(-([1]ВЫВОЗКА!$H$111:$K$136="+"),{1;1;1;1})<0)) -> 20 | AY12: 76.92307692 | AZ12: 100 | BA12: =COUNTA([1]ДОРОЖНАЯ!$A$91:$A$105) -> 15 | BB12: =COUNTIF([1]ДОРОЖНАЯ!$L$91:$L$105, "Не оборудован") -> 0 | BC12: =COUNTIF([1]ДОРОЖНАЯ!$L$91:$L$105, "Нет пробега") -> 1 | BD12: =SUMPRODUCT(--(MMULT(-([1]ДОРОЖНАЯ!$H$91:$K$105="+"),{1;1;1;1})>-4))-SUMPRODUCT(--(MMULT(-([1]ДОРОЖНАЯ!$H$91:$K$105="+"),{1;1;1;1})=0)) -> 0 | BE12: 0 | BF12: 14 | BG12: 93.33333333 | BH12: =SUMPRODUCT(--(MMULT(-([1]ДОРОЖНАЯ!H91:K105="+"),{1;1;1;1})<0)) -> 14 | BI12: 93.33333333 | BJ12: 100 | BK12: =COUNTA([1]ВСПОМОГАТЕЛЬНАЯ!$A$151:$A$181) -> 31 | BL12: =COUNTIF([1]ВСПОМОГАТЕЛЬНАЯ!$L$151:$L$181, "Не оборудован") -> 3 | BM12: =COUNTIF([1]ВСПОМОГАТЕЛЬНАЯ!$L$151:$L$181, "Нет пробега") -> 5 | BN12: =SUMPRODUCT(--(MMULT(-([1]ВСПОМОГАТЕЛЬНАЯ!$H$151:$K$181="+"),{1;1;1;1})>-4))-SUMPRODUCT(--(MMULT(-([1]ВСПОМОГАТЕЛЬНАЯ!$H$151:$K$181="+"),{1;1;1;1})=0)) -> 0 | BO12: 0 | BP12: 21 | BQ12: 67.74193548 | BR12: =SUMPRODUCT(--(MMULT(-([1]ВСПОМОГАТЕЛЬНАЯ!H151:K181="+"),{1;1;1;1})<0)) -> 21 | BS12: 67.74193548 | BT12: 93.5483871 | BU12: 72 | BV12: 3 | BW12: 12 | BX12: 0 | BY12: 0 | BZ12: 55 | CA12: 76.38888889 | CB12: 55 | CC12: 76.38888889 | CD12: 97.22222222 | CE12: =COUNTA([1]ВЫВОЗКА!$A$111:$A$136) -> 26 | CF12: =COUNTIF([1]ВЫВОЗКА!$Q$111:$Q$136, "Не оборудован") -> 0 | CG12: =COUNTIF([1]ВЫВОЗКА!$Q$111:$Q$136, "Нет пробега") -> 0 | CH12: =SUMPRODUCT(--(MMULT(-([1]ВЫВОЗКА!$M$111:$P$136="+"),{1;1;1;1})>-4))-SUMPRODUCT(--(MMULT(-([1]ВЫВОЗКА!$M$111:$P$136="+"),{1;1;1;1})=0)) -> 0 | CI12: 0 | CJ12: 0 | CK12: 0 | CL12: =SUMPRODUCT(--(MMULT(-([1]ВЫВОЗКА!M111:P136="+"),{1;1;1;1})<0)) -> 0 | CM12: 0 | CN12: 0 | CO12: =COUNTA([1]ДОРОЖНАЯ!$A$91:$A$105) -> 15 | CP12: =COUNTIF([1]ДОРОЖНАЯ!$Q$91:$Q$105, "Не оборудован") -> 0 | CQ12: =COUNTIF([1]ДОРОЖНАЯ!$Q$91:$Q$105, "Нет пробега") -> 0 | CR12: =SUMPRODUCT(--(MMULT(-([1]ДОРОЖНАЯ!$M$91:$P$105="+"),{1;1;1;1})>-4))-SUMPRODUCT(--(MMULT(-([1]ДОРОЖНАЯ!$M$91:$P$105="+"),{1;1;1;1})=0)) -> 0 | CS12: 0 | CT12: 0 | CU12: 0 | CV12: =SUMPRODUCT(--(MMULT(-([1]ДОРОЖНАЯ!M91:P105="+"),{1;1;1;1})<0)) -> 0 | CW12: 0 | CX12: 0 | CY12: =COUNTA([1]ВСПОМОГАТЕЛЬНАЯ!$A$151:$A$181) -> 31 | CZ12: =COUNTIF([1]ВСПОМОГАТЕЛЬНАЯ!$Q$151:$Q$181, "Не оборудован") -> 0 | DA12: =COUNTIF([1]ВСПОМОГАТЕЛЬНАЯ!$Q$151:$Q$181, "Нет пробега") -> 0 | DB12: =SUMPRODUCT(--(MMULT(-([1]ВСПОМОГАТЕЛЬНАЯ!$M$151:$P$181="+"),{1;1;1;1})>-4))-SUMPRODUCT(--(MMULT(-([1]ВСПОМОГАТЕЛЬНАЯ!$M$151:$P$181="+"),{1;1;1;1})=0)) -> 0 | DC12: 0 | DD12: 0 | DE12: 0 | DF12: =SUMPRODUCT(--(MMULT(-([1]ВСПОМОГАТЕЛЬНАЯ!M151:P181="+"),{1;1;1;1})<0)) -> 0 | DG12: 0 | DH12: 0 | DI12: 72 | DJ12: 0 | DK12: 0 | DL12: 0 | DM12: 0 | DN12: 0 | DO12: 0 | DP12: 0 | DQ12: 0 | DR12: 0 | DS12: =COUNTA([1]ВЫВОЗКА!$A$111:$A$136) -> 26 | DT12: =COUNTIF([1]ВЫВОЗКА!$V$111:$V$136, "Не оборудован") -> 0 | DU12: =COUNTIF([1]ВЫВОЗКА!$V$111:$V$136, "Нет пробега") -> 0 | DV12: =SUMPRODUCT(--(MMULT(-([1]ВЫВОЗКА!$R$111:$U$136="+"),{1;1;1;1})>-4))-SUMPRODUCT(--(MMULT(-([1]ВЫВОЗКА!$R$111:$U$136="+"),{1;1;1;1})=0)) -> 0 | DW12: 0 | DX12: 0 | DY12: 0 | DZ12: =SUMPRODUCT(--(MMULT(-([1]ВЫВОЗКА!R111:U136="+"),{1;1;1;1})<0)) -> 0 | EA12: 0 | EB12: 0 | EC12: =COUNTA([1]ДОРОЖНАЯ!$A$91:$A$105) -> 15 | ED12: =COUNTIF([1]ДОРОЖНАЯ!$V$91:$V$105, "Не оборудован") -> 0 | EE12: =COUNTIF([1]ДОРОЖНАЯ!$V$91:$V$105, "Нет пробега") -> 0 | EF12: =SUMPRODUCT(--(MMULT(-([1]ДОРОЖНАЯ!$R$91:$U$105="+"),{1;1;1;1})>-4))-SUMPRODUCT(--(MMULT(-([1]ДОРОЖНАЯ!$R$91:$U$105="+"),{1;1;1;1})=0)) -> 0 | EG12: 0 | EH12: 0 | EI12: 0 | EJ12: =SUMPRODUCT(--(MMULT(-([1]ДОРОЖНАЯ!R91:U105="+"),{1;1;1;1})<0)) -> 0 | EK12: 0 | EL12: 0 | EM12: =COUNTA([1]ВСПОМОГАТЕЛЬНАЯ!$A$151:$A$181) -> 31 | EN12: =COUNTIF([1]ВСПОМОГАТЕЛЬНАЯ!$V$151:$V$181, "Не оборудован") -> 0 | EO12: =COUNTIF([1]ВСПОМОГАТЕЛЬНАЯ!$V$151:$V$181, "Нет пробега") -> 0 | EP12: =SUMPRODUCT(--(MMULT(-([1]ВСПОМОГАТЕЛЬНАЯ!$R$151:$U$181="+"),{1;1;1;1})>-4))-SUMPRODUCT(--(MMULT(-([1]ВСПОМОГАТЕЛЬНАЯ!$R$151:$U$181="+"),{1;1;1;1})=0)) -> 0 | EQ12: 0 | ER12: 0 | ES12: 0 | ET12: =SUMPRODUCT(--(MMULT(-([1]ВСПОМОГАТЕЛЬНАЯ!R151:U181="+"),{1;1;1;1})<0)) -> 0 | EU12: 0 | EV12: 0 | EW12: 72 | EX12: 0 | EY12: 0 | EZ12: 0 | FA12: 0 | FB12: 0 | FC12: 0 | FD12: 0 | FE12: 0 | FF12: 0 | FG12: =COUNTA([1]ВЫВОЗКА!$A$111:$A$136) -> 26 | FH12: =COUNTIF([1]ВЫВОЗКА!$AA$111:$AA$136, "Не оборудован") -> 0 | FI12: =COUNTIF([1]ВЫВОЗКА!$AA$111:$AA$136, "Нет пробега") -> 0 | FJ12: =SUMPRODUCT(--(MMULT(-([1]ВЫВОЗКА!$W$111:$Z$136="+"),{1;1;1;1})>-4))-SUMPRODUCT(--(MMULT(-([1]ВЫВОЗКА!$W$111:$Z$136="+"),{1;1;1;1})=0)) -> 0 | FK12: 0 | FL12: 0 | FM12: 0 | FN12: =SUMPRODUCT(--(MMULT(-([1]ВЫВОЗКА!$W$111:$Z$136="+"),{1;1;1;1})<0)) -> 0 | FO12: 0 | FP12: 0 | FQ12: =COUNTA([1]ДОРОЖНАЯ!$A$91:$A$105) -> 15 | FR12: =COUNTIF([1]ДОРОЖНАЯ!$AA$91:$AA$105, "Не оборудован") -> 0 | FS12: =COUNTIF([1]ДОРОЖНАЯ!$AA$91:$AA$105, "Нет пробега") -> 0 | FT12: =SUMPRODUCT(--(MMULT(-([1]ДОРОЖНАЯ!$W$91:$Z$105="+"),{1;1;1;1})>-4))-SUMPRODUCT(--(MMULT(-([1]ДОРОЖНАЯ!$W$91:$Z$105="+"),{1;1;1;1})=0)) -> 0 | FU12: 0 | FV12: 0 | FW12: 0 | FX12: =SUMPRODUCT(--(MMULT(-([1]ДОРОЖНАЯ!$W$91:$Z$105="+"),{1;1;1;1})<0)) -> 0 | FY12: 0 | FZ12: 0 | GA12: =COUNTA([1]ВСПОМОГАТЕЛЬНАЯ!$A$151:$A$181) -> 31 | GB12: =COUNTIF([1]ВСПОМОГАТЕЛЬНАЯ!$AA$151:$AA$181, "Не оборудован") -> 0 | GC12: =COUNTIF([1]ВСПОМОГАТЕЛЬНАЯ!$AA$151:$AA$181, "Нет пробега") -> 0 | GD12: =SUMPRODUCT(--(MMULT(-([1]ВСПОМОГАТЕЛЬНАЯ!$W$151:$Z$181="+"),{1;1;1;1})>-4))-SUMPRODUCT(--(MMULT(-([1]ВСПОМОГАТЕЛЬНАЯ!$W$151:$Z$181="+"),{1;1;1;1})=0)) -> 0 | GE12: 0 | GF12: 0 | GG12: 0 | GH12: =SUMPRODUCT(--(MMULT(-([1]ВСПОМОГАТЕЛЬНАЯ!$W$151:$Z$181="+"),{1;1;1;1})<0)) -> 0 | GI12: 0 | GJ12: 0 | GK12: 72 | GL12: 0 | GM12: 0 | GN12: 0 | GO12: 0 | GP12: 0 | GQ12: 0 | GR12: 0 | GS12: 0 | GT12: 0
A13: 8 | B13: Светлозерское ОП | C13: =COUNTA([1]ВЫВОЗКА!$A$169:$A$175) -> 7 | D13: =COUNTIF([1]ВЫВОЗКА!$G$169:$G$175, "Не оборудован") -> 0 | E13: =COUNTIF([1]ВЫВОЗКА!$G$169:$G$175, "Нет пробега") -> 4 | F13: =SUMPRODUCT(--(MMULT(-([1]ВЫВОЗКА!$C$169:$F$175="+"),{1;1;1;1})>-4))-SUMPRODUCT(--(MMULT(-([1]ВЫВОЗКА!$C$169:$F$175="+"),{1;1;1;1})=0)) -> 0 | G13: 0 | H13: 3 | I13: 42.85714286 | J13: =SUMPRODUCT(--(MMULT(-([1]ВЫВОЗКА!$C$169:$F$175="+"),{1;1;1;1})<0)) -> 3 | K13: 42.85714286 | L13: 100 | M13: =COUNTA([1]ДОРОЖНАЯ!$A$136:$A$144) -> 9 | N13: =COUNTIF([1]ДОРОЖНАЯ!$G$136:$G$144, "Не оборудован") -> 0 | O13: =COUNTIF([1]ДОРОЖНАЯ!$G$136:$G$144, "Нет пробега") -> 3 | P13: =SUMPRODUCT(--(MMULT(-([1]ДОРОЖНАЯ!$C$136:$F$144="+"),{1;1;1;1})>-4))-SUMPRODUCT(--(MMULT(-([1]ДОРОЖНАЯ!$C$136:$F$144="+"),{1;1;1;1})=0)) -> 0 | Q13: 0 | R13: 5 | S13: 55.55555556 | T13: =SUMPRODUCT(--(MMULT(-([1]ДОРОЖНАЯ!$C$136:$F$144="+"),{1;1;1;1})<0)) -> 5 | U13: 55.55555556 | V13: 88.88888889 | W13: =COUNTA([1]ВСПОМОГАТЕЛЬНАЯ!$A$240:$A$250) -> 11 | X13: =COUNTIF([1]ВСПОМОГАТЕЛЬНАЯ!$G$240:$G$250, "Не оборудован") -> 0 | Y13: =COUNTIF([1]ВСПОМОГАТЕЛЬНАЯ!$G$240:$G$250, "Нет пробега") -> 4 | Z13: =SUMPRODUCT(--(MMULT(-([1]ВСПОМОГАТЕЛЬНАЯ!$C$240:$F$250="+"),{1;1;1;1})>-4))-SUMPRODUCT(--(MMULT(-([1]ВСПОМОГАТЕЛЬНАЯ!$C$240:$F$250="+"),{1;1;1;1})=0)) -> 4 | AA13: 36.36363636 | AB13: 3 | AC13: 27.27272727 | AD13: =SUMPRODUCT(--(MMULT(-([1]ВСПОМОГАТЕЛЬНАЯ!$C$240:$F$250="+"),{1;1;1;1})<0)) -> 7 | AE13: 63.63636364 | AF13: 100 | AG13: 27 | AH13: 0 | AI13: 11 | AJ13: 4 | AK13: 14.81481481 | AL13: 11 | AM13: 40.74074074 | AN13: 15 | AO13: 55.55555556 | AP13: 96.2962963 | AQ13: =COUNTA([1]ВЫВОЗКА!$A$169:$A$175) -> 7 | AR13: =COUNTIF([1]ВЫВОЗКА!$L$169:$L$175, "Не оборудован") -> 0 | AS13: =COUNTIF([1]ВЫВОЗКА!$L$169:$L$175, "Нет пробега") -> 4 | AT13: =SUMPRODUCT(--(MMULT(-([1]ВЫВОЗКА!$H$169:$K$175="+"),{1;1;1;1})>-4))-SUMPRODUCT(--(MMULT(-([1]ВЫВОЗКА!$H$169:$K$175="+"),{1;1;1;1})=0)) -> 0 | AU13: 0 | AV13: 3 | AW13: 42.85714286 | AX13: =SUMPRODUCT(--(MMULT(-([1]ВЫВОЗКА!$H$169:$K$175="+"),{1;1;1;1})<0)) -> 3 | AY13: 42.85714286 | AZ13: 100 | BA13: =COUNTA([1]ДОРОЖНАЯ!$A$136:$A$144) -> 9 | BB13: =COUNTIF([1]ДОРОЖНАЯ!$L$136:$L$144, "Не оборудован") -> 0 | BC13: =COUNTIF([1]ДОРОЖНАЯ!$L$136:$L$144, "Нет пробега") -> 3 | BD13: =SUMPRODUCT(--(MMULT(-([1]ДОРОЖНАЯ!$H$136:$K$144="+"),{1;1;1;1})>-4))-SUMPRODUCT(--(MMULT(-([1]ДОРОЖНАЯ!$H$136:$K$144="+"),{1;1;1;1})=0)) -> 0 | BE13: 0 | BF13: 6 | BG13: 66.66666667 | BH13: =SUMPRODUCT(--(MMULT(-([1]ДОРОЖНАЯ!H136:K144="+"),{1;1;1;1})<0)) -> 6 | BI13: 66.66666667 | BJ13: 100 | BK13: =COUNTA([1]ВСПОМОГАТЕЛЬНАЯ!$A$240:$A$250) -> 11 | BL13: =COUNTIF([1]ВСПОМОГАТЕЛЬНАЯ!$L$240:$L$250, "Не оборудован") -> 0 | BM13: =COUNTIF([1]ВСПОМОГАТЕЛЬНАЯ!$L$240:$L$250, "Нет пробега") -> 3 | BN13: =SUMPRODUCT(--(MMULT(-([1]ВСПОМОГАТЕЛЬНАЯ!$H$240:$K$250="+"),{1;1;1;1})>-4))-SUMPRODUCT(--(MMULT(-([1]ВСПОМОГАТЕЛЬНАЯ!$H$240:$K$250="+"),{1;1;1;1})=0)) -> 4 | BO13: 36.36363636 | BP13: 2 | BQ13: 18.18181818 | BR13: =SUMPRODUCT(--(MMULT(-([1]ВСПОМОГАТЕЛЬНАЯ!H240:K250="+"),{1;1;1;1})<0)) -> 6 | BS13: 54.54545455 | BT13: 81.81818182 | BU13: 27 | BV13: 0 | BW13: 10 | BX13: 4 | BY13: 14.81481481 | BZ13: 11 | CA13: 40.74074074 | CB13: 15 | CC13: 55.55555556 | CD13: 92.59259259 | CE13: =COUNTA([1]ВЫВОЗКА!$A$169:$A$175) -> 7 | CF13: =COUNTIF([1]ВЫВОЗКА!$Q$169:$Q$175, "Не оборудован") -> 0 | CG13: =COUNTIF([1]ВЫВОЗКА!$Q$169:$Q$175, "Нет пробега") -> 0 | CH13: =SUMPRODUCT(--(MMULT(-([1]ВЫВОЗКА!$M$169:$P$175="+"),{1;1;1;1})>-4))-SUMPRODUCT(--(MMULT(-([1]ВЫВОЗКА!$M$169:$P$175="+"),{1;1;1;1})=0)) -> 0 | CI13: 0 | CJ13: 0 | CK13: 0 | CL13: =SUMPRODUCT(--(MMULT(-([1]ВЫВОЗКА!M169:P175="+"),{1;1;1;1})<0)) -> 0 | CM13: 0 | CN13: 0 | CO13: =COUNTA([1]ДОРОЖНАЯ!$A$136:$A$144) -> 9 | CP13: =COUNTIF([1]ДОРОЖНАЯ!$Q$136:$Q$144, "Не оборудован") -> 0 | CQ13: =COUNTIF([1]ДОРОЖНАЯ!$Q$136:$Q$144, "Нет пробега") -> 0 | CR13: =SUMPRODUCT(--(MMULT(-([1]ДОРОЖНАЯ!$M$136:$P$144="+"),{1;1;1;1})>-4))-SUMPRODUCT(--(MMULT(-([1]ДОРОЖНАЯ!$M$136:$P$144="+"),{1;1;1;1})=0)) -> 0 | CS13: 0 | CT13: 0 | CU13: 0 | CV13: =SUMPRODUCT(--(MMULT(-([1]ДОРОЖНАЯ!M136:P144="+"),{1;1;1;1})<0)) -> 0 | CW13: 0 | CX13: 0 | CY13: =COUNTA([1]ВСПОМОГАТЕЛЬНАЯ!$A$240:$A$250) -> 11 | CZ13: =COUNTIF([1]ВСПОМОГАТЕЛЬНАЯ!$Q$240:$Q$250, "Не оборудован") -> 0 | DA13: =COUNTIF([1]ВСПОМОГАТЕЛЬНАЯ!$Q$240:$Q$250, "Нет пробега") -> 0 | DB13: =SUMPRODUCT(--(MMULT(-([1]ВСПОМОГАТЕЛЬНАЯ!$M$240:$P$250="+"),{1;1;1;1})>-4))-SUMPRODUCT(--(MMULT(-([1]ВСПОМОГАТЕЛЬНАЯ!$M$240:$P$250="+"),{1;1;1;1})=0)) -> 0 | DC13: 0 | DD13: 0 | DE13: 0 | DF13: =SUMPRODUCT(--(MMULT(-([1]ВСПОМОГАТЕЛЬНАЯ!M240:P250="+"),{1;1;1;1})<0)) -> 0 | DG13: 0 | DH13: 0 | DI13: 27 | DJ13: 0 | DK13: 0 | DL13: 0 | DM13: 0 | DN13: 0 | DO13: 0 | DP13: 0 | DQ13: 0 | DR13: 0 | DS13: =COUNTA([1]ВЫВОЗКА!$A$169:$A$175) -> 7 | DT13: =COUNTIF([1]ВЫВОЗКА!$V$169:$V$175, "Не оборудован") -> 0 | DU13: =COUNTIF([1]ВЫВОЗКА!$V$169:$V$175, "Нет пробега") -> 0 | DV13: =SUMPRODUCT(--(MMULT(-([1]ВЫВОЗКА!$R$169:$U$175="+"),{1;1;1;1})>-4))-SUMPRODUCT(--(MMULT(-([1]ВЫВОЗКА!$R$169:$U$175="+"),{1;1;1;1})=0)) -> 0 | DW13: 0 | DX13: 0 | DY13: 0 | DZ13: =SUMPRODUCT(--(MMULT(-([1]ВЫВОЗКА!R169:U175="+"),{1;1;1;1})<0)) -> 0 | EA13: 0 | EB13: 0 | EC13: =COUNTA([1]ДОРОЖНАЯ!$A$136:$A$144) -> 9 | ED13: =COUNTIF([1]ДОРОЖНАЯ!$V$136:$V$144, "Не оборудован") -> 0 | EE13: =COUNTIF([1]ДОРОЖНАЯ!$V$136:$V$144, "Нет пробега") -> 0 | EF13: =SUMPRODUCT(--(MMULT(-([1]ДОРОЖНАЯ!$R$136:$U$144="+"),{1;1;1;1})>-4))-SUMPRODUCT(--(MMULT(-([1]ДОРОЖНАЯ!$R$136:$U$144="+"),{1;1;1;1})=0)) -> 0 | EG13: 0 | EH13: 0 | EI13: 0 | EJ13: =SUMPRODUCT(--(MMULT(-([1]ДОРОЖНАЯ!R136:U144="+"),{1;1;1;1})<0)) -> 0 | EK13: 0 | EL13: 0 | EM13: =COUNTA([1]ВСПОМОГАТЕЛЬНАЯ!$A$240:$A$250) -> 11 | EN13: =COUNTIF([1]ВСПОМОГАТЕЛЬНАЯ!$V$240:$V$250, "Не оборудован") -> 0 | EO13: =COUNTIF([1]ВСПОМОГАТЕЛЬНАЯ!$V$240:$V$250, "Нет пробега") -> 0 | EP13: =SUMPRODUCT(--(MMULT(-([1]ВСПОМОГАТЕЛЬНАЯ!$R$240:$U$250="+"),{1;1;1;1})>-4))-SUMPRODUCT(--(MMULT(-([1]ВСПОМОГАТЕЛЬНАЯ!$R$240:$U$250="+"),{1;1;1;1})=0)) -> 0 | EQ13: 0 | ER13: 0 | ES13: 0 | ET13: =SUMPRODUCT(--(MMULT(-([1]ВСПОМОГАТЕЛЬНАЯ!R240:U250="+"),{1;1;1;1})<0)) -> 0 | EU13: 0 | EV13: 0 | EW13: 27 | EX13: 0 | EY13: 0 | EZ13: 0 | FA13: 0 | FB13: 0 | FC13: 0 | FD13: 0 | FE13: 0 | FF13: 0 | FG13: =COUNTA([1]ВЫВОЗКА!$A$169:$A$175) -> 7 | FH13: =COUNTIF([1]ВЫВОЗКА!$AA$169:$AA$175, "Не оборудован") -> 0 | FI13: =COUNTIF([1]ВЫВОЗКА!$AA$169:$AA$175, "Нет пробега") -> 0 | FJ13: =SUMPRODUCT(--(MMULT(-([1]ВЫВОЗКА!$W$169:$Z$175="+"),{1;1;1;1})>-4))-SUMPRODUCT(--(MMULT(-([1]ВЫВОЗКА!$W$169:$Z$175="+"),{1;1;1;1})=0)) -> 0 | FK13: 0 | FL13: 0 | FM13: 0 | FN13: =SUMPRODUCT(--(MMULT(-([1]ВЫВОЗКА!$W$169:$Z$175="+"),{1;1;1;1})<0)) -> 0 | FO13: 0 | FP13: 0 | FQ13: =COUNTA([1]ДОРОЖНАЯ!$A$136:$A$144) -> 9 | FR13: =COUNTIF([1]ДОРОЖНАЯ!$AA$136:$AA$144, "Не оборудован") -> 0 | FS13: =COUNTIF([1]ДОРОЖНАЯ!$AA$136:$AA$144, "Нет пробега") -> 0 | FT13: =SUMPRODUCT(--(MMULT(-([1]ДОРОЖНАЯ!$W$136:$Z$144="+"),{1;1;1;1})>-4))-SUMPRODUCT(--(MMULT(-([1]ДОРОЖНАЯ!$W$136:$Z$144="+"),{1;1;1;1})=0)) -> 0 | FU13: 0 | FV13: 0 | FW13: 0 | FX13: =SUMPRODUCT(--(MMULT(-([1]ДОРОЖНАЯ!$W$136:$Z$144="+"),{1;1;1;1})<0)) -> 0 | FY13: 0 | FZ13: 0 | GA13: =COUNTA([1]ВСПОМОГАТЕЛЬНАЯ!$A$240:$A$250) -> 11 | GB13: =COUNTIF([1]ВСПОМОГАТЕЛЬНАЯ!$AA$240:$AA$250, "Не оборудован") -> 0 | GC13: =COUNTIF([1]ВСПОМОГАТЕЛЬНАЯ!$AA$240:$AA$250, "Нет пробега") -> 0 | GD13: =SUMPRODUCT(--(MMULT(-([1]ВСПОМОГАТЕЛЬНАЯ!$W$240:$Z$250="+"),{1;1;1;1})>-4))-SUMPRODUCT(--(MMULT(-([1]ВСПОМОГАТЕЛЬНАЯ!$W$240:$Z$250="+"),{1;1;1;1})=0)) -> 0 | GE13: 0 | GF13: 0 | GG13: 0 | GH13: =SUMPRODUCT(--(MMULT(-([1]ВСПОМОГАТЕЛЬНАЯ!$W$240:$Z$250="+"),{1;1;1;1})<0)) -> 0 | GI13: 0 | GJ13: 0 | GK13: 27 | GL13: 0 | GM13: 0 | GN13: 0 | GO13: 0 | GP13: 0 | GQ13: 0 | GR13: 0 | GS13: 0 | GT13: =GR13*100/(GK13-GL13-GM13) -> 0
A14: 9 | B14: Пинежское ОП | C14: =COUNTA([1]ВЫВОЗКА!$A$92:$A$100) -> 9 | D14: =COUNTIF([1]ВЫВОЗКА!$G$92:$G$100, "Не оборудован") -> 0 | E14: =COUNTIF([1]ВЫВОЗКА!$G$92:$G$100, "Нет пробега") -> 7 | F14: =SUMPRODUCT(--(MMULT(-([1]ВЫВОЗКА!$C$92:$F$100="+"),{1;1;1;1})>-4))-SUMPRODUCT(--(MMULT(-([1]ВЫВОЗКА!$C$92:$F$100="+"),{1;1;1;1})=0)) -> 0 | G14: 0 | H14: 2 | I14: 22.22222222 | J14: =SUMPRODUCT(--(MMULT(-([1]ВЫВОЗКА!$C$92:$F$100="+"),{1;1;1;1})<0)) -> 2 | K14: 22.22222222 | L14: 100 | M14: =COUNTA([1]ДОРОЖНАЯ!$A$76:$A$83) -> 8 | N14: =COUNTIF([1]ДОРОЖНАЯ!$G$76:$G$83, "Не оборудован") -> 0 | O14: =COUNTIF([1]ДОРОЖНАЯ!$G$76:$G$83, "Нет пробега") -> 1 | P14: =SUMPRODUCT(--(MMULT(-([1]ДОРОЖНАЯ!$C$76:$F$83="+"),{1;1;1;1})>-4))-SUMPRODUCT(--(MMULT(-([1]ДОРОЖНАЯ!$C$76:$F$83="+"),{1;1;1;1})=0)) -> 0 | Q14: 0 | R14: 4 | S14: 50 | T14: =SUMPRODUCT(--(MMULT(-([1]ДОРОЖНАЯ!$C$76:$F$83="+"),{1;1;1;1})<0)) -> 4 | U14: 50 | V14: 62.5 | W14: =COUNTA([1]ВСПОМОГАТЕЛЬНАЯ!$A$126:$A$138) -> 13 | X14: =COUNTIF([1]ВСПОМОГАТЕЛЬНАЯ!$G$126:$G$138, "Не оборудован") -> 0 | Y14: =COUNTIF([1]ВСПОМОГАТЕЛЬНАЯ!$G$126:$G$138, "Нет пробега") -> 7 | Z14: =SUMPRODUCT(--(MMULT(-([1]ВСПОМОГАТЕЛЬНАЯ!$C$126:$F$138="+"),{1;1;1;1})>-4))-SUMPRODUCT(--(MMULT(-([1]ВСПОМОГАТЕЛЬНАЯ!$C$126:$F$138="+"),{1;1;1;1})=0)) -> 0 | AA14: 0 | AB14: 4 | AC14: 30.76923077 | AD14: =SUMPRODUCT(--(MMULT(-([1]ВСПОМОГАТЕЛЬНАЯ!$C$126:$F$138="+"),{1;1;1;1})<0)) -> 4 | AE14: 30.76923077 | AF14: 84.61538462 | AG14: 30 | AH14: 0 | AI14: 15 | AJ14: 0 | AK14: 0 | AL14: 10 | AM14: 33.33333333 | AN14: 10 | AO14: 33.33333333 | AP14: 83.33333333 | AQ14: =COUNTA([1]ВЫВОЗКА!$A$92:$A$100) -> 9 | AR14: =COUNTIF([1]ВЫВОЗКА!$L$92:$L$100, "Не оборудован") -> 0 | AS14: =COUNTIF([1]ВЫВОЗКА!$L$92:$L$100, "Нет пробега") -> 3 | AT14: =SUMPRODUCT(--(MMULT(-([1]ВЫВОЗКА!$H$92:$K$100="+"),{1;1;1;1})>-4))-SUMPRODUCT(--(MMULT(-([1]ВЫВОЗКА!$H$92:$K$100="+"),{1;1;1;1})=0)) -> 0 | AU14: 0 | AV14: 6 | AW14: 66.66666667 | AX14: =SUMPRODUCT(--(MMULT(-([1]ВЫВОЗКА!$H$92:$K$100="+"),{1;1;1;1})<0)) -> 6 | AY14: 66.66666667 | AZ14: 100 | BA14: =COUNTA([1]ДОРОЖНАЯ!$A$76:$A$83) -> 8 | BB14: =COUNTIF([1]ДОРОЖНАЯ!$L$76:$L$83, "Не оборудован") -> 0 | BC14: =COUNTIF([1]ДОРОЖНАЯ!$L$76:$L$83, "Нет пробега") -> 1 | BD14: =SUMPRODUCT(--(MMULT(-([1]ДОРОЖНАЯ!$H$76:$K$83="+"),{1;1;1;1})>-4))-SUMPRODUCT(--(MMULT(-([1]ДОРОЖНАЯ!$H$76:$K$83="+"),{1;1;1;1})=0)) -> 0 | BE14: 0 | BF14: 6 | BG14: 75 | BH14: =SUMPRODUCT(--(MMULT(-([1]ДОРОЖНАЯ!H76:K83="+"),{1;1;1;1})<0)) -> 6 | BI14: 75 | BJ14: 87.5 | BK14: =COUNTA([1]ВСПОМОГАТЕЛЬНАЯ!$A$126:$A$138) -> 13 | BL14: =COUNTIF([1]ВСПОМОГАТЕЛЬНАЯ!$L$126:$L$138, "Не оборудован") -> 0 | BM14: =COUNTIF([1]ВСПОМОГАТЕЛЬНАЯ!$L$126:$L$138, "Нет пробега") -> 7 | BN14: =SUMPRODUCT(--(MMULT(-([1]ВСПОМОГАТЕЛЬНАЯ!$H$126:$K$138="+"),{1;1;1;1})>-4))-SUMPRODUCT(--(MMULT(-([1]ВСПОМОГАТЕЛЬНАЯ!$H$126:$K$138="+"),{1;1;1;1})=0)) -> 0 | BO14: 0 | BP14: 4 | BQ14: 30.76923077 | BR14: =SUMPRODUCT(--(MMULT(-([1]ВСПОМОГАТЕЛЬНАЯ!H126:K138="+"),{1;1;1;1})<0)) -> 4 | BS14: 30.76923077 | BT14: 84.61538462 | BU14: 30 | BV14: 0 | BW14: =SUM(AS14,BC14,BM14) -> 11 | BX14: 0 | BY14: 0 | BZ14: 16 | CA14: 53.33333333 | CB14: 16 | CC14: 53.33333333 | CD14: 90 | CE14: =COUNTA([1]ВЫВОЗКА!$A$92:$A$100) -> 9 | CF14: =COUNTIF([1]ВЫВОЗКА!$Q$92:$Q$100, "Не оборудован") -> 0 | CG14: =COUNTIF([1]ВЫВОЗКА!$Q$92:$Q$100, "Нет пробега") -> 0 | CH14: =SUMPRODUCT(--(MMULT(-([1]ВЫВОЗКА!$M$92:$P$100="+"),{1;1;1;1})>-4))-SUMPRODUCT(--(MMULT(-([1]ВЫВОЗКА!$M$92:$P$100="+"),{1;1;1;1})=0)) -> 0 | CI14: 0 | CJ14: 0 | CK14: 0 | CL14: =SUMPRODUCT(--(MMULT(-([1]ВЫВОЗКА!M92:P100="+"),{1;1;1;1})<0)) -> 0 | CM14: 0 | CN14: 0 | CO14: =COUNTA([1]ДОРОЖНАЯ!$A$76:$A$83) -> 8 | CP14: =COUNTIF([1]ДОРОЖНАЯ!$Q$76:$Q$83, "Не оборудован") -> 0 | CQ14: =COUNTIF([1]ДОРОЖНАЯ!$Q$76:$Q$83, "Нет пробега") -> 0 | CR14: =SUMPRODUCT(--(MMULT(-([1]ДОРОЖНАЯ!$M$76:$P$83="+"),{1;1;1;1})>-4))-SUMPRODUCT(--(MMULT(-([1]ДОРОЖНАЯ!$M$76:$P$83="+"),{1;1;1;1})=0)) -> 0 | CS14: 0 | CT14: 0 | CU14: 0 | CV14: =SUMPRODUCT(--(MMULT(-([1]ДОРОЖНАЯ!M76:P83="+"),{1;1;1;1})<0)) -> 0 | CW14: 0 | CX14: 0 | CY14: =COUNTA([1]ВСПОМОГАТЕЛЬНАЯ!$A$126:$A$138) -> 13 | CZ14: =COUNTIF([1]ВСПОМОГАТЕЛЬНАЯ!$Q$126:$Q$138, "Не оборудован") -> 0 | DA14: =COUNTIF([1]ВСПОМОГАТЕЛЬНАЯ!$Q$126:$Q$138, "Нет пробега") -> 0 | DB14: =SUMPRODUCT(--(MMULT(-([1]ВСПОМОГАТЕЛЬНАЯ!$M$126:$P$138="+"),{1;1;1;1})>-4))-SUMPRODUCT(--(MMULT(-([1]ВСПОМОГАТЕЛЬНАЯ!$M$126:$P$138="+"),{1;1;1;1})=0)) -> 0 | DC14: 0 | DD14: 0 | DE14: 0 | DF14: =SUMPRODUCT(--(MMULT(-([1]ВСПОМОГАТЕЛЬНАЯ!M126:P138="+"),{1;1;1;1})<0)) -> 0 | DG14: 0 | DH14: 0 | DI14: 30 | DJ14: 0 | DK14: 0 | DL14: 0 | DM14: 0 | DN14: 0 | DO14: 0 | DP14: 0 | DQ14: 0 | DR14: 0 | DS14: =COUNTA([1]ВЫВОЗКА!$A$92:$A$100) -> 9 | DT14: =COUNTIF([1]ВЫВОЗКА!$V$92:$V$100, "Не оборудован") -> 0 | DU14: =COUNTIF([1]ВЫВОЗКА!$V$92:$V$100, "Нет пробега") -> 0 | DV14: =SUMPRODUCT(--(MMULT(-([1]ВЫВОЗКА!$R$92:$U$100="+"),{1;1;1;1})>-4))-SUMPRODUCT(--(MMULT(-([1]ВЫВОЗКА!$R$92:$U$100="+"),{1;1;1;1})=0)) -> 0 | DW14: 0 | DX14: 0 | DY14: 0 | DZ14: =SUMPRODUCT(--(MMULT(-([1]ВЫВОЗКА!R92:U100="+"),{1;1;1;1})<0)) -> 0 | EA14: 0 | EB14: 0 | EC14: =COUNTA([1]ДОРОЖНАЯ!$A$76:$A$83) -> 8 | ED14: =COUNTIF([1]ДОРОЖНАЯ!$V$76:$V$83, "Не оборудован") -> 0 | EE14: =COUNTIF([1]ДОРОЖНАЯ!$V$76:$V$83, "Нет пробега") -> 0 | EF14: =SUMPRODUCT(--(MMULT(-([1]ДОРОЖНАЯ!$R$76:$U$83="+"),{1;1;1;1})>-4))-SUMPRODUCT(--(MMULT(-([1]ДОРОЖНАЯ!$R$76:$U$83="+"),{1;1;1;1})=0)) -> 0 | EG14: 0 | EH14: 0 | EI14: 0 | EJ14: =SUMPRODUCT(--(MMULT(-([1]ДОРОЖНАЯ!R76:U83="+"),{1;1;1;1})<0)) -> 0 | EK14: 0 | EL14: 0 | EM14: =COUNTA([1]ВСПОМОГАТЕЛЬНАЯ!$A$126:$A$138) -> 13 | EN14: =COUNTIF([1]ВСПОМОГАТЕЛЬНАЯ!$V$126:$V$138, "Не оборудован") -> 0 | EO14: =COUNTIF([1]ВСПОМОГАТЕЛЬНАЯ!$V$126:$V$138, "Нет пробега") -> 0 | EP14: =SUMPRODUCT(--(MMULT(-([1]ВСПОМОГАТЕЛЬНАЯ!$R$126:$U$138="+"),{1;1;1;1})>-4))-SUMPRODUCT(--(MMULT(-([1]ВСПОМОГАТЕЛЬНАЯ!$R$126:$U$138="+"),{1;1;1;1})=0)) -> 0 | EQ14: 0 | ER14: 0 | ES14: 0 | ET14: =SUMPRODUCT(--(MMULT(-([1]ВСПОМОГАТЕЛЬНАЯ!R126:U138="+"),{1;1;1;1})<0)) -> 0 | EU14: 0 | EV14: 0 | EW14: 30 | EX14: 0 | EY14: 0 | EZ14: 0 | FA14: 0 | FB14: 0 | FC14: 0 | FD14: 0 | FE14: 0 | FF14: 0 | FG14: =COUNTA([1]ВЫВОЗКА!$A$92:$A$100) -> 9 | FH14: =COUNTIF([1]ВЫВОЗКА!$AA$92:$AA$100, "Не оборудован") -> 0 | FI14: =COUNTIF([1]ВЫВОЗКА!$AA$92:$AA$100, "Нет пробега") -> 2 | FJ14: =SUMPRODUCT(--(MMULT(-([1]ВЫВОЗКА!$W$92:$Z$100="+"),{1;1;1;1})>-4))-SUMPRODUCT(--(MMULT(-([1]ВЫВОЗКА!$W$92:$Z$100="+"),{1;1;1;1})=0)) -> 0 | FK14: 0 | FL14: 0 | FM14: 0 | FN14: =SUMPRODUCT(--(MMULT(-([1]ВЫВОЗКА!$W$92:$Z$100="+"),{1;1;1;1})<0)) -> 0 | FO14: 0 | FP14: 0 | FQ14: =COUNTA([1]ДОРОЖНАЯ!$A$76:$A$83) -> 8 | FR14: =COUNTIF([1]ДОРОЖНАЯ!$AA$76:$AA$83, "Не оборудован") -> 0 | FS14: =COUNTIF([1]ДОРОЖНАЯ!$AA$76:$AA$83, "Нет пробега") -> 0 | FT14: =SUMPRODUCT(--(MMULT(-([1]ДОРОЖНАЯ!$W$76:$Z$83="+"),{1;1;1;1})>-4))-SUMPRODUCT(--(MMULT(-([1]ДОРОЖНАЯ!$W$76:$Z$83="+"),{1;1;1;1})=0)) -> 0 | FU14: 0 | FV14: 0 | FW14: 0 | FX14: =SUMPRODUCT(--(MMULT(-([1]ДОРОЖНАЯ!$W$76:$Z$83="+"),{1;1;1;1})<0)) -> 0 | FY14: 0 | FZ14: 0 | GA14: =COUNTA([1]ВСПОМОГАТЕЛЬНАЯ!$A$126:$A$138) -> 13 | GB14: =COUNTIF([1]ВСПОМОГАТЕЛЬНАЯ!$AA$126:$AA$138, "Не оборудован") -> 0 | GC14: =COUNTIF([1]ВСПОМОГАТЕЛЬНАЯ!$AA$126:$AA$138, "Нет пробега") -> 0 | GD14: =SUMPRODUCT(--(MMULT(-([1]ВСПОМОГАТЕЛЬНАЯ!$W$126:$Z$138="+"),{1;1;1;1})>-4))-SUMPRODUCT(--(MMULT(-([1]ВСПОМОГАТЕЛЬНАЯ!$W$126:$Z$138="+"),{1;1;1;1})=0)) -> 0 | GE14: 0 | GF14: 0 | GG14: 0 | GH14: =SUMPRODUCT(--(MMULT(-([1]ВСПОМОГАТЕЛЬНАЯ!$W$126:$Z$138="+"),{1;1;1;1})<0)) -> 0 | GI14: 0 | GJ14: 0 | GK14: 30 | GL14: 0 | GM14: 2 | GN14: 0 | GO14: 0 | GP14: 0 | GQ14: 0 | GR14: 0 | GS14: 0 | GT14: 0
A15: 10 | B15: Луковецкое ОП | C15: =COUNTA([1]ВЫВОЗКА!$A$81:$A$89) -> 9 | D15: =COUNTIF([1]ВЫВОЗКА!$G$81:$G$89, "Не оборудован") -> 0 | E15: =COUNTIF([1]ВЫВОЗКА!$G$81:$G$89, "Нет пробега") -> 7 | F15: =SUMPRODUCT(--(MMULT(-([1]ВЫВОЗКА!$C$81:$F$89="+"),{1;1;1;1})>-4))-SUMPRODUCT(--(MMULT(-([1]ВЫВОЗКА!$C$81:$F$89="+"),{1;1;1;1})=0)) -> 0 | G15: 0 | H15: 2 | I15: 22.22222222 | J15: =SUMPRODUCT(--(MMULT(-([1]ВЫВОЗКА!$C$81:$F$89="+"),{1;1;1;1})<0)) -> 2 | K15: 22.22222222 | L15: 100 | M15: =COUNTA([1]ДОРОЖНАЯ!$A$65:$A$73) -> 9 | N15: =COUNTIF([1]ДОРОЖНАЯ!$G$65:$G$73, "Не оборудован") -> 0 | O15: =COUNTIF([1]ДОРОЖНАЯ!$G$65:$G$73, "Нет пробега") -> 1 | P15: =SUMPRODUCT(--(MMULT(-([1]ДОРОЖНАЯ!$C$65:$F$73="+"),{1;1;1;1})>-4))-SUMPRODUCT(--(MMULT(-([1]ДОРОЖНАЯ!$C$65:$F$73="+"),{1;1;1;1})=0)) -> 0 | Q15: 0 | R15: 6 | S15: 66.66666667 | T15: =SUMPRODUCT(--(MMULT(-([1]ДОРОЖНАЯ!$C$65:$F$73="+"),{1;1;1;1})<0)) -> 6 | U15: 66.66666667 | V15: 77.77777778 | W15: =COUNTA([1]ВСПОМОГАТЕЛЬНАЯ!$A$102:$A$123) -> 22 | X15: =COUNTIF([1]ВСПОМОГАТЕЛЬНАЯ!$G$102:$G$123, "Не оборудован") -> 0 | Y15: =COUNTIF([1]ВСПОМОГАТЕЛЬНАЯ!$G$102:$G$123, "Нет пробега") -> 2 | Z15: =SUMPRODUCT(--(MMULT(-([1]ВСПОМОГАТЕЛЬНАЯ!$C$102:$F$123="+"),{1;1;1;1})>-4))-SUMPRODUCT(--(MMULT(-([1]ВСПОМОГАТЕЛЬНАЯ!$C$102:$F$123="+"),{1;1;1;1})=0)) -> 0 | AA15: 0 | AB15: 15 | AC15: 68.18181818 | AD15: =SUMPRODUCT(--(MMULT(-([1]ВСПОМОГАТЕЛЬНАЯ!$C$102:$F$123="+"),{1;1;1;1})<0)) -> 15 | AE15: 68.18181818 | AF15: 77.27272727 | AG15: 40 | AH15: 0 | AI15: 10 | AJ15: 0 | AK15: 0 | AL15: 23 | AM15: 57.5 | AN15: 23 | AO15: 57.5 | AP15: =(AN15+AH15+AI15)*100/AG15 -> 82.5 | AQ15: =COUNTA([1]ВЫВОЗКА!$A$81:$A$89) -> 9 | AR15: =COUNTIF([1]ВЫВОЗКА!$L$81:$L$89, "Не оборудован") -> 0 | AS15: =COUNTIF([1]ВЫВОЗКА!$L$81:$L$89, "Нет пробега") -> 3 | AT15: =SUMPRODUCT(--(MMULT(-([1]ВЫВОЗКА!$H$81:$K$89="+"),{1;1;1;1})>-4))-SUMPRODUCT(--(MMULT(-([1]ВЫВОЗКА!$H$81:$K$89="+"),{1;1;1;1})=0)) -> 0 | AU15: 0 | AV15: 6 | AW15: 66.66666667 | AX15: =SUMPRODUCT(--(MMULT(-([1]ВЫВОЗКА!$H$81:$K$89="+"),{1;1;1;1})<0)) -> 6 | AY15: 66.66666667 | AZ15: 100 | BA15: =COUNTA([1]ДОРОЖНАЯ!$A$65:$A$73) -> 9 | BB15: =COUNTIF([1]ДОРОЖНАЯ!$L$65:$L$73, "Не оборудован") -> 0 | BC15: =COUNTIF([1]ДОРОЖНАЯ!$L$65:$L$73, "Нет пробега") -> 1 | BD15: =SUMPRODUCT(--(MMULT(-([1]ДОРОЖНАЯ!$H$65:$K$73="+"),{1;1;1;1})>-4))-SUMPRODUCT(--(MMULT(-([1]ДОРОЖНАЯ!$H$65:$K$73="+"),{1;1;1;1})=0)) -> 0 | BE15: 0 | BF15: 8 | BG15: 88.88888889 | BH15: =SUMPRODUCT(--(MMULT(-([1]ДОРОЖНАЯ!H65:K73="+"),{1;1;1;1})<0)) -> 8 | BI15: 88.88888889 | BJ15: 100 | BK15: =COUNTA([1]ВСПОМОГАТЕЛЬНАЯ!$A$102:$A$123) -> 22 | BL15: =COUNTIF([1]ВСПОМОГАТЕЛЬНАЯ!$L$102:$L$123, "Не оборудован") -> 0 | BM15: =COUNTIF([1]ВСПОМОГАТЕЛЬНАЯ!$L$102:$L$123, "Нет пробега") -> 2 | BN15: =SUMPRODUCT(--(MMULT(-([1]ВСПОМОГАТЕЛЬНАЯ!$H$102:$K$123="+"),{1;1;1;1})>-4))-SUMPRODUCT(--(MMULT(-([1]ВСПОМОГАТЕЛЬНАЯ!$H$102:$K$123="+"),{1;1;1;1})=0)) -> 0 | BO15: 0 | BP15: 15 | BQ15: 68.18181818 | BR15: =SUMPRODUCT(--(MMULT(-([1]ВСПОМОГАТЕЛЬНАЯ!H102:K123="+"),{1;1;1;1})<0)) -> 15 | BS15: 68.18181818 | BT15: 77.27272727 | BU15: 40 | BV15: 0 | BW15: 6 | BX15: 0 | BY15: 0 | BZ15: 29 | CA15: 72.5 | CB15: 29 | CC15: 72.5 | CD15: 87.5 | CE15: =COUNTA([1]ВЫВОЗКА!$A$81:$A$89) -> 9 | CF15: =COUNTIF([1]ВЫВОЗКА!$Q$81:$Q$89, "Не оборудован") -> 0 | CG15: =COUNTIF([1]ВЫВОЗКА!$Q$81:$Q$89, "Нет пробега") -> 0 | CH15: =SUMPRODUCT(--(MMULT(-([1]ВЫВОЗКА!$M$81:$P$89="+"),{1;1;1;1})>-4))-SUMPRODUCT(--(MMULT(-([1]ВЫВОЗКА!$M$81:$P$89="+"),{1;1;1;1})=0)) -> 0 | CI15: 0 | CJ15: 0 | CK15: 0 | CL15: =SUMPRODUCT(--(MMULT(-([1]ВЫВОЗКА!M81:P89="+"),{1;1;1;1})<0)) -> 0 | CM15: 0 | CN15: 0 | CO15: =COUNTA([1]ДОРОЖНАЯ!$A$65:$A$73) -> 9 | CP15: =COUNTIF([1]ДОРОЖНАЯ!$Q$65:$Q$73, "Не оборудован") -> 0 | CQ15: =COUNTIF([1]ДОРОЖНАЯ!$Q$65:$Q$73, "Нет пробега") -> 0 | CR15: =SUMPRODUCT(--(MMULT(-([1]ДОРОЖНАЯ!$M$65:$P$73="+"),{1;1;1;1})>-4))-SUMPRODUCT(--(MMULT(-([1]ДОРОЖНАЯ!$M$65:$P$73="+"),{1;1;1;1})=0)) -> 0 | CS15: 0 | CT15: 0 | CU15: 0 | CV15: =SUMPRODUCT(--(MMULT(-([1]ДОРОЖНАЯ!M65:P73="+"),{1;1;1;1})<0)) -> 0 | CW15: 0 | CX15: 0 | CY15: =COUNTA([1]ВСПОМОГАТЕЛЬНАЯ!$A$102:$A$123) -> 22 | CZ15: =COUNTIF([1]ВСПОМОГАТЕЛЬНАЯ!$Q$102:$Q$123, "Не оборудован") -> 0 | DA15: =COUNTIF([1]ВСПОМОГАТЕЛЬНАЯ!$Q$102:$Q$123, "Нет пробега") -> 0 | DB15: =SUMPRODUCT(--(MMULT(-([1]ВСПОМОГАТЕЛЬНАЯ!$M$102:$P$123="+"),{1;1;1;1})>-4))-SUMPRODUCT(--(MMULT(-([1]ВСПОМОГАТЕЛЬНАЯ!$M$102:$P$123="+"),{1;1;1;1})=0)) -> 0 | DC15: 0 | DD15: 0 | DE15: 0 | DF15: =SUMPRODUCT(--(MMULT(-([1]ВСПОМОГАТЕЛЬНАЯ!M102:P123="+"),{1;1;1;1})<0)) -> 0 | DG15: 0 | DH15: 0 | DI15: 40 | DJ15: 0 | DK15: 0 | DL15: 0 | DM15: 0 | DN15: 0 | DO15: 0 | DP15: 0 | DQ15: 0 | DR15: 0 | DS15: =COUNTA([1]ВЫВОЗКА!$A$81:$A$89) -> 9 | DT15: =COUNTIF([1]ВЫВОЗКА!$V$81:$V$89, "Не оборудован") -> 0 | DU15: =COUNTIF([1]ВЫВОЗКА!$V$81:$V$89, "Нет пробега") -> 0 | DV15: =SUMPRODUCT(--(MMULT(-([1]ВЫВОЗКА!$R$81:$U$89="+"),{1;1;1;1})>-4))-SUMPRODUCT(--(MMULT(-([1]ВЫВОЗКА!$R$81:$U$89="+"),{1;1;1;1})=0)) -> 0 | DW15: 0 | DX15: 0 | DY15: 0 | DZ15: =SUMPRODUCT(--(MMULT(-([1]ВЫВОЗКА!R81:U89="+"),{1;1;1;1})<0)) -> 0 | EA15: 0 | EB15: 0 | EC15: =COUNTA([1]ДОРОЖНАЯ!$A$65:$A$73) -> 9 | ED15: =COUNTIF([1]ДОРОЖНАЯ!$V$65:$V$73, "Не оборудован") -> 0 | EE15: =COUNTIF([1]ДОРОЖНАЯ!$V$65:$V$73, "Нет пробега") -> 0 | EF15: =SUMPRODUCT(--(MMULT(-([1]ДОРОЖНАЯ!$R$65:$U$73="+"),{1;1;1;1})>-4))-SUMPRODUCT(--(MMULT(-([1]ДОРОЖНАЯ!$R$65:$U$73="+"),{1;1;1;1})=0)) -> 0 | EG15: 0 | EH15: 0 | EI15: 0 | EJ15: =SUMPRODUCT(--(MMULT(-([1]ДОРОЖНАЯ!R65:U73="+"),{1;1;1;1})<0)) -> 0 | EK15: 0 | EL15: 0 | EM15: =COUNTA([1]ВСПОМОГАТЕЛЬНАЯ!$A$102:$A$123) -> 22 | EN15: =COUNTIF([1]ВСПОМОГАТЕЛЬНАЯ!$V$102:$V$123, "Не оборудован") -> 0 | EO15: =COUNTIF([1]ВСПОМОГАТЕЛЬНАЯ!$V$102:$V$123, "Нет пробега") -> 0 | EP15: =SUMPRODUCT(--(MMULT(-([1]ВСПОМОГАТЕЛЬНАЯ!$R$102:$U$123="+"),{1;1;1;1})>-4))-SUMPRODUCT(--(MMULT(-([1]ВСПОМОГАТЕЛЬНАЯ!$R$102:$U$123="+"),{1;1;1;1})=0)) -> 0 | EQ15: 0 | ER15: 0 | ES15: 0 | ET15: =SUMPRODUCT(--(MMULT(-([1]ВСПОМОГАТЕЛЬНАЯ!R102:U123="+"),{1;1;1;1})<0)) -> 0 | EU15: 0 | EV15: 0 | EW15: 40 | EX15: 0 | EY15: 0 | EZ15: 0 | FA15: 0 | FB15: 0 | FC15: 0 | FD15: 0 | FE15: 0 | FF15: 0 | FG15: =COUNTA([1]ВЫВОЗКА!$A$81:$A$89) -> 9 | FH15: =COUNTIF([1]ВЫВОЗКА!$AA$81:$AA$89, "Не оборудован") -> 0 | FI15: =COUNTIF([1]ВЫВОЗКА!$AA$81:$AA$89, "Нет пробега") -> 0 | FJ15: =SUMPRODUCT(--(MMULT(-([1]ВЫВОЗКА!$W$81:$Z$89="+"),{1;1;1;1})>-4))-SUMPRODUCT(--(MMULT(-([1]ВЫВОЗКА!$W$81:$Z$89="+"),{1;1;1;1})=0)) -> 0 | FK15: 0 | FL15: 0 | FM15: 0 | FN15: =SUMPRODUCT(--(MMULT(-([1]ВЫВОЗКА!$W$81:$Z$89="+"),{1;1;1;1})<0)) -> 0 | FO15: 0 | FP15: 0 | FQ15: =COUNTA([1]ДОРОЖНАЯ!$A$65:$A$73) -> 9 | FR15: =COUNTIF([1]ДОРОЖНАЯ!$AA$65:$AA$73, "Не оборудован") -> 0 | FS15: =COUNTIF([1]ДОРОЖНАЯ!$AA$65:$AA$73, "Нет пробега") -> 0 | FT15: =SUMPRODUCT(--(MMULT(-([1]ДОРОЖНАЯ!$W$65:$Z$73="+"),{1;1;1;1})>-4))-SUMPRODUCT(--(MMULT(-([1]ДОРОЖНАЯ!$W$65:$Z$73="+"),{1;1;1;1})=0)) -> 0 | FU15: 0 | FV15: 0 | FW15: 0 | FX15: =SUMPRODUCT(--(MMULT(-([1]ДОРОЖНАЯ!$W$65:$Z$73="+"),{1;1;1;1})<0)) -> 0 | FY15: 0 | FZ15: 0 | GA15: =COUNTA([1]ВСПОМОГАТЕЛЬНАЯ!$A$102:$A$123) -> 22 | GB15: =COUNTIF([1]ВСПОМОГАТЕЛЬНАЯ!$AA$102:$AA$123, "Не оборудован") -> 0 | GC15: =COUNTIF([1]ВСПОМОГАТЕЛЬНАЯ!$AA$102:$AA$123, "Нет пробега") -> 0 | GD15: =SUMPRODUCT(--(MMULT(-([1]ВСПОМОГАТЕЛЬНАЯ!$W$102:$Z$123="+"),{1;1;1;1})>-4))-SUMPRODUCT(--(MMULT(-([1]ВСПОМОГАТЕЛЬНАЯ!$W$102:$Z$123="+"),{1;1;1;1})=0)) -> 0 | GE15: 0 | GF15: 0 | GG15: 0 | GH15: =SUMPRODUCT(--(MMULT(-([1]ВСПОМОГАТЕЛЬНАЯ!$W$102:$Z$123="+"),{1;1;1;1})<0)) -> 0 | GI15: 0 | GJ15: 0 | GK15: 40 | GL15: 0 | GM15: 0 | GN15: 0 | GO15: 0 | GP15: 0 | GQ15: 0 | GR15: 0 | GS15: 0 | GT15: 0
A16: 11 | B16: Верхнетоемское ОП | C16: =COUNTA([1]ВЫВОЗКА!$A$28:$A$49) -> 22 | D16: =COUNTIF([1]ВЫВОЗКА!$G$28:$G$49, "Не оборудован") -> 0 | E16: =COUNTIF([1]ВЫВОЗКА!$G$28:$G$49, "Нет пробега") -> 21 | F16: =SUMPRODUCT(--(MMULT(-([1]ВЫВОЗКА!$C$28:$F$49="+"),{1;1;1;1})>-4))-SUMPRODUCT(--(MMULT(-([1]ВЫВОЗКА!$C$28:$F$49="+"),{1;1;1;1})=0)) -> 0 | G16: 0 | H16: 0 | I16: 0 | J16: =SUMPRODUCT(--(MMULT(-([1]ВЫВОЗКА!$C$28:$F$49="+"),{1;1;1;1})<0)) -> 0 | K16: 0 | L16: 95.45454545 | M16: =COUNTA([1]ДОРОЖНАЯ!$A$26:$A$35) -> 10 | N16: =COUNTIF([1]ДОРОЖНАЯ!$G$26:$G$35, "Не оборудован") -> 0 | O16: =COUNTIF([1]ДОРОЖНАЯ!$G$26:$G$35, "Нет пробега") -> 3 | P16: =SUMPRODUCT(--(MMULT(-([1]ДОРОЖНАЯ!$C$26:$F$35="+"),{1;1;1;1})>-4))-SUMPRODUCT(--(MMULT(-([1]ДОРОЖНАЯ!$C$26:$F$35="+"),{1;1;1;1})=0)) -> 0 | Q16: =P16*100/M16 -> 0 | R16: 6 | S16: 60 | T16: =SUMPRODUCT(--(MMULT(-([1]ДОРОЖНАЯ!$C$26:$F$35="+"),{1;1;1;1})<0)) -> 6 | U16: 60 | V16: 90 | W16: =COUNTA([1]ВСПОМОГАТЕЛЬНАЯ!$A$33:$A$57) -> 25 | X16: =COUNTIF([1]ВСПОМОГАТЕЛЬНАЯ!$G$33:$G$57, "Не оборудован") -> 0 | Y16: =COUNTIF([1]ВСПОМОГАТЕЛЬНАЯ!$G$33:$G$57, "Нет пробега") -> 7 | Z16: =SUMPRODUCT(--(MMULT(-([1]ВСПОМОГАТЕЛЬНАЯ!$C$33:$F$57="+"),{1;1;1;1})>-4))-SUMPRODUCT(--(MMULT(-([1]ВСПОМОГАТЕЛЬНАЯ!$C$33:$F$57="+"),{1;1;1;1})=0)) -> 1 | AA16: =Z16*100/W16 -> 4 | AB16: 8 | AC16: 32 | AD16: =SUMPRODUCT(--(MMULT(-([1]ВСПОМОГАТЕЛЬНАЯ!$C$33:$F$57="+"),{1;1;1;1})<0)) -> 9 | AE16: 36 | AF16: 64 | AG16: 57 | AH16: 0 | AI16: 31 | AJ16: 1 | AK16: 1.754385965 | AL16: 14 | AM16: 24.56140351 | AN16: 15 | AO16: 26.31578947 | AP16: =(AN16+AH16+AI16)*100/AG16 -> 80.70175439 | AQ16: =COUNTA([1]ВЫВОЗКА!$A$28:$A$49) -> 22 | AR16: =COUNTIF([1]ВЫВОЗКА!$L$28:$L$49, "Не оборудован") -> 0 | AS16: =COUNTIF([1]ВЫВОЗКА!$L$28:$L$49, "Нет пробега") -> 11 | AT16: =SUMPRODUCT(--(MMULT(-([1]ВЫВОЗКА!$H$28:$K$49="+"),{1;1;1;1})>-4))-SUMPRODUCT(--(MMULT(-([1]ВЫВОЗКА!$H$28:$K$49="+"),{1;1;1;1})=0)) -> 0 | AU16: 0 | AV16: 0 | AW16: 0 | AX16: =SUMPRODUCT(--(MMULT(-([1]ВЫВОЗКА!$H$28:$K$49="+"),{1;1;1;1})<0)) -> 0 | AY16: 0 | AZ16: 50 | BA16: =COUNTA([1]ДОРОЖНАЯ!$A$26:$A$35) -> 10 | BB16: =COUNTIF([1]ДОРОЖНАЯ!$L$26:$L$35, "Не оборудован") -> 0 | BC16: =COUNTIF([1]ДОРОЖНАЯ!$L$26:$L$35, "Нет пробега") -> 1 | BD16: =SUMPRODUCT(--(MMULT(-([1]ДОРОЖНАЯ!$H$26:$K$35="+"),{1;1;1;1})>-4))-SUMPRODUCT(--(MMULT(-([1]ДОРОЖНАЯ!$H$26:$K$35="+"),{1;1;1;1})=0)) -> 0 | BE16: =BD16*100/BA16 -> 0 | BF16: 3 | BG16: 30 | BH16: =SUMPRODUCT(--(MMULT(-([1]ДОРОЖНАЯ!H26:K35="+"),{1;1;1;1})<0)) -> 3 | BI16: 30 | BJ16: 40 | BK16: =COUNTA([1]ВСПОМОГАТЕЛЬНАЯ!$A$33:$A$57) -> 25 | BL16: =COUNTIF([1]ВСПОМОГАТЕЛЬНАЯ!$L$33:$L$57, "Не оборудован") -> 0 | BM16: =COUNTIF([1]ВСПОМОГАТЕЛЬНАЯ!$L$33:$L$57, "Нет пробега") -> 4 | BN16: =SUMPRODUCT(--(MMULT(-([1]ВСПОМОГАТЕЛЬНАЯ!$H$33:$K$57="+"),{1;1;1;1})>-4))-SUMPRODUCT(--(MMULT(-([1]ВСПОМОГАТЕЛЬНАЯ!$H$33:$K$57="+"),{1;1;1;1})=0)) -> 0 | BO16: =BN16*100/BK16 -> 0 | BP16: 4 | BQ16: 16 | BR16: =SUMPRODUCT(--(MMULT(-([1]ВСПОМОГАТЕЛЬНАЯ!H33:K57="+"),{1;1;1;1})<0)) -> 4 | BS16: 16 | BT16: 32 | BU16: 57 | BV16: 0 | BW16: 16 | BX16: 0 | BY16: 0 | BZ16: 7 | CA16: 12.28070175 | CB16: 7 | CC16: 12.28070175 | CD16: =(CB16+BV16+BW16)*100/BU16 -> 40.35087719 | CE16: =COUNTA([1]ВЫВОЗКА!$A$28:$A$49) -> 22 | CF16: =COUNTIF([1]ВЫВОЗКА!$Q$28:$Q$49, "Не оборудован") -> 0 | CG16: =COUNTIF([1]ВЫВОЗКА!$Q$28:$Q$49, "Нет пробега") -> 0 | CH16: =SUMPRODUCT(--(MMULT(-([1]ВЫВОЗКА!$M$28:$P$49="+"),{1;1;1;1})>-4))-SUMPRODUCT(--(MMULT(-([1]ВЫВОЗКА!$M$28:$P$49="+"),{1;1;1;1})=0)) -> 0 | CI16: 0 | CJ16: 0 | CK16: 0 | CL16: =SUMPRODUCT(--(MMULT(-([1]ВЫВОЗКА!M28:P49="+"),{1;1;1;1})<0)) -> 0 | CM16: 0 | CN16: 0 | CO16: =COUNTA([1]ДОРОЖНАЯ!$A$26:$A$35) -> 10 | CP16: =COUNTIF([1]ДОРОЖНАЯ!$Q$26:$Q$35, "Не оборудован") -> 0 | CQ16: =COUNTIF([1]ДОРОЖНАЯ!$Q$26:$Q$35, "Нет пробега") -> 0 | CR16: =SUMPRODUCT(--(MMULT(-([1]ДОРОЖНАЯ!$M$26:$P$35="+"),{1;1;1;1})>-4))-SUMPRODUCT(--(MMULT(-([1]ДОРОЖНАЯ!$M$26:$P$35="+"),{1;1;1;1})=0)) -> 0 | CS16: 0 | CT16: 0 | CU16: 0 | CV16: =SUMPRODUCT(--(MMULT(-([1]ДОРОЖНАЯ!M26:P35="+"),{1;1;1;1})<0)) -> 0 | CW16: 0 | CX16: 0 | CY16: =COUNTA([1]ВСПОМОГАТЕЛЬНАЯ!$A$33:$A$57) -> 25 | CZ16: =COUNTIF([1]ВСПОМОГАТЕЛЬНАЯ!$Q$33:$Q$57, "Не оборудован") -> 0 | DA16: =COUNTIF([1]ВСПОМОГАТЕЛЬНАЯ!$Q$33:$Q$57, "Нет пробега") -> 0 | DB16: =SUMPRODUCT(--(MMULT(-([1]ВСПОМОГАТЕЛЬНАЯ!$M$33:$P$57="+"),{1;1;1;1})>-4))-SUMPRODUCT(--(MMULT(-([1]ВСПОМОГАТЕЛЬНАЯ!$M$33:$P$57="+"),{1;1;1;1})=0)) -> 0 | DC16: 0 | DD16: 0 | DE16: 0 | DF16: =SUMPRODUCT(--(MMULT(-([1]ВСПОМОГАТЕЛЬНАЯ!M33:P57="+"),{1;1;1;1})<0)) -> 0 | DG16: 0 | DH16: 0 | DI16: 57 | DJ16: 0 | DK16: 0 | DL16: 0 | DM16: 0 | DN16: 0 | DO16: 0 | DP16: 0 | DQ16: 0 | DR16: 0 | DS16: =COUNTA([1]ВЫВОЗКА!$A$28:$A$49) -> 22 | DT16: =COUNTIF([1]ВЫВОЗКА!$V$28:$V$49, "Не оборудован") -> 0 | DU16: =COUNTIF([1]ВЫВОЗКА!$V$28:$V$49, "Нет пробега") -> 0 | DV16: =SUMPRODUCT(--(MMULT(-([1]ВЫВОЗКА!$R$28:$U$49="+"),{1;1;1;1})>-4))-SUMPRODUCT(--(MMULT(-([1]ВЫВОЗКА!$R$28:$U$49="+"),{1;1;1;1})=0)) -> 0 | DW16: 0 | DX16: 0 | DY16: 0 | DZ16: =SUMPRODUCT(--(MMULT(-([1]ВЫВОЗКА!R28:U49="+"),{1;1;1;1})<0)) -> 0 | EA16: 0 | EB16: 0 | EC16: =COUNTA([1]ДОРОЖНАЯ!$A$26:$A$35) -> 10 | ED16: =COUNTIF([1]ДОРОЖНАЯ!$V$26:$V$35, "Не оборудован") -> 0 | EE16: =COUNTIF([1]ДОРОЖНАЯ!$V$26:$V$35, "Нет пробега") -> 0 | EF16: =SUMPRODUCT(--(MMULT(-([1]ДОРОЖНАЯ!$R$26:$U$35="+"),{1;1;1;1})>-4))-SUMPRODUCT(--(MMULT(-([1]ДОРОЖНАЯ!$R$26:$U$35="+"),{1;1;1;1})=0)) -> 0 | EG16: =EF16*100/EC16 -> 0 | EH16: 0 | EI16: 0 | EJ16: =SUMPRODUCT(--(MMULT(-([1]ДОРОЖНАЯ!R26:U35="+"),{1;1;1;1})<0)) -> 0 | EK16: 0 | EL16: 0 | EM16: =COUNTA([1]ВСПОМОГАТЕЛЬНАЯ!$A$33:$A$57) -> 25 | EN16: =COUNTIF([1]ВСПОМОГАТЕЛЬНАЯ!$V$33:$V$57, "Не оборудован") -> 0 | EO16: =COUNTIF([1]ВСПОМОГАТЕЛЬНАЯ!$V$33:$V$57, "Нет пробега") -> 0 | EP16: =SUMPRODUCT(--(MMULT(-([1]ВСПОМОГАТЕЛЬНАЯ!$R$33:$U$57="+"),{1;1;1;1})>-4))-SUMPRODUCT(--(MMULT(-([1]ВСПОМОГАТЕЛЬНАЯ!$R$33:$U$57="+"),{1;1;1;1})=0)) -> 0 | EQ16: =EP16*100/EM16 -> 0 | ER16: 0 | ES16: 0 | ET16: =SUMPRODUCT(--(MMULT(-([1]ВСПОМОГАТЕЛЬНАЯ!R33:U57="+"),{1;1;1;1})<0)) -> 0 | EU16: 0 | EV16: 0 | EW16: 57 | EX16: 0 | EY16: 0 | EZ16: 0 | FA16: 0 | FB16: 0 | FC16: 0 | FD16: 0 | FE16: 0 | FF16: 0 | FG16: =COUNTA([1]ВЫВОЗКА!$A$28:$A$49) -> 22 | FH16: =COUNTIF([1]ВЫВОЗКА!$AA$28:$AA$49, "Не оборудован") -> 0 | FI16: =COUNTIF([1]ВЫВОЗКА!$AA$28:$AA$49, "Нет пробега") -> 0 | FJ16: =SUMPRODUCT(--(MMULT(-([1]ВЫВОЗКА!$W$28:$Z$49="+"),{1;1;1;1})>-4))-SUMPRODUCT(--(MMULT(-([1]ВЫВОЗКА!$W$28:$Z$49="+"),{1;1;1;1})=0)) -> 0 | FK16: 0 | FL16: 0 | FM16: 0 | FN16: =SUMPRODUCT(--(MMULT(-([1]ВЫВОЗКА!$W$28:$Z$49="+"),{1;1;1;1})<0)) -> 0 | FO16: 0 | FP16: 0 | FQ16: =COUNTA([1]ДОРОЖНАЯ!$A$26:$A$35) -> 10 | FR16: =COUNTIF([1]ДОРОЖНАЯ!$AA$26:$AA$35, "Не оборудован") -> 0 | FS16: =COUNTIF([1]ДОРОЖНАЯ!$AA$26:$AA$35, "Нет пробега") -> 0 | FT16: =SUMPRODUCT(--(MMULT(-([1]ДОРОЖНАЯ!$W$26:$Z$35="+"),{1;1;1;1})>-4))-SUMPRODUCT(--(MMULT(-([1]ДОРОЖНАЯ!$W$26:$Z$35="+"),{1;1;1;1})=0)) -> 0 | FU16: =FT16*100/FQ16 -> 0 | FV16: 0 | FW16: 0 | FX16: =SUMPRODUCT(--(MMULT(-([1]ДОРОЖНАЯ!$W$26:$Z$35="+"),{1;1;1;1})<0)) -> 0 | FY16: 0 | FZ16: 0 | GA16: =COUNTA([1]ВСПОМОГАТЕЛЬНАЯ!$A$33:$A$57) -> 25 | GB16: =COUNTIF([1]ВСПОМОГАТЕЛЬНАЯ!$AA$33:$AA$57, "Не оборудован") -> 0 | GC16: =COUNTIF([1]ВСПОМОГАТЕЛЬНАЯ!$AA$33:$AA$57, "Нет пробега") -> 0 | GD16: =SUMPRODUCT(--(MMULT(-([1]ВСПОМОГАТЕЛЬНАЯ!$W$33:$Z$57="+"),{1;1;1;1})>-4))-SUMPRODUCT(--(MMULT(-([1]ВСПОМОГАТЕЛЬНАЯ!$W$33:$Z$57="+"),{1;1;1;1})=0)) -> 0 | GE16: =GD16*100/GA16 -> 0 | GF16: 0 | GG16: 0 | GH16: =SUMPRODUCT(--(MMULT(-([1]ВСПОМОГАТЕЛЬНАЯ!$W$33:$Z$57="+"),{1;1;1;1})<0)) -> 0 | GI16: 0 | GJ16: 0 | GK16: 57 | GL16: 0 | GM16: 0 | GN16: 0 | GO16: 0 | GP16: 0 | GQ16: 0 | GR16: =SUM(FN16,FX16,GH16) -> 0 | GS16: 0 | GT16: 0
A17: Итого | C17: =SUM(C6:C16) -> 155 | D17: =SUM(D6:D16) -> 0 | E17: =SUM(E6:E16) -> 81 | F17: =SUM(F6:F16) -> 0 | G17: =F17*100/C17 -> 0 | H17: 72 | I17: =K17-G17 -> 46.4516129 | J17: =SUM(J6:J16) -> 72 | K17: 46.4516129 | L17: =(J17+D17+E17)*100/C17 -> 98.70967742 | M17: =SUM(M6:M16) -> 117 | N17: =SUM(N6:N16) -> 0 | O17: =SUM(O6:O16) -> 18 | P17: =SUM(P6:P16) -> 0 | Q17: =P17*100/M17 -> 0 | R17: 74 | S17: =U17-Q17 -> 63.24786325 | T17: =SUM(T6:T16) -> 74 | U17: 63.24786325 | V17: 78.63247863 | W17: =SUM(W6:W16) -> 237 | X17: =SUM(X6:X16) -> 3 | Y17: =SUM(Y6:Y16) -> 43 | Z17: =SUM(Z6:Z16) -> 10 | AA17: =Z17*100/W17 -> 4.219409283 | AB17: 138 | AC17: =AE17-AA17 -> 58.2278481 | AD17: =SUM(AD6:AD16) -> 148 | AE17: 62.44725738 | AF17: 81.85654008 | AG17: =SUM(AG6:AG16) -> 509 | AH17: 3 | AI17: 142 | AJ17: =SUM(AJ6:AJ16) -> 10 | AK17: 1.964636542 | AL17: 284 | AM17: =AO17-AK17 -> 55.7956778 | AN17: =SUM(AN6:AN16) -> 294 | AO17: 57.76031434 | AP17: 86.2475442 | AQ17: =SUM(AQ6:AQ16) -> 155 | AR17: =SUM(AR6:AR16) -> 0 | AS17: =SUM(AS6:AS16) -> 59 | AT17: =SUM(AT6:AT16) -> 0 | AU17: 0 | AV17: 82 | AW17: 52.90322581 | AX17: =SUM(AX6:AX16) -> 82 | AY17: 52.90322581 | AZ17: =(AX17+AR17+AS17)*100/AQ17 -> 90.96774194 | BA17: =SUM(BA6:BA16) -> 117 | BB17: =SUM(BB6:BB16) -> 0 | BC17: =SUM(BC6:BC16) -> 15 | BD17: =SUM(BD6:BD16) -> 0 | BE17: =BD17*100/BA17 -> 0 | BF17: 78 | BG17: =BI17-BE17 -> 66.66666667 | BH17: =SUM(BH6:BH16) -> 78 | BI17: 66.66666667 | BJ17: =(BH17+BB17+BC17)*100/BA17 -> 79.48717949 | BK17: =SUM(BK6:BK16) -> 237 | BL17: =SUM(BL6:BL16) -> 3 | BM17: 46 | BN17: =SUM(BN6:BN16) -> 9 | BO17: =BN17*100/BK17 -> 3.797468354 | BP17: 130 | BQ17: =BS17-BO17 -> 54.85232068 | BR17: =SUM(BR6:BR16) -> 139 | BS17: 58.64978903 | BT17: =(BR17+BL17+BM17)*100/BK17 -> 79.32489451 | BU17: =SUM(BU6:BU16) -> 509 | BV17: =SUM(BV6:BV16) -> 3 | BW17: =SUM(BW6:BW16) -> 120 | BX17: =SUM(BX6:BX16) -> 9 | BY17: 1.768172888 | BZ17: =CB17-BX17 -> 290 | CA17: =CC17-BY17 -> 56.97445972 | CB17: =SUM(CB6:CB16) -> 299 | CC17: =CB17*100/BU17 -> 58.74263261 | CD17: =(CB17+BV17+BW17)*100/BU17 -> 82.90766208 | CE17: =SUM(CE6:CE16) -> 155 | CF17: =SUM(CF6:CF16) -> 0 | CG17: =SUM(CG6:CG16) -> 0 | CH17: =SUM(CH6:CH16) -> 0 | CI17: 0 | CJ17: 0 | CK17: 0 | CL17: =SUM(CL6:CL16) -> 0 | CM17: 0 | CN17: 0 | CO17: =SUM(CO6:CO16) -> 117 | CP17: =SUM(CP6:CP16) -> 0 | CQ17: =SUM(CQ6:CQ16) -> 0 | CR17: =SUM(CR6:CR16) -> 0 | CS17: 0 | CT17: 0 | CU17: =CW17-CS17 -> 0 | CV17: =SUM(CV6:CV16) -> 0 | CW17: 0 | CX17: 0 | CY17: =SUM(CY6:CY16) -> 237 | CZ17: 0 | DA17: 0 | DB17: =SUM(DB6:DB16) -> 0 | DC17: 0 | DD17: 0 | DE17: =DG17-DC17 -> 0 | DF17: =SUM(DF6:DF16) -> 0 | DG17: 0 | DH17: 0 | DI17: =SUM(DI6:DI16) -> 509 | DJ17: 0 | DK17: 0 | DL17: =SUM(DL6:DL16) -> 0 | DM17: 0 | DN17: 0 | DO17: =DQ17-DM17 -> 0 | DP17: =SUM(DP6:DP16) -> 0 | DQ17: 0 | DR17: 0 | DS17: =SUM(DS6:DS16) -> 155 | DT17: =SUM(DT6:DT16) -> 0 | DU17: =SUM(DU6:DU16) -> 0 | DV17: =SUM(DV6:DV16) -> 0 | DW17: 0 | DX17: 0 | DY17: 0 | DZ17: =SUM(DZ6:DZ16) -> 0 | EA17: 0 | EB17: 0 | EC17: =SUM(EC6:EC16) -> 117 | ED17: =SUM(ED6:ED16) -> 0 | EE17: =SUM(EE6:EE16) -> 0 | EF17: =SUM(EF6:EF16) -> 0 | EG17: =EF17*100/EC17 -> 0 | EH17: 0 | EI17: =EK17-EG17 -> 0 | EJ17: =SUM(EJ6:EJ16) -> 0 | EK17: 0 | EL17: 0 | EM17: =SUM(EM6:EM16) -> 237 | EN17: 0 | EO17: 0 | EP17: =SUM(EP6:EP16) -> 0 | EQ17: =EP17*100/EM17 -> 0 | ER17: 0 | ES17: =EU17-EQ17 -> 0 | ET17: =SUM(ET6:ET16) -> 0 | EU17: 0 | EV17: 0 | EW17: =SUM(EW6:EW16) -> 509 | EX17: 0 | EY17: 0 | EZ17: =SUM(EZ6:EZ16) -> 0 | FA17: 0 | FB17: 0 | FC17: =FE17-FA17 -> 0 | FD17: =SUM(FD6:FD16) -> 0 | FE17: 0 | FF17: 0 | FG17: =SUM(FG6:FG16) -> 155 | FH17: =SUM(FH6:FH16) -> 0 | FI17: =SUM(FI6:FI16) -> 2 | FJ17: =SUM(FJ6:FJ16) -> 0 | FK17: 0 | FL17: 0 | FM17: 0 | FN17: =SUM(FN6:FN16) -> 0 | FO17: 0 | FP17: 0 | FQ17: =SUM(FQ6:FQ16) -> 117 | FR17: =SUM(FR6:FR16) -> 0 | FS17: =SUM(FS6:FS16) -> 0 | FT17: =SUM(FT6:FT16) -> 0 | FU17: =FT17*100/FQ17 -> 0 | FV17: 0 | FW17: =FY17-FU17 -> 0 | FX17: =SUM(FX6:FX16) -> 0 | FY17: 0 | FZ17: 0 | GA17: =SUM(GA6:GA16) -> 237 | GB17: 0 | GC17: 0 | GD17: =SUM(GD6:GD16) -> 0 | GE17: =GD17*100/GA17 -> 0 | GF17: 0 | GG17: =GI17-GE17 -> 0 | GH17: =SUM(GH6:GH16) -> 0 | GI17: 0 | GJ17: 0 | GK17: =SUM(GK6:GK16) -> 509 | GL17: 0 | GM17: 2 | GN17: =SUM(GN6:GN16) -> 0 | GO17: 0 | GP17: 0 | GQ17: =GS17-GO17 -> 0 | GR17: =SUM(GR6:GR16) -> 0 | GS17: =GR17*100/GK17 -> 0 | GT17: 0
C19: Вывозка | E19: Дорожная | G19: Вспомогательная | I19: Всего по ОП | T19: Работает из установленных с пробегом | W19: Рейтинг
A20: № | B20: ООО ПКП «ТИТАН» | C20: Всего ТС, шт. | D20: Снято, шт. | E20: Всего ТС, шт. | F20: Снято, шт. | G20: Всего ТС, шт. | H20: Снято, шт. | I20: Всего ТС, шт. | J20: Не оборудованые ТС, шт. | K20: Без пробега, шт | L20: Снято, шт. | M20: Снято, % | N20: Рейтинг за неделю | O20: =MATCH(9E+307,6:6) -> 202 | T20: всего | U20: испровно | V20: ср, % | W20: с нарастающим за месяц
A21: 1 | B21: Вельское ОП | C21: =COUNTA([1]ВЫВОЗКА!$A$17:$A$25) -> 9 | D21: =SUMPRODUCT(--(MMULT(-([1]ВЫВОЗКА!$C$17:$Z25="+"),{1;1;1;1;1;1;1;1;1;1;1;1;1;1;1;1;1;1;1;1;1;1;1;1})<0)) -> 8 | E21: =COUNTA([1]ДОРОЖНАЯ!$A$17:$A$23) -> 7 | F21: =SUMPRODUCT(--(MMULT(-([1]ДОРОЖНАЯ!C17:Z23="+"),{1;1;1;1;1;1;1;1;1;1;1;1;1;1;1;1;1;1;1;1;1;1;1;1})<0)) -> 5 | G21: =COUNTA([1]ВСПОМОГАТЕЛЬНАЯ!$A$17:$A$30) -> 14 | H21: =SUMPRODUCT(--(MMULT(-([1]ВСПОМОГАТЕЛЬНАЯ!C17:Z30="+"),{1;1;1;1;1;1;1;1;1;1;1;1;1;1;1;1;1;1;1;1;1;1;1;1})<0)) -> 11 | I21: =C21+E21+G21 -> 30 | J21: =MIN($AH6) -> 0 | K21: =MinAboveLim(0,AI6,BW6,DK6,EY6,GM6) -> 4 | L21: 21 | M21: =(L21+J21+K21)/I21 -> 0.8333333333 | N21: =RANK(M21,$M$21:$M$31) -> 6 | O21: =MIN(IF(MOD(COLUMN(C6:INDEX(6:6,$O$20))+5,40)=0,IF(C6:INDEX(6:6,$O$20)>0,C6:INDEX(6:6,$O$20)))) -> 4 | T21: =I21 -> 30 | U21: =AVERAGE(SUM($AH6,$AI6,$AN6),SUM($BV6,$BW6,$CB6),SUM($DJ6,$DK6,$DP6),SUM($EX6,$EY6,$FD6)) -> 13.75 | V21: =AVERAGE($AP6,$CD6,$DR6,$FF6) -> 45.83333333 | W21: =RANK(V21,$V$21:$V$31) -> 5
A22: 2 | B22: Сямженское ОП | C22: =COUNTA([1]ВЫВОЗКА!$A$103:$A$108) -> 6 | D22: =SUMPRODUCT(--(MMULT(-([1]ВЫВОЗКА!C103:Z108="+"),{1;1;1;1;1;1;1;1;1;1;1;1;1;1;1;1;1;1;1;1;1;1;1;1})<0)) -> 6 | E22: =COUNTA([1]ДОРОЖНАЯ!$A$86:$A$88) -> 3 | F22: =SUMPRODUCT(--(MMULT(-([1]ДОРОЖНАЯ!C86:Z88="+"),{1;1;1;1;1;1;1;1;1;1;1;1;1;1;1;1;1;1;1;1;1;1;1;1})<0)) -> 3 | G22: =COUNTA([1]ВСПОМОГАТЕЛЬНАЯ!$A$141:$A$148) -> 8 | H22: =SUMPRODUCT(--(MMULT(-([1]ВСПОМОГАТЕЛЬНАЯ!C141:Z148="+"),{1;1;1;1;1;1;1;1;1;1;1;1;1;1;1;1;1;1;1;1;1;1;1;1})<0)) -> 7 | I22: =C22+E22+G22 -> 17 | J22: =MIN($AH7) -> 0 | K22: =MinAboveLim(0,AI7,BW7,DK7,EY7,GM7) -> 1 | L22: 16 | M22: =(L22+J22+K22)/I22 -> 1 | N22: =RANK(M22,$M$21:$M$31) -> 1 | O22: =MIN(IF(MOD(COLUMN(C7:INDEX(7:7,$O$20))+5,40)=0,IF(C7:INDEX(7:7,$O$20)>0,C7:INDEX(7:7,$O$20)))) -> 1 | T22: 17 | U22: =AVERAGE(SUM($AH7,$AI7,$AN7),SUM($BV7,$BW7,$CB7),SUM($DJ7,$DK7,$DP7),SUM($EX7,$EY7,$FD7)) -> 8.25 | V22: =AVERAGE($AP7,$CD7,$DR7,$FF7) -> 48.52941176 | W22: =RANK(V22,$V$21:$V$31) -> 3
A23: 3 | B23: Коношское ОП | C23: =COUNTA([1]ВЫВОЗКА!$A$153:$A$166) -> 14 | D23: =SUMPRODUCT(--(MMULT(-([1]ВЫВОЗКА!C153:Z166="+"),{1;1;1;1;1;1;1;1;1;1;1;1;1;1;1;1;1;1;1;1;1;1;1;1})<0)) -> 3 | E23: =COUNTA([1]ДОРОЖНАЯ!$A$127:$A$133) -> 7 | F23: =SUMPRODUCT(--(MMULT(-([1]ДОРОЖНАЯ!C127:Z133="+"),{1;1;1;1;1;1;1;1;1;1;1;1;1;1;1;1;1;1;1;1;1;1;1;1})<0)) -> 6 | G23: =COUNTA([1]ВСПОМОГАТЕЛЬНАЯ!$A$221:$A$237) -> 17 | H23: =SUMPRODUCT(--(MMULT(-([1]ВСПОМОГАТЕЛЬНАЯ!C221:Z237="+"),{1;1;1;1;1;1;1;1;1;1;1;1;1;1;1;1;1;1;1;1;1;1;1;1})<0)) -> 14 | I23: 38 | J23: 0 | K23: 13 | L23: 15 | M23: 0.7368421053 | N23: =RANK(M23,$M$21:$M$31) -> 8 | O23: =MIN(IF(MOD(COLUMN(C8:INDEX(8:8,$O$20))+5,40)=0,IF(C8:INDEX(8:8,$O$20)>0,C8:INDEX(8:8,$O$20)))) -> 13 | T23: 38 | U23: 16 | V23: 42.10526316 | W23: 8
A24: 4 | B24: Дмитриевское ОП | C24: =COUNTA([1]ВЫВОЗКА!$A$139:$A$150) -> 12 | D24: =SUMPRODUCT(--(MMULT(-([1]ВЫВОЗКА!C139:Z150="+"),{1;1;1;1;1;1;1;1;1;1;1;1;1;1;1;1;1;1;1;1;1;1;1;1})<0)) -> 11 | E24: =COUNTA([1]ДОРОЖНАЯ!$A$108:$A$124) -> 17 | F24: =SUMPRODUCT(--(MMULT(-([1]ДОРОЖНАЯ!C108:Z124="+"),{1;1;1;1;1;1;1;1;1;1;1;1;1;1;1;1;1;1;1;1;1;1;1;1})<0)) -> 14 | G24: =COUNTA([1]ВСПОМОГАТЕЛЬНАЯ!$A$184:$A$218) -> 35 | H24: =SUMPRODUCT(--(MMULT(-([1]ВСПОМОГАТЕЛЬНАЯ!C184:Z218="+"),{1;1;1;1;1;1;1;1;1;1;1;1;1;1;1;1;1;1;1;1;1;1;1;1})<0)) -> 25 | I24: 64 | J24: 0 | K24: 8 | L24: 41 | M24: 0.765625 | N24: =RANK(M24,$M$21:$M$31) -> 7 | O24: =MIN(IF(MOD(COLUMN(C9:INDEX(9:9,$O$20))+5,40)=0,IF(C9:INDEX(9:9,$O$20)>0,C9:INDEX(9:9,$O$20)))) -> 8 | T24: 64 | U24: 24.75 | V24: 38.671875 | W24: 10
A25: 5 | B25: Шалакушское ОП | C25: =COUNTA([1]ВЫВОЗКА!$A$178:$A$191) -> 14 | D25: =SUMPRODUCT(--(MMULT(-([1]ВЫВОЗКА!C178:Z191="+"),{1;1;1;1;1;1;1;1;1;1;1;1;1;1;1;1;1;1;1;1;1;1;1;1})<0)) -> 5 | E25: =COUNTA([1]ДОРОЖНАЯ!$A$147:$A$153) -> 7 | F25: =SUMPRODUCT(--(MMULT(-([1]ДОРОЖНАЯ!C147:Z153="+"),{1;1;1;1;1;1;1;1;1;1;1;1;1;1;1;1;1;1;1;1;1;1;1;1})<0)) -> 4 | G25: =COUNTA([1]ВСПОМОГАТЕЛЬНАЯ!$A$253:$A$273) -> 21 | H25: =SUMPRODUCT(--(MMULT(-([1]ВСПОМОГАТЕЛЬНАЯ!C253:Z273="+"),{1;1;1;1;1;1;1;1;1;1;1;1;1;1;1;1;1;1;1;1;1;1;1;1})<0)) -> 16 | I25: 42 | J25: 0 | K25: 17 | L25: 24 | M25: 0.9761904762 | N25: 2 | O25: =MIN(IF(MOD(COLUMN(C10:INDEX(10:10,$O$20))+5,40)=0,IF(C10:INDEX(10:10,$O$20)>0,C10:INDEX(10:10,$O$20)))) -> 17 | T25: 42 | U25: 20.75 | V25: 49.4047619 | W25: 1
A26: 6 | B26: Карпогорское ОП | C26: =COUNTA([1]ВЫВОЗКА!$A$52:$A$78) -> 27 | D26: =SUMPRODUCT(--(MMULT(-([1]ВЫВОЗКА!C52:Z78="+"),{1;1;1;1;1;1;1;1;1;1;1;1;1;1;1;1;1;1;1;1;1;1;1;1})<0)) -> 21 | E26: =COUNTA([1]ДОРОЖНАЯ!$A$38:$A$62) -> 25 | F26: =SUMPRODUCT(--(MMULT(-([1]ДОРОЖНАЯ!C38:Z62="+"),{1;1;1;1;1;1;1;1;1;1;1;1;1;1;1;1;1;1;1;1;1;1;1;1})<0)) -> 19 | G26: =COUNTA([1]ВСПОМОГАТЕЛЬНАЯ!$A$60:$A$99) -> 40 | H26: =SUMPRODUCT(--(MMULT(-([1]ВСПОМОГАТЕЛЬНАЯ!C60:Z99="+"),{1;1;1;1;1;1;1;1;1;1;1;1;1;1;1;1;1;1;1;1;1;1;1;1})<0)) -> 29 | I26: 92 | J26: 0 | K26: 6 | L26: 60 | M26: 0.7173913043 | N26: =RANK(M26,$M$21:$M$31) -> 9 | O26: =MIN(IF(MOD(COLUMN(C11:INDEX(11:11,$O$20))+5,40)=0,IF(C11:INDEX(11:11,$O$20)>0,C11:INDEX(11:11,$O$20)))) -> 6 | T26: 92 | U26: 36.75 | V26: 39.94565217 | W26: 9
A27: 7 | B27: Усть-Покшеньгское ОП | C27: =COUNTA([1]ВЫВОЗКА!$A$111:$A$136) -> 26 | D27: =SUMPRODUCT(--(MMULT(-([1]ВЫВОЗКА!C111:Z136="+"),{1;1;1;1;1;1;1;1;1;1;1;1;1;1;1;1;1;1;1;1;1;1;1;1})<0)) -> 21 | E27: =COUNTA([1]ДОРОЖНАЯ!$A$91:$A$105) -> 15 | F27: =SUMPRODUCT(--(MMULT(-([1]ДОРОЖНАЯ!C91:Z105="+"),{1;1;1;1;1;1;1;1;1;1;1;1;1;1;1;1;1;1;1;1;1;1;1;1})<0)) -> 14 | G27: =COUNTA([1]ВСПОМОГАТЕЛЬНАЯ!$A$151:$A$181) -> 31 | H27: =SUMPRODUCT(--(MMULT(-([1]ВСПОМОГАТЕЛЬНАЯ!C151:Z181="+"),{1;1;1;1;1;1;1;1;1;1;1;1;1;1;1;1;1;1;1;1;1;1;1;1})<0)) -> 23 | I27: 72 | J27: 3 | K27: 12 | L27: 55 | M27: 0.9722222222 | N27: 3 | O27: =MIN(IF(MOD(COLUMN(C12:INDEX(12:12,$O$20))+5,40)=0,IF(C12:INDEX(12:12,$O$20)>0,C12:INDEX(12:12,$O$20)))) -> 12 | T27: 72 | U27: 35 | V27: 48.61111111 | W27: 2
A28: 8 | B28: Светлозерское ОП | C28: =COUNTA([1]ВЫВОЗКА!$A$169:$A$175) -> 7 | D28: =SUMPRODUCT(--(MMULT(-([1]ВЫВОЗКА!C169:Z175="+"),{1;1;1;1;1;1;1;1;1;1;1;1;1;1;1;1;1;1;1;1;1;1;1;1})<0)) -> 3 | E28: =COUNTA([1]ДОРОЖНАЯ!$A$136:$A$144) -> 9 | F28: =SUMPRODUCT(--(MMULT(-([1]ДОРОЖНАЯ!C136:Z144="+"),{1;1;1;1;1;1;1;1;1;1;1;1;1;1;1;1;1;1;1;1;1;1;1;1})<0)) -> 7 | G28: =COUNTA([1]ВСПОМОГАТЕЛЬНАЯ!$A$240:$A$250) -> 11 | H28: =SUMPRODUCT(--(MMULT(-([1]ВСПОМОГАТЕЛЬНАЯ!C240:Z250="+"),{1;1;1;1;1;1;1;1;1;1;1;1;1;1;1;1;1;1;1;1;1;1;1;1})<0)) -> 8 | I28: 27 | J28: 0 | K28: 10 | L28: 15 | M28: 0.9259259259 | N28: 4 | O28: =MIN(IF(MOD(COLUMN(C13:INDEX(13:13,$O$20))+5,40)=0,IF(C13:INDEX(13:13,$O$20)>0,C13:INDEX(13:13,$O$20)))) -> 10 | T28: 27 | U28: 12.75 | V28: 47.22222222 | W28: =RANK(V28,$V$21:$V$31) -> 4
A29: 9 | B29: Пинежское ОП | C29: =COUNTA([1]ВЫВОЗКА!$A$92:$A$100) -> 9 | D29: =SUMPRODUCT(--(MMULT(-([1]ВЫВОЗКА!C92:Z100="+"),{1;1;1;1;1;1;1;1;1;1;1;1;1;1;1;1;1;1;1;1;1;1;1;1})<0)) -> 7 | E29: =COUNTA([1]ДОРОЖНАЯ!$A$76:$A$83) -> 8 | F29: =SUMPRODUCT(--(MMULT(-([1]ДОРОЖНАЯ!C76:Z83="+"),{1;1;1;1;1;1;1;1;1;1;1;1;1;1;1;1;1;1;1;1;1;1;1;1})<0)) -> 7 | G29: =COUNTA([1]ВСПОМОГАТЕЛЬНАЯ!$A$126:$A$138) -> 13 | H29: =SUMPRODUCT(--(MMULT(-([1]ВСПОМОГАТЕЛЬНАЯ!C126:Z138="+"),{1;1;1;1;1;1;1;1;1;1;1;1;1;1;1;1;1;1;1;1;1;1;1;1})<0)) -> 5 | I29: 30 | J29: 0 | K29: 2 | L29: 16 | M29: 0.6 | N29: =RANK(M29,$M$21:$M$31) -> 10 | O29: =MIN(IF(MOD(COLUMN(C14:INDEX(14:14,$O$20))+5,40)=0,IF(C14:INDEX(14:14,$O$20)>0,C14:INDEX(14:14,$O$20)))) -> 2 | T29: 30 | U29: 13 | V29: 43.33333333 | W29: 6
A30: 10 | B30: Луковецкое ОП | C30: =COUNTA([1]ВЫВОЗКА!$A$81:$A$89) -> 9 | D30: =SUMPRODUCT(--(MMULT(-([1]ВЫВОЗКА!C81:Z89="+"),{1;1;1;1;1;1;1;1;1;1;1;1;1;1;1;1;1;1;1;1;1;1;1;1})<0)) -> 7 | E30: =COUNTA([1]ДОРОЖНАЯ!$A$65:$A$73) -> 9 | F30: =SUMPRODUCT(--(MMULT(-([1]ДОРОЖНАЯ!C65:Z73="+"),{1;1;1;1;1;1;1;1;1;1;1;1;1;1;1;1;1;1;1;1;1;1;1;1})<0)) -> 8 | G30: =COUNTA([1]ВСПОМОГАТЕЛЬНАЯ!$A$102:$A$123) -> 22 | H30: =SUMPRODUCT(--(MMULT(-([1]ВСПОМОГАТЕЛЬНАЯ!C102:Z123="+"),{1;1;1;1;1;1;1;1;1;1;1;1;1;1;1;1;1;1;1;1;1;1;1;1})<0)) -> 15 | I30: 40 | J30: 0 | K30: 6 | L30: 29 | M30: 0.875 | N30: 5 | O30: =MIN(IF(MOD(COLUMN(C15:INDEX(15:15,$O$20))+5,40)=0,IF(C15:INDEX(15:15,$O$20)>0,C15:INDEX(15:15,$O$20)))) -> 6 | T30: 40 | U30: 17 | V30: 42.5 | W30: 7
A31: 11 | B31: Верхнетоемское ОП | C31: =COUNTA([1]ВЫВОЗКА!$A$28:$A$49) -> 22 | D31: =SUMPRODUCT(--(MMULT(-([1]ВЫВОЗКА!C28:Z49="+"),{1;1;1;1;1;1;1;1;1;1;1;1;1;1;1;1;1;1;1;1;1;1;1;1})<0)) -> 0 | E31: =COUNTA([1]ДОРОЖНАЯ!$A$26:$A$35) -> 10 | F31: =SUMPRODUCT(--(MMULT(-([1]ДОРОЖНАЯ!C26:Z35="+"),{1;1;1;1;1;1;1;1;1;1;1;1;1;1;1;1;1;1;1;1;1;1;1;1})<0)) -> 6 | G31: =COUNTA([1]ВСПОМОГАТЕЛЬНАЯ!$A$33:$A$57) -> 25 | H31: =SUMPRODUCT(--(MMULT(-([1]ВСПОМОГАТЕЛЬНАЯ!C33:Z57="+"),{1;1;1;1;1;1;1;1;1;1;1;1;1;1;1;1;1;1;1;1;1;1;1;1})<0)) -> 10 | I31: 57 | J31: 0 | K31: 16 | L31: 7 | M31: 0.4035087719 | N31: 11 | O31: =MIN(IF(MOD(COLUMN(C16:INDEX(16:16,$O$20))+5,40)=0,IF(C16:INDEX(16:16,$O$20)>0,C16:INDEX(16:16,$O$20)))) -> 16 | T31: 57 | U31: 17.25 | V31: 30.26315789 | W31: 11
A32: Итого | C32: =SUM(C21:C31) -> 155 | D32: =SUM(D21:D31) -> 92 | E32: =SUM(E21:E31) -> 117 | F32: =SUM(F21:F31) -> 93 | G32: =SUM(G21:G31) -> 237 | H32: =SUM(H21:H31) -> 163 | I32: =SUM(I21:I31) -> 509 | J32: 3 | K32: 120 | L32: 299 | M32: =(L32+J32+K32)/I32 -> 0.8290766208 | T32: 509 | U32: 215.25 | V32: 42.28880157
A39: № | B39: ООО ПКП «ТИТАН» | C39: Кол-во нарушений (ноябрь) | F39: Рейтинг
A40: 1 | B40: Вельское ОП | F40: 1
A41: 2 | B41: Сямженское ОП | F41: 1
A42: 3 | B42: Коношское ОП | C42: 1 | F42: 4
A43: 4 | B43: Дмитриевское ОП | F43: 1
A44: 5 | B44: Шалакушское ОП | C44: 1 | F44: 4
A45: 6 | B45: Карпогорское ОП | C45: 1 | F45: 4
A46: 7 | B46: Усть-Покшеньгское ОП | C46: 1 | F46: 4
A47: 8 | B47: Светлозерское ОП | C47: 1 | F47: 4
A48: 9 | B48: Пинежское ОП | C48: 1 | F48: 4
A49: 10 | B49: Луковецкое ОП | C49: 1 | F49: 4
A50: 11 | B50: Верхнетоемское ОП | C50: 5 | F50: 11
B51: Итого | C51: 12

Sheet Лист1
